{"text_format":"1","workbook":"xlsx","n_sheets":8,"sheets":["КП клиента","Исходные данные","ДЦ","График Classic NEW","График Light +","График Senim","равными","равными Light"],"not_rendered":{"charts":0,"images":1,"macros":1,"external_links":0,"defined_names":1,"comments":0,"pivot_tables":0},"unopened":[],"bounds":{"document_bytes":16777216,"sheet_cells":100000,"rows_first":2000,"rows_last":500,"rows_between":2000,"halvings":0,"cell_chars":16384,"cell_head_chars":4096},"cells_cut":0,"cells_raw":0,"read":"whole","date_system":"1900"}

{"sheet":"КП клиента","index":0,"n_rows":29,"n_cols":9,"rows_kept":29,"cut":false,"hidden":false,"merged":[[2,5,2,6],[5,1,5,6]]}
[]
[]
[]
[null,{"$f":"NOW()","v":"2023-03-15T16:08:53.980"}]
[]
[null,"КОММЕРЧЕСКОЕ ПРЕДЛОЖЕНИЕ"]
[]
[null,"Программа",{"$f":"'Исходные данные'!C10","v":"Light pro 20/80"}]
[null,"Модель автомобиля",{"$f":"'Исходные данные'!C22","v":"Chery"}]
[null,"Стоимость автомобиля            ",{"$f":"'Исходные данные'!C23","v":1000000}]
[null,"Первоначальный взнос",{"$f":"'Исходные данные'!C28","v":100000}]
[null,"Сумма микрокредита",{"$f":"'Исходные данные'!C33","v":"исправьте ошибки"}]
[null,"Метод погашения",{"$f":"'Исходные данные'!E33","v":"Аннуитетные платежи"}]
[]
[null,"Срок кредитования",{"$f":"'Исходные данные'!C35","v":12},{"$f":"'Исходные данные'!D35","v":" "},{"$f":"'Исходные данные'!E35","v":" "},{"$f":"'Исходные данные'!F35","v":" "},{"$f":"'Исходные данные'!G35","v":" "},{"$f":"'Исходные данные'!H35","v":" "},{"$f":"'Исходные данные'!I35","v":" "}]
[null,"Ежемесячный платеж",{"$f":"'Исходные данные'!C42","v":"0"},{"$f":"'Исходные данные'!D42","v":" "},{"$f":"'Исходные данные'!E42","v":" "},{"$f":"'Исходные данные'!F42","v":" "},{"$f":"'Исходные данные'!G42","v":" "},{"$f":"'Исходные данные'!H42","v":" "},{"$f":"'Исходные данные'!I42","v":" "}]
[null,{"$f":"IF(C8='Исходные данные'!M38,\"Начисленное вознаграждение за 12 мес.\",\" \")","v":"Начисленное вознаграждение за 12 мес."},{"$f":"IF(C8='Исходные данные'!M38,'Исходные данные'!C43,\" \")","v":" "}]
[]
[]
[null,"Выбрав данное пакетное предложение, Вы получаете следующие преимущества: "]
[null,"1. Качественное страхование Каско на автомобиль, являющийся залоговым обеспечением по автокредиту, в соответствии с условиями программы микрокредитования"]
[null,"2. Жизнь заемщика застрахована, в случае возникновения непредвиденых обстоятельств, страховая компания погасит задолженность по автокредиту"]
[null,"3. Ускоренное оформление авто, постановка и снятие с залога без посещения СпецЦона"]
[]
[]
[]
[]
[]
[null,"* Настоящее коммерческое предложение носит информативный характер и не является обязательством МФО по предоставлению микрокредита на указанных условиях"]

{"sheet":"Исходные данные","index":1,"n_rows":65,"n_cols":28,"rows_kept":65,"cut":false,"hidden":false,"merged":[[41,12,43,12],[55,1,55,3],[56,1,56,3],[53,1,53,3],[57,1,57,3],[58,1,58,3],[45,4,45,5],[44,1,45,3],[51,1,51,3],[52,1,52,3],[54,1,54,3],[54,4,54,5],[56,4,56,5],[53,4,53,5],[57,4,57,5],[58,4,58,5],[3,5,3,6],[6,1,6,6],[44,4,44,5],[31,4,31,6],[32,4,32,6],[27,4,27,5],[30,4,30,5],[29,4,29,5],[31,3,33,3],[22,4,22,5],[33,1,33,2],[59,1,59,3],[60,1,60,3],[60,4,60,5],[61,1,63,1],[61,2,62,3],[61,4,62,5],[63,2,63,3],[63,4,63,5],[32,7,32,8],[64,1,64,6],[46,1,46,3],[47,1,47,3],[48,1,48,3],[49,1,49,3],[50,1,50,3],[59,4,59,5],[46,4,46,5],[47,4,47,5],[48,4,48,5],[49,4,49,5],[50,4,50,5],[51,4,51,5],[52,4,52,5],[55,4,55,5]]}
[]
[]
[]
[]
[null,{"$f":"NOW()","v":"2023-03-15T16:08:53.980"}]
[]
[null,"ИСХОДНЫЕ ДАННЫЕ"]
[]
[null,"ДЦ","Scandinavian Motors "]
[null,"Программа","Light pro 20/80",{"$f":"IF(ISERROR(D28=\"#НД\"),\"Смените программу\",IF(C33=\"Сумма микрокредита больше 35 млн.\",\"Смените программу\",\" \"))","v":" "},null,null,null,null,null,null,null,null,null,"0",45000]
[null,"BMW",{"$f":"VLOOKUP($C$9,ДЦ!$B$2:$C$34,2,FALSE)","v":0.2}]
[null,"Changan",{"$f":"IF(C28/C23>=50%,50%,20%)","v":0.2},{"$f":"C28/C23","v":0.1}]
[null,"Chery",{"$f":"VLOOKUP($C$9,ДЦ!$B$2:$C$34,2,FALSE)","v":0.2}]
[null,"Genesis",{"$f":"VLOOKUP($C$9,ДЦ!$B$2:$C$34,2,FALSE)","v":0.2}]
[null,"Haval",{"$f":"VLOOKUP($C$9,ДЦ!$B$2:$C$34,2,FALSE)","v":0.2}]
[null,"JLR",{"$f":"VLOOKUP($C$9,ДЦ!$B$2:$C$34,2,FALSE)","v":0.2}]
[null,"Lexus",{"$f":"VLOOKUP($C$9,ДЦ!$B$2:$C$34,2,FALSE)","v":0.2}]
[null,"Subaru",{"$f":"VLOOKUP($C$9,ДЦ!$B$2:$C$34,2,FALSE)","v":0.2}]
[null,"Toyota",{"$f":"VLOOKUP($C$9,ДЦ!$B$2:$C$34,2,FALSE)","v":0.2}]
[null,"Volvo",{"$f":"VLOOKUP($C$9,ДЦ!$B$2:$C$34,2,FALSE)","v":0.2}]
[null,"Прочие",{"$f":"VLOOKUP($C$9,ДЦ!$B$2:$C$34,2,FALSE)","v":0.2}]
[null,"Модель автомобиля","Chery"]
[null,"Стоимость автомобиля            ",1000000,{"$f":"IF(AND(C10=M39,C23>20000000),N44,\" \")","v":" "},"СК КАСКО",null,{"$f":"VLOOKUP($C$10,$M$36:$N$40,2,FALSE)","v":"Nomad insurance"}]
[null,"Участие в программе trade-in","НЕТ",30000000,null,null,null,null,null,null,null,null,"Jeṅil 2",0.02,null,null,{"$f":"IF(C10=M39,\"Оптимум-2\",\" \")","v":" "},{"$f":"IF($C$27<25000000,2.45%,2.9%)","v":2.4500000000000001E-2}]
[null,"Выгода по программе  Hyundai Finance",{"$f":"IF(C24=\"ДА\",C26+D26,C26)","v":0},null,null,null,null,null,null,null,null,null,"Orta 1",{"$f":"IF(C27<25000000,2.7%,3.2%)","v":2.7000000000000003E-2},null,null,{"$f":"IF(C10=M39,\"Престиж-2\",\" \")","v":" "},{"$f":"IF($C$27<25000000,2.95%,3.4%)","v":2.9500000000000002E-2}]
[null,null,{"$f":"IF(C10=\"Light\",0%,VLOOKUP(C22,B10:E20,3,FALSE))","v":0},{"$f":"VLOOKUP(C22,B10:E20,4,FALSE)","v":0},null,null,null,null,null,null,null,null,"Orta 2",{"$f":"IF(C27<25000000,3.3%,3.8%)","v":3.3000000000000002E-2},null,null,{"$f":"IF(C10=M39,\"Эксклюзив-2\",\" \")","v":" "},3.95E-2]
[null,"Стоимость автомобиля со скидкой",{"$f":"C23","v":1000000},null,null,null,null,null,null,null,null,null,"Tolyq",4.3999999999999997E-2,null,null,null,{"$f":"VLOOKUP(G28,Q24:R26,2,FALSE)","v":{"$error":"#N/A"}}]
[null,"Первоначальный взнос",100000,{"$f":"IF(OR(C28/C27>95%,C28/C27<O41),\"Не соответствует\",C28/C27)","v":"Не соответствует"},"Выберете страховку Каско",null,"Престиж MyCar ",{"$f":"IF(ISERROR(C31=\"#Н/Д\"),\"исправьте страховку\",\" \")","v":" "},null,null,null,null,null,{"$f":"VLOOKUP(G28,M25:N27,2,FALSE)","v":{"$error":"#N/A"}},null,null,null,1,2,3,4,5,6,7,8,9,10]
[null,"Дополнительное оборудование",0,{"$f":"IFERROR(IF(C29>#REF!,\"превышен лимит\",IF(AND(D28<20%,C29>0),\"Не предусмотрено\",\" \")),\"Не предусмотрено\")","v":"Не предусмотрено"},null,null,null,null,null,null,null,null,null,null,null,{"$f":"IF(C10=M38,\" \",\"Аннуитетные платежи\")","v":" "},{"$f":"IF(P29=\" \",\" \",\"Ежемесячный платеж\")","v":" "},{"$f":"IF(C10=M38,0,-PMT(C41/12,C35,$C$33))","v":0},{"$f":"-PMT(D41/12,D35,$C$33)","v":{"$error":"#VALUE!"}},{"$error":"#VALUE!"},{"$error":"#VALUE!"},{"$error":"#VALUE!"},{"$error":"#VALUE!"},{"$error":"#VALUE!"},{"$f":"IF($C$10=\"Light\",-PMT(J41/12,J35-12,$C$33)+$C$43/72,-PMT(J41/12,J35,$C$33))","v":{"$error":"#VALUE!"}},{"$f":"IF($C$10=\"Light\",-PMT(K41/12,K35-12,$C$33)+$C$43/72,-PMT(K41/12,K35,$C$33))","v":{"$error":"#VALUE!"}},{"$f":"IF(C10=#REF!,#REF!,-PMT(L41/12,L35,$C$33))","v":{"$error":"#REF!"}},-1]
[null,"Постановка на учет Регистрация Договора залога",27000,null,"Выберете срок Каско, лет",null,1,{"$f":"IF(AND(C10=M39,G30<2),\"Исправьте срок\",\" \")","v":" "},null,null,null,null,{"$f":"IF(OR(C10=M39,C10=M38,C23<25000000),\"\",\"Оптимум\")","v":""},{"$f":"IF($C$27<25000000,\"\",3.2%)","v":""},null,{"$f":"IF(C10=M38,\" \",\"Платежи равными долями\")","v":" "},{"$f":"IF(P30=\" \",\" \",IF(C10=\"Light\",\"Ежемесячный платеж\",\"Платеж первого месяца\"))","v":" "},{"$f":"IF(C10=\"Light\",0,($C$33/C35)+($C$33*C41/12))","v":{"$error":"#VALUE!"}},{"$f":"IF($C$10=\"Light\",'равными Light'!F4,($C$33/D35)+($C$33*D41/12))","v":{"$error":"#VALUE!"}},{"$f":"IF($C$10=\"Light\",'равными Light'!L4,($C$33/E35)+($C$33*E41/12))","v":{"$error":"#VALUE!"}},{"$f":"IF($C$10=\"Light\",'равными Light'!R4,($C$33/F35)+($C$33*F41/12))","v":{"$error":"#VALUE!"}},{"$f":"IF($C$10=\"Light\",'равными Light'!X4,($C$33/G35)+($C$33*G41/12))","v":{"$error":"#VALUE!"}},{"$f":"IF($C$10=\"Light\",'равными Light'!AD4,($C$33/H35)+($C$33*H41/12))","v":{"$error":"#VALUE!"}},{"$f":"IF($C$10=\"Light\",'равными Light'!AJ4,($C$33/I35)+($C$33*I41/12))","v":{"$error":"#VALUE!"}},{"$f":"IF($C$10=\"Light\",'равными Light'!AK4,($C$33/J35)+($C$33*J41/12))","v":{"$error":"#VALUE!"}},{"$f":"IF($C$10=\"Light\",'равными Light'!AL4,($C$33/K35)+($C$33*K41/12))","v":{"$error":"#VALUE!"}},{"$f":"IF($C$10=\"Light\",'равными Light'!AM4,($C$33/L35)+($C$33*L41/12))","v":{"$error":"#VALUE!"}},0]
[null,"Страховая премия КАСКО",{"$f":"IF(C10=M40,\"0\",IF(C10=M39,C27*R27*G30,C27*N33*G30))","v":53000},null,"Страхование жизни, лет",null,1,null,null,null,null,null,{"$f":"IF(OR(C10=M39,C10=M38,C23>25000000),\"\",\"Престиж\")","v":""},{"$f":"IF($C$27<25000000,3.3%,3.8%)","v":3.3000000000000002E-2},null,{"$f":"IF(C10=M38,\"В конце срока\",IF(OR(C10=M37,C10=M39,C10=M40,C10=M36),\" \",\"Гибкий график\"))","v":"В конце срока"},{"$f":"IF(P31=\" \",\" \",\"Ежемесячный платеж\")","v":"Ежемесячный платеж"},{"$f":"'График Light +'!F27","v":{"$error":"#VALUE!"}},{"$f":"'График Light +'!F39","v":{"$error":"#VALUE!"}},{"$f":"'График Light +'!F51","v":{"$error":"#VALUE!"}},{"$f":"#REF!","v":{"$error":"#REF!"}},{"$f":"#REF!","v":{"$error":"#REF!"}},{"$f":"#REF!","v":{"$error":"#REF!"}},{"$f":"#REF!","v":{"$error":"#REF!"}},{"$f":"#REF!","v":{"$error":"#REF!"}},{"$f":"#REF!","v":{"$error":"#REF!"}},{"$f":"#REF!","v":{"$error":"#REF!"}},1]
[null,"СТРАХОВАНИЕ ЖИЗНИ",{"$f":"IFERROR(IF(C10=M40,\"0\",(C27-C28+C29+C31+C30)*6%*G31),\"исправьте страховку\")","v":58800},{"$f":"IF(D10=\"Смените программу\",\" \",IF(ISERROR(#N/A),\" \",IF(C33<500000,\"Минимальная сумма микрокредита 500 000 тг.\",IF(C33>M35,N35,\" \"))))","v":" "},"Метод погашения",null,null,null,null,null,null,null,{"$f":"IF(C10=M39,\" \",\"Эксклюзив\")","v":"Эксклюзив"},4.3999999999999997E-2]
[null,"Сумма микрокредита",{"$f":"IFERROR(IF(AND(C10=M36,M34>35000000),\"Сумма микрокредита больше 35 млн.\",IF(AND(C29>0,D29=\"Не предусмотрено\"),\"исправьте ошибки\",IF(AND(C10=\"Light pro 30/70\",OR(C22=B20,C22=B16)),\"исправьте программу\",IF(OR(D23=N44,H30=\"Исправьте срок\",D28=\"Не соответствует\"),\"исправьте ошибки\",C27-C28+C29+C31+C32+C30)))),\"исправьте ошибки\")","v":"исправьте ошибки"},null,"Аннуитетные платежи",null,null,{"$f":"IF(OR(C33=N43,D10=\"Смените программу\"),\" \",IF(B42=\" \",\"исправьте метод погашения\",\" \"))","v":" "},null,null,null,null,"Престиж MyCar ",{"$f":"IF(C23<25000000,5.3%,5.8%)","v":5.2999999999999999E-2},null,{"$f":"IF(OR(C10=\"Hyundai Finance\",C10=\"DOS\",C33>2000000),\" \",\"Платеж в конце срока кредита\")","v":" "},{"$f":"IF(P33=\" \",\" \",\"Ежемесячный платеж\")","v":" "},{"$f":"IF($P$33=\" \",\" \",0)","v":" "}," "," "," "," "," "," "," "," ",null,{"$f":"IF(P33=\" \",\" \",2)","v":" "}]
[null,null,null,null,null,null,null,null,null,null,null,null,{"$f":"C23-C28+C30+C31+C32","v":1038800}]
[null,"Срок кредитования",12,{"$f":"IF($C$10=$M$38,\" \",24)","v":" "},{"$f":"IFERROR(IF($C$10=$M$38,\" \",36),\" \")","v":" "},{"$f":"IFERROR(IF(OR($C$10=M38,C10=M39),\" \",48),\" \")","v":" "},{"$f":"IFERROR(IF(OR($C$10=M38,C10=M39),\" \",60),\" \")","v":" "},{"$f":"IFERROR(IF(OR($C$10=M38,C10=M39),\" \",72),\" \")","v":" "},{"$f":"IFERROR(IF(OR($C$10=M38,C10=M39),\" \",84),\" \")","v":" "},{"$f":"IF(OR($C$10=\"Light\",$C$10=\"NEW HF\"),\" \",96)","v":96},{"$f":"IF(OR($C$10=\"Light\",$C$10=\"NEW HF\"),\" \",108)","v":108},{"$f":"IF(#REF!=\" \",\" \",IF($C$10=#REF!,120,\" \"))","v":{"$error":"#REF!"}},69000000,"сумма больше максимально допустимой",null,null,null,{"$f":"VLOOKUP($E$33,$P$28:$AA$33,3,0)","v":{"$error":"#N/A"}},{"$f":"VLOOKUP($E$33,$P$28:$AA$33,4,0)","v":{"$error":"#N/A"}},{"$f":"VLOOKUP($E$33,$P$28:$AA$33,5,0)","v":{"$error":"#N/A"}},{"$f":"VLOOKUP($E$33,$P$28:$AA$33,6,0)","v":{"$error":"#N/A"}},{"$f":"VLOOKUP($E$33,$P$28:$AA$33,7,0)","v":{"$error":"#N/A"}},{"$f":"VLOOKUP($E$33,$P$28:$AA$33,8,0)","v":{"$error":"#N/A"}},{"$f":"VLOOKUP($E$33,$P$28:$AA$33,9,0)","v":{"$error":"#N/A"}},{"$f":"VLOOKUP($E$33,$P$28:$AA$33,10,0)","v":{"$error":"#N/A"}},{"$f":"VLOOKUP($E$33,$P$28:$AA$32,11,0)","v":{"$error":"#N/A"}},{"$f":"VLOOKUP($E$33,$P$28:$AA$33,12,0)","v":{"$error":"#N/A"}},{"$f":"VLOOKUP($E$33,$P$28:$AB$33,13,0)","v":{"$error":"#N/A"}}]
[null,{"$f":"M37","v":"Classic NEW"},0.245,0.245,0.245,0.245,0.245,0.245,0.245,0.215,0.215,0.215,"Classic 10/90 NEW","Nomad insurance",{"$f":"VLOOKUP($C$22,$B$11:$C$21,2,FALSE)","v":0.2}]
[null,{"$f":"M38","v":"Light pro 20/80"},{"$f":"IF(AND(C22=B12,C12=20%),22%,IF(AND(C22=B12,D28>=50%),20%,IF(C22=B14,19.6%,25%)))","v":0.25},null,null,null,null,null,null,null,null,null,"Classic NEW","Nomad insurance",{"$f":"VLOOKUP($C$22,$B$11:$C$21,2,FALSE)","v":0.2}]
[null,{"$f":"M39","v":"Ком техника"},0.245,0.245,0.245,null,null,null,null,null,null,null,{"$f":"IF(C22=B14,\"Genesis Light 20/80\",IF(AND(C22=B12,D12<50%),\"Changan Light 20/80 \",IF(AND(C22=B12,D12>=50%),\"Changan Light 50/50 \",\"Light pro 20/80\")))","v":"Light pro 20/80"},"Nomad insurance",{"$f":"IFERROR(VLOOKUP(C22,B11:C21,2,FALSE),D12)","v":0.2}]
[null,{"$f":"M36","v":"Classic 10/90 NEW"},0.245,0.245,0.245,0.245,0.245,0.245,0.245,null,null,null,"Ком техника","Nomad insurance",{"$f":"VLOOKUP($C$22,$B$11:$C$21,2,FALSE)","v":0.2}]
[null,null,null,null,null,null,null,null,null,null,null,null,"Standard","Nomad insurance",0.3]
[null,{"$f":"IFERROR(IF(B42=\" \",\" \",\"Ставка вознаграждения\"),\" \")","v":" "},{"$f":"IF(C10=M40,36.5%,VLOOKUP($C$10,$B$36:$I$39,2,FALSE))","v":0.25},{"$f":"IF(C10=M40,35.5%,VLOOKUP($C$10,$B$36:$I$40,3,FALSE))","v":0},{"$f":"IF(C10=M40,36.5%,VLOOKUP($C$10,$B$36:$I$40,4,FALSE))","v":0},{"$f":"IF(C10=M40,36.5%,VLOOKUP($C$10,$B$36:$I$40,5,FALSE))","v":0},{"$f":"IF(C10=M40,36.5%,VLOOKUP($C$10,$B$36:$I$40,6,FALSE))","v":0},{"$f":"IF(C10=M40,36.5%,VLOOKUP($C$10,$B$36:$I$40,7,FALSE))","v":0},{"$f":"IF(C10=M40,36.5%,VLOOKUP($C$10,$B$36:$I$40,8,FALSE))","v":0},{"$f":"IF($C$10=\"Dos\",J36,VLOOKUP($C$10,$B$36:$J$40,6))","v":0},{"$f":"IF($C$10=\"Dos\",K36,VLOOKUP($C$10,$B$36:$J$40,6))","v":0},{"$f":"IF($C$10=\"Dos\",L36,VLOOKUP($C$10,$B$36:$J$40,6))","v":0},null,null,{"$f":"VLOOKUP(C10,M36:O40,3,FALSE)","v":0.2}]
[null,{"$f":"IFERROR(VLOOKUP(E33,P28:Q33,2,0),\" \")","v":" "},{"$f":"IFERROR(IF(C10=M38,\"0\",IF(OR(B42=\" \",D32=M42),\" \",IF(C35=\"12\",\" \",R35))),\" \")","v":"0"},{"$f":"IF(OR($C$10=\"Light\",D32=M42),\" \",IF(H33=\"исправьте метод погашения\",\" \",IFERROR(IF(D35=\" \",\" \",S35),\" \")))","v":" "},{"$f":"IF(OR($C$10=\"Light\",D32=M42),\" \",IF(I33=\"исправьте метод погашения\",\" \",IFERROR(IF(E35=\" \",\" \",T35),\" \")))","v":" "},{"$f":"IF(OR($C$10=\"Light\",D32=M42),\" \",IF(J33=\"исправьте метод погашения\",\" \",IFERROR(IF(F35=\" \",\" \",U35),\" \")))","v":" "},{"$f":"IF(OR($C$10=\"Light\",D32=M42),\" \",IF(K33=\"исправьте метод погашения\",\" \",IFERROR(IF(G35=\" \",\" \",V35),\" \")))","v":" "},{"$f":"IF(OR($C$10=\"Light\",D32=M42),\" \",IF(L33=\"исправьте метод погашения\",\" \",IFERROR(IF(H35=\" \",\" \",W35),\" \")))","v":" "},{"$f":"IF(OR($C$10=\"Light\",D32=M42),\" \",IF(M33=\"исправьте метод погашения\",\" \",IFERROR(IF(I35=\" \",\" \",X35),\" \")))","v":" "},{"$f":"IF(OR($C$10=\"Light\",D32=M42),\" \",IF(N33=\"исправьте метод погашения\",\" \",IFERROR(IF(J35=\" \",\" \",Y35),\" \")))","v":" "},{"$f":"IF($C$10=\"Light\",\" \",IF(O33=\"исправьте метод погашения\",\" \",IFERROR(IF(K35=\" \",\" \",Z35),\" \")))","v":" "},{"$f":"IF($C$10=\"Light\",\" \",IF(P33=\"исправьте метод погашения\",\" \",IFERROR(IF(L35=\" \",\" \",AA35),\" \")))","v":" "},"Минимальная сумма микрокредита 500 000 тг."]
[null,{"$f":"IF(B42=\" \",\" \",\"Сумма вознаграждения\")","v":" "},{"$f":"IFERROR(IF(OR(D32=M42,D32=N35),\"\",IF(C10=M38,C33*C41,IF(AB35=0,равными!D1,IF(AB35=-1,-CUMIPMT(C41/12,C35,$C$33,1,C35,0),\" \")))),\" \")","v":" "},{"$f":"IFERROR(IF($H$33=\"исправьте метод погашения\",\" \",IF(OR(D41=\" \",D32=M42),\" \",IF(AB35=-1,-CUMIPMT(D41/12,D35,$C$33,1,D35,0),IF(AB35=0,равными!J1,\" \")))),\" \")","v":" "},{"$f":"IFERROR(IF(H33=\"исправьте метод погашения\",\" \",IF(OR(E41=\" \",D32=M42),\" \",IF(AB35=-1,-CUMIPMT(E41/12,E35,$C$33,1,E35,0),IF(AB35=0,равными!P1,\" \")))),\" \")","v":" "},{"$f":"IFERROR(IF(OR(H33=\"исправьте метод погашения\",D32=M42),\" \",IF(F41=\" \",\" \",IF(AB35=-1,-CUMIPMT(F41/12,F35,$C$33,1,F35,0),IF(AB35=0,равными!V1,\" \")))),\" \")","v":" "},{"$f":"IFERROR(IF(OR(H33=\"исправьте метод погашения\",D32=M42),\" \",IF(G41=\" \",\" \",IF(AB35=-1,-CUMIPMT(G41/12,G35,$C$33,1,G35,0),IF(AB35=0,равными!AB1,\" \")))),\" \")","v":" "},{"$f":"IFERROR(IF(OR(H33=\"исправьте метод погашения\",D32=M42),\" \",IF(H41=\" \",\" \",IF(AB35=-1,-CUMIPMT(H41/12,H35,$C$33,1,H35,0),IF(AB35=0,равными!AH1,\" \")))),\" \")","v":" "},{"$f":"IFERROR(IF(OR(H33=\"исправьте метод погашения\",D32=M42),\" \",IF(I41=\" \",\" \",IF($AB$35=-1,-CUMIPMT(I41/12,I35,$C$33,1,I35,0),IF($AB$35=0,равными!AN1,\" \")))),\" \")","v":" "},{"$f":"IFERROR(IF(OR(I33=\"исправьте метод погашения\",D32=M42),\" \",IF(J41=\" \",\" \",IF($AB$35=-1,-CUMIPMT(J41/12,J35,$C$33,1,J35,0),IF($AB$35=0,равными!AT1,\" \")))),\" \")","v":" "},{"$f":"IFERROR(IF(J33=\"исправьте метод погашения\",\" \",IF(K41=\" \",\" \",IF($AB$35=-1,-CUMIPMT(K41/12,K35,$C$33,1,K35,0),IF($AB$35=0,равными!AZ1,\" \")))),\" \")","v":" "},{"$f":"IFERROR(IF(C10=#REF!,\"\",IF(K33=\"исправьте метод погашения\",\" \",IF(L41=\" \",\" \",IF($AB$35=-1,-CUMIPMT(L41/12,L35,$C$33,1,L35,0),IF($AB$35=0,равными!BF1,\" \"))))),\" \")","v":" "},null,"исправьте ошибки",36,{"$f":"E42*D35-C33-C43","v":{"$error":"#VALUE!"}}]
[null,null,null,null,null,null,null,null,null,null,null,null,null,"Не соответствует, больше 20 млн. ",48,{"$f":"F42*E35-C33-C43","v":{"$error":"#VALUE!"}}]
[null,"Застрахованные риски",null,null,"Программа",null,null,null,null,null,null,null,null,null,60,{"$f":"G42*F35-C33-C43","v":{"$error":"#VALUE!"}}]
[null,null,null,null,{"$f":"G28","v":"Престиж MyCar "},null,null,null,null,null,null,null,null,null,72,{"$f":"H42*G35-C33-C43","v":{"$error":"#VALUE!"}}]
[null,"ДТП, Угон/Хищение",null,null,"●",null,null,null,null,null,null,null,null,null,84,{"$f":"I42*H35-C33-C43","v":{"$error":"#VALUE!"}}]
[null,"Внешнее Механическое воздействие",null,null,"●"]
[null,"Стихийные бедствия",null,null,"●",null,null,null,null,null,null,null,"Nomad insurance"]
[null,"Противоправные действия третьих лиц",null,null,"●",null,null,null,null,null,null,null,"Коммеск-Өмір"]
[null,"Пожар, взрыв",null,null,"●"]
[null,"Самовозгорание",null,null,"●"]
[null,"Услуги эвакуатора (до 20,000тг.)",null,null,"●"]
[null,"Повреждения стёкол",null,null,"●"]
[null,"Без учета амортизации (износа) ТС",null,null,"●"]
[null,"Ремонт у официальных дилеров",null,null,"●"]
[null,"Кража наружных зеркал заднего вида, запасного колеса, расположенного снаружи ТС",null,null,{"$f":"IF(OR(G28=\"Эксклюзив\",G28=\"Эксклюзив-2\",G28=\"Экстра КАСКО\"),\"●\",\"-\")","v":"-"}]
[null,"Случайное внешнее воздействие химических веществ и (или) высокой температуры",null,null,{"$f":"IF(OR(G28=\"Эксклюзив\",G28=\"Эксклюзив-2\",G28=\"Экстра КАСКО\"),\"●\",\"-\")","v":"-"}]
[null,"Бесплатная техпомощь: подкачка колес при полном спуске, подзарядка аккумулятора, эвакуатор при ДТП и поломке, подвоз бензина",null,null,{"$f":"IF(G23=N39,\"-\",\"●\")","v":"-"}]
[null,"Без вызова полиции",null,null,{"$f":"IF(OR(G29=\"Эксклюзив\",G29=\"Эксклюзив-2\",G29=\"Tolyq\",G29=\"Экстра КАСКО-2\"),\"до 300 000 тенге\",IF(G29=\"Гранд КАСКО\",\"если сумма ущерба не превышает 80% от страховой суммы\",\"Обязателен\"))","v":"Обязателен"}]
[null,"Территория покрытия",null,null,{"$f":"IF(OR(G29=\"Эксклюзив\",G29=\"Эксклюзив-2\",G29=\"Tolyq\"),\"Казахстан, СНГ\",\"Казахстан, Кыргызстан\")","v":"Казахстан, Кыргызстан"}]
[null,"Франшиза","при ущербе",null,{"$f":"IF(OR(G29=\"Оптимум\",G29=\"Оптимум-2\"),\"1%, не более 800 000 тенге\",IF(OR(G29=\"КАСКО-2\",G29=\"КАСКО без амортизации\"),\"0,5%, не менее 75 000 тг.\",\"0%\"))","v":"0%"}]
[]
[null,null,"при полной гибели",null,{"$f":"IF(OR(G29=\"Эксклюзив\",G29=\"Эксклюзив-2\",G29=\"Tolyq\"),\"8%, по СНГ - 30%\",IF(G29=\"КАСКО без амортизации\",\"5% для ТС до 50 млн;\n8% для ТС свыше 50 млн\",8%))","v":0.08}]
[null,{"$f":"IF(G23=M49,\"АО «Страховая компания «Nomad Insurance»  Рейтинг (BB-) от S&P Global Ratings\",\"АО «Страховая компания «Amanat»  Рейтинг (B+) от S&P Global Ratings\")","v":"АО «Страховая компания «Nomad Insurance»  Рейтинг (BB-) от S&P Global Ratings"}]

{"sheet":"ДЦ","index":2,"n_rows":34,"n_cols":7,"rows_kept":34,"cut":false,"hidden":true,"merged":[]}
[null,"Наименование","пв","Бизнес направление","Является дилерским центром","Системный","Город"]
[null,"Almaty Motors Premium ",{"$f":"IF(AND('Исходные данные'!$C$10='Исходные данные'!$M$36,'Исходные данные'!$C$23<'Исходные данные'!$D$24),10%,IF('Исходные данные'!$C$23>'Исходные данные'!$D$24,30%,20%))","v":0.2},"B2C","Да","Да","Алматы"]
[null,"Astana Motor Astana ",{"$f":"IF(AND('Исходные данные'!$C$10='Исходные данные'!$M$36,'Исходные данные'!$C$23<'Исходные данные'!$D$24),10%,IF('Исходные данные'!$C$23>'Исходные данные'!$D$24,30%,20%))","v":0.2},"B2C","Да","Да","Астана"]
[null,"Astana Motors Almaty ",{"$f":"IF(AND('Исходные данные'!$C$10='Исходные данные'!$M$36,'Исходные данные'!$C$23<'Исходные данные'!$D$24),10%,IF('Исходные данные'!$C$23>'Исходные данные'!$D$24,30%,20%))","v":0.2},"B2C","Да","Да","Алматы"]
[null,"Astana Motors Kokshetau ",{"$f":"IF(AND('Исходные данные'!$C$10='Исходные данные'!$M$36,'Исходные данные'!$C$23<'Исходные данные'!$D$24),10%,IF('Исходные данные'!$C$23>'Исходные данные'!$D$24,30%,20%))","v":0.2},"B2C","Да","Да","Кокшетау"]
[null,"Astana Motors Premium ",{"$f":"IF(AND('Исходные данные'!$C$10='Исходные данные'!$M$36,'Исходные данные'!$C$23<'Исходные данные'!$D$24),10%,IF('Исходные данные'!$C$23>'Исходные данные'!$D$24,30%,20%))","v":0.2},"B2C","Да","Да","Астана"]
[null,"Astana Motors Qabanbai ",{"$f":"IF(AND('Исходные данные'!$C$10='Исходные данные'!$M$36,'Исходные данные'!$C$23<'Исходные данные'!$D$24),10%,IF('Исходные данные'!$C$23>'Исходные данные'!$D$24,30%,20%))","v":0.2},"B2C","Да","Да","Астана"]
[null,"Astana Motors Raiymbek ",{"$f":"IF(AND('Исходные данные'!$C$10='Исходные данные'!$M$36,'Исходные данные'!$C$23<'Исходные данные'!$D$24),10%,IF('Исходные данные'!$C$23>'Исходные данные'!$D$24,30%,20%))","v":0.2},"B2C","Да","Да","Алматы"]
[null,"Astana Motors Shymkent ",{"$f":"IF(AND('Исходные данные'!$C$10='Исходные данные'!$M$36,'Исходные данные'!$C$23<'Исходные данные'!$D$24),10%,IF('Исходные данные'!$C$23>'Исходные данные'!$D$24,30%,20%))","v":0.2},"B2C","Да","Да","Шымкент"]
[null,"Auto Center Astana Motor ",{"$f":"IF(AND('Исходные данные'!$C$10='Исходные данные'!$M$36,'Исходные данные'!$C$23<'Исходные данные'!$D$24),10%,IF('Исходные данные'!$C$23>'Исходные данные'!$D$24,30%,20%))","v":0.2},"B2C","Да","Да","Астана"]
[null,"First Motor Group ",{"$f":"IF(AND('Исходные данные'!$C$10='Исходные данные'!$M$36,'Исходные данные'!$C$23<'Исходные данные'!$D$24),10%,IF('Исходные данные'!$C$23>'Исходные данные'!$D$24,30%,20%))","v":0.2},"B2C","Да","Да","Алматы"]
[null,"Hyundai Auto Almaty ",{"$f":"IF(AND('Исходные данные'!$C$10='Исходные данные'!$M$36,'Исходные данные'!$C$23<'Исходные данные'!$D$24),10%,IF('Исходные данные'!$C$23>'Исходные данные'!$D$24,30%,20%))","v":0.2},"B2C","Да","Да","Алматы"]
[null,"Hyundai Auto Astana ",{"$f":"IF(AND('Исходные данные'!$C$10='Исходные данные'!$M$36,'Исходные данные'!$C$23<'Исходные данные'!$D$24),10%,IF('Исходные данные'!$C$23>'Исходные данные'!$D$24,30%,20%))","v":0.2},"B2C","Да","Да","Астана"]
[null,"Hyundai Auto Kazakhstan ",{"$f":"IF(AND('Исходные данные'!$C$10='Исходные данные'!$M$36,'Исходные данные'!$C$23<'Исходные данные'!$D$24),10%,IF('Исходные данные'!$C$23>'Исходные данные'!$D$24,30%,20%))","v":0.2},"B2C","Нет","Да","Алматы"]
[null,"Hyundai Auto Kostanai ",{"$f":"IF(AND('Исходные данные'!$C$10='Исходные данные'!$M$36,'Исходные данные'!$C$23<'Исходные данные'!$D$24),10%,IF('Исходные данные'!$C$23>'Исходные данные'!$D$24,30%,20%))","v":0.2},"B2C","Да","Да","Костанай"]
[null,"Hyundai Premium Almaty ",{"$f":"IF(AND('Исходные данные'!$C$10='Исходные данные'!$M$36,'Исходные данные'!$C$23<'Исходные данные'!$D$24),10%,IF('Исходные данные'!$C$23>'Исходные данные'!$D$24,30%,20%))","v":0.2},"B2C","Да","Да","Алматы"]
[null,"Hyundai Premium Astana ",{"$f":"IF(AND('Исходные данные'!$C$10='Исходные данные'!$M$36,'Исходные данные'!$C$23<'Исходные данные'!$D$24),10%,IF('Исходные данные'!$C$23>'Исходные данные'!$D$24,30%,20%))","v":0.2},"B2C","Да","Да","Астана"]
[null,"Hyundai Premium Atyrau ",{"$f":"IF(AND('Исходные данные'!$C$10='Исходные данные'!$M$36,'Исходные данные'!$C$23<'Исходные данные'!$D$24),10%,IF('Исходные данные'!$C$23>'Исходные данные'!$D$24,30%,20%))","v":0.2},"B2C","Да","Да","Атырау"]
[null,"Hyundai Premium Batys ",{"$f":"IF(AND('Исходные данные'!$C$10='Исходные данные'!$M$36,'Исходные данные'!$C$23<'Исходные данные'!$D$24),10%,IF('Исходные данные'!$C$23>'Исходные данные'!$D$24,30%,20%))","v":0.2},"B2C","Да","Да","Алматы"]
[null,"Hyundai Premium Karaganda ",{"$f":"IF(AND('Исходные данные'!$C$10='Исходные данные'!$M$36,'Исходные данные'!$C$23<'Исходные данные'!$D$24),10%,IF('Исходные данные'!$C$23>'Исходные данные'!$D$24,30%,20%))","v":0.2},"B2C","Да","Да","Караганда"]
[null,"Hyundai Premium Kostanai ",{"$f":"IF(AND('Исходные данные'!$C$10='Исходные данные'!$M$36,'Исходные данные'!$C$23<'Исходные данные'!$D$24),10%,IF('Исходные данные'!$C$23>'Исходные данные'!$D$24,30%,20%))","v":0.2},"B2C","Да","Да","Костанай"]
[null,"Hyundai Premium Shymkent ",{"$f":"IF(AND('Исходные данные'!$C$10='Исходные данные'!$M$36,'Исходные данные'!$C$23<'Исходные данные'!$D$24),10%,IF('Исходные данные'!$C$23>'Исходные данные'!$D$24,30%,20%))","v":0.2},"B2C","Да","Да","Шымкент"]
[null,"MyCar Aktau ",{"$f":"IF(AND('Исходные данные'!$C$10='Исходные данные'!$M$36,'Исходные данные'!$C$23<'Исходные данные'!$D$24),10%,IF('Исходные данные'!$C$23>'Исходные данные'!$D$24,30%,20%))","v":0.2},"B2C","Да","да франшиза","Актау"]
[null,"MyCar Almaty ",{"$f":"IF(AND('Исходные данные'!$C$10='Исходные данные'!$M$36,'Исходные данные'!$C$23<'Исходные данные'!$D$24),10%,IF('Исходные данные'!$C$23>'Исходные данные'!$D$24,30%,20%))","v":0.2},"B2C","Да","Да","Алматы"]
[null,"MyCar Astana ",{"$f":"IF(AND('Исходные данные'!$C$10='Исходные данные'!$M$36,'Исходные данные'!$C$23<'Исходные данные'!$D$24),10%,IF('Исходные данные'!$C$23>'Исходные данные'!$D$24,30%,20%))","v":0.2},"B2C","Да","Да","Астана"]
[null,"MyCar Group",{"$f":"IF(AND('Исходные данные'!$C$10='Исходные данные'!$M$36,'Исходные данные'!$C$23<'Исходные данные'!$D$24),10%,IF('Исходные данные'!$C$23>'Исходные данные'!$D$24,30%,20%))","v":0.2},"B2C","Да","Да","Алматы"]
[null,"MyCar Raiymbek ",{"$f":"IF(AND('Исходные данные'!$C$10='Исходные данные'!$M$36,'Исходные данные'!$C$23<'Исходные данные'!$D$24),10%,IF('Исходные данные'!$C$23>'Исходные данные'!$D$24,30%,20%))","v":0.2},"B2C","Да","Да","Алматы"]
[null,"Premium Auto Almaty ",{"$f":"IF(AND('Исходные данные'!$C$10='Исходные данные'!$M$36,'Исходные данные'!$C$23<'Исходные данные'!$D$24),10%,IF('Исходные данные'!$C$23>'Исходные данные'!$D$24,30%,20%))","v":0.2},"B2C","Да","Да","Алматы"]
[null,"Scandinavian Motors ",{"$f":"IF(AND('Исходные данные'!$C$10='Исходные данные'!$M$36,'Исходные данные'!$C$23<'Исходные данные'!$D$24),10%,IF('Исходные данные'!$C$23>'Исходные данные'!$D$24,30%,20%))","v":0.2},"B2C","Да","Да","Алматы"]
[null,"Subaru Motor Almaty ",{"$f":"IF(AND('Исходные данные'!$C$10='Исходные данные'!$M$36,'Исходные данные'!$C$23<'Исходные данные'!$D$24),10%,IF('Исходные данные'!$C$23>'Исходные данные'!$D$24,30%,20%))","v":0.2},"B2C","Да","Да","Алматы"]
[null,"Subaru Motor Astana ",{"$f":"IF(AND('Исходные данные'!$C$10='Исходные данные'!$M$36,'Исходные данные'!$C$23<'Исходные данные'!$D$24),10%,IF('Исходные данные'!$C$23>'Исходные данные'!$D$24,30%,20%))","v":0.2},"B2C","Да","Да","Астана"]
[null,"West Auto Union  ",{"$f":"IF(AND('Исходные данные'!$C$10='Исходные данные'!$M$36,'Исходные данные'!$C$23<'Исходные данные'!$D$24),10%,IF('Исходные данные'!$C$23>'Исходные данные'!$D$24,30%,20%))","v":0.2},"B2C","Да","да франшиза","Уральск"]
[null,"Торговый Дом АВТОЦЕНТР - БАВАРИЯ ",{"$f":"IF(AND('Исходные данные'!$C$10='Исходные данные'!$M$36,'Исходные данные'!$C$23<'Исходные данные'!$D$24),10%,IF('Исходные данные'!$C$23>'Исходные данные'!$D$24,30%,20%))","v":0.2},"B2C","Да","Да","Алматы"]
[null,"Прочие                    (несистемные)",{"$f":"IF('Исходные данные'!$C$23>'Исходные данные'!$D$24,40%,35%)","v":0.35}]

{"sheet":"График Classic NEW","index":3,"n_rows":138,"n_cols":12,"rows_kept":138,"cut":false,"hidden":false,"merged":[[11,4,11,5],[11,10,11,11],[12,4,12,5],[12,10,12,11],[14,1,14,5],[14,7,14,11]]}
[null,120,{"$f":"'Исходные данные'!L36","v":0.215}]
[null,84,{"$f":"'Исходные данные'!I41","v":0}]
[null,72,{"$f":"'Исходные данные'!H41","v":0}]
[null,60,{"$f":"'Исходные данные'!G41","v":0}]
[null,48,{"$f":"'Исходные данные'!F41","v":0}]
[null,36,{"$f":"'Исходные данные'!E41","v":0}]
[null,24,{"$f":"'Исходные данные'!D41","v":0}]
[null,12,{"$f":"'Исходные данные'!C41","v":0.25}]
[null,"Сумма кредита",{"$f":"'Исходные данные'!C33","v":"исправьте ошибки"}]
[null,"срок кредита",84]
[null,"Ставка",{"$f":"IFERROR(VLOOKUP(C10,B1:D8,2,FALSE),\"исправьте срок\")","v":0}]
[null,null,null,null,"Итого вознаграждение",null,null,null,null,null,"Итого вознаграждение"]
[null,null,null,null,{"$f":"SUM(E19:E138)","v":{"$error":"#VALUE!"}},null,null,null,null,null,{"$f":"SUM(K19:K138)","v":{"$error":"#VALUE!"}}]
[]
[null,"Предварительный график аннуитетных платежей",null,null,null,null,null,"Предварительный график дифференцированных платежей"]
[]
[null,"период","остаток ОД","оплата ОД","оплата %%","платеж",null,"период","остаток ОД","оплата ОД","оплата %%","платеж"]
[null,null,{"$f":"C9","v":"исправьте ошибки"},null,null,null,null,null,{"$f":"C9","v":"исправьте ошибки"}]
[1,{"$f":"IF(A19<=$C$10,A19,\" \")","v":1},{"$f":"IF(B19=A19,C18-D19,\" \")","v":{"$error":"#VALUE!"}},{"$f":"IF(B19=A19,F19-E19,\" \")","v":{"$error":"#VALUE!"}},{"$f":"IF(B19=A19,C18*$C$11/12,\" \")","v":{"$error":"#VALUE!"}},{"$f":"IF(B19=A19,-PMT($C$11/12,$C$10,$C$9),\" \")","v":{"$error":"#VALUE!"}},null,{"$f":"IF(A19<=$C$10,A19,\" \")","v":1},{"$f":"IF(H19=A19,I18-J19,\" \")","v":{"$error":"#VALUE!"}},{"$f":"IF(H19=A19,$I$18/$C$10,\" \")","v":{"$error":"#VALUE!"}},{"$f":"IF(H19=A19,I18*$C$11/12,\" \")","v":{"$error":"#VALUE!"}},{"$f":"IF(H19=A19,J19+K19,\" \")","v":{"$error":"#VALUE!"}}]
[2,2,{"$f":"IF(B20=A20,C19-D20,\" \")","v":{"$error":"#VALUE!"}},{"$f":"IF(B20=A20,F20-E20,\" \")","v":{"$error":"#VALUE!"}},{"$f":"IF(B20=A20,C19*$C$11/12,\" \")","v":{"$error":"#VALUE!"}},{"$f":"IF(B20=A20,-PMT($C$11/12,$C$10,$C$9),\" \")","v":{"$error":"#VALUE!"}},null,2,{"$error":"#VALUE!"},{"$error":"#VALUE!"},{"$error":"#VALUE!"},{"$f":"IF(H20=A20,J20+K20,\" \")","v":{"$error":"#VALUE!"}}]
[3,3,{"$error":"#VALUE!"},{"$error":"#VALUE!"},{"$error":"#VALUE!"},{"$error":"#VALUE!"},null,3,{"$error":"#VALUE!"},{"$error":"#VALUE!"},{"$error":"#VALUE!"},{"$error":"#VALUE!"}]
[4,4,{"$error":"#VALUE!"},{"$error":"#VALUE!"},{"$error":"#VALUE!"},{"$error":"#VALUE!"},null,4,{"$error":"#VALUE!"},{"$error":"#VALUE!"},{"$error":"#VALUE!"},{"$error":"#VALUE!"}]
[5,5,{"$error":"#VALUE!"},{"$error":"#VALUE!"},{"$error":"#VALUE!"},{"$error":"#VALUE!"},null,5,{"$error":"#VALUE!"},{"$error":"#VALUE!"},{"$error":"#VALUE!"},{"$error":"#VALUE!"}]
[6,6,{"$error":"#VALUE!"},{"$error":"#VALUE!"},{"$error":"#VALUE!"},{"$error":"#VALUE!"},null,6,{"$error":"#VALUE!"},{"$error":"#VALUE!"},{"$error":"#VALUE!"},{"$error":"#VALUE!"}]
[7,7,{"$error":"#VALUE!"},{"$error":"#VALUE!"},{"$error":"#VALUE!"},{"$error":"#VALUE!"},null,7,{"$error":"#VALUE!"},{"$error":"#VALUE!"},{"$error":"#VALUE!"},{"$error":"#VALUE!"}]
[8,8,{"$error":"#VALUE!"},{"$error":"#VALUE!"},{"$error":"#VALUE!"},{"$error":"#VALUE!"},null,8,{"$error":"#VALUE!"},{"$error":"#VALUE!"},{"$error":"#VALUE!"},{"$error":"#VALUE!"}]
[9,9,{"$error":"#VALUE!"},{"$error":"#VALUE!"},{"$error":"#VALUE!"},{"$error":"#VALUE!"},null,9,{"$error":"#VALUE!"},{"$error":"#VALUE!"},{"$error":"#VALUE!"},{"$error":"#VALUE!"}]
[10,10,{"$error":"#VALUE!"},{"$error":"#VALUE!"},{"$error":"#VALUE!"},{"$error":"#VALUE!"},null,10,{"$error":"#VALUE!"},{"$error":"#VALUE!"},{"$error":"#VALUE!"},{"$error":"#VALUE!"}]
[11,11,{"$error":"#VALUE!"},{"$error":"#VALUE!"},{"$error":"#VALUE!"},{"$error":"#VALUE!"},null,11,{"$error":"#VALUE!"},{"$error":"#VALUE!"},{"$error":"#VALUE!"},{"$error":"#VALUE!"}]
[12,12,{"$error":"#VALUE!"},{"$error":"#VALUE!"},{"$error":"#VALUE!"},{"$error":"#VALUE!"},null,12,{"$error":"#VALUE!"},{"$error":"#VALUE!"},{"$error":"#VALUE!"},{"$f":"IF(H30=A30,J30+K30,\" \")","v":{"$error":"#VALUE!"}}]
[13,13,{"$error":"#VALUE!"},{"$f":"IF(B31=A31,F31-E31,\" \")","v":{"$error":"#VALUE!"}},{"$f":"IF(B31=A31,C30*$C$11/12,\" \")","v":{"$error":"#VALUE!"}},{"$f":"IF(B31=A31,-PMT($C$11/12,$C$10,$C$9),\" \")","v":{"$error":"#VALUE!"}},null,13,{"$error":"#VALUE!"},{"$error":"#VALUE!"},{"$error":"#VALUE!"},{"$error":"#VALUE!"}]
[14,14,{"$error":"#VALUE!"},{"$f":"IF(B32=A32,F32-E32,\" \")","v":{"$error":"#VALUE!"}},{"$f":"IF(B32=A32,C31*$C$11/12,\" \")","v":{"$error":"#VALUE!"}},{"$f":"IF(B32=A32,-PMT($C$11/12,$C$10,$C$9),\" \")","v":{"$error":"#VALUE!"}},null,14,{"$error":"#VALUE!"},{"$error":"#VALUE!"},{"$error":"#VALUE!"},{"$error":"#VALUE!"}]
[15,15,{"$error":"#VALUE!"},{"$error":"#VALUE!"},{"$error":"#VALUE!"},{"$error":"#VALUE!"},null,15,{"$error":"#VALUE!"},{"$error":"#VALUE!"},{"$error":"#VALUE!"},{"$error":"#VALUE!"}]
[16,16,{"$error":"#VALUE!"},{"$error":"#VALUE!"},{"$error":"#VALUE!"},{"$error":"#VALUE!"},null,16,{"$error":"#VALUE!"},{"$error":"#VALUE!"},{"$error":"#VALUE!"},{"$error":"#VALUE!"}]
[17,17,{"$error":"#VALUE!"},{"$error":"#VALUE!"},{"$error":"#VALUE!"},{"$error":"#VALUE!"},null,17,{"$error":"#VALUE!"},{"$error":"#VALUE!"},{"$error":"#VALUE!"},{"$error":"#VALUE!"}]
[18,18,{"$error":"#VALUE!"},{"$error":"#VALUE!"},{"$error":"#VALUE!"},{"$error":"#VALUE!"},null,18,{"$error":"#VALUE!"},{"$error":"#VALUE!"},{"$error":"#VALUE!"},{"$error":"#VALUE!"}]
[19,19,{"$error":"#VALUE!"},{"$error":"#VALUE!"},{"$error":"#VALUE!"},{"$error":"#VALUE!"},null,19,{"$error":"#VALUE!"},{"$error":"#VALUE!"},{"$error":"#VALUE!"},{"$error":"#VALUE!"}]
[20,20,{"$error":"#VALUE!"},{"$error":"#VALUE!"},{"$error":"#VALUE!"},{"$error":"#VALUE!"},null,20,{"$error":"#VALUE!"},{"$error":"#VALUE!"},{"$error":"#VALUE!"},{"$error":"#VALUE!"}]
[21,21,{"$error":"#VALUE!"},{"$error":"#VALUE!"},{"$error":"#VALUE!"},{"$error":"#VALUE!"},null,21,{"$error":"#VALUE!"},{"$error":"#VALUE!"},{"$error":"#VALUE!"},{"$error":"#VALUE!"}]
[22,22,{"$error":"#VALUE!"},{"$error":"#VALUE!"},{"$error":"#VALUE!"},{"$error":"#VALUE!"},null,22,{"$error":"#VALUE!"},{"$error":"#VALUE!"},{"$error":"#VALUE!"},{"$error":"#VALUE!"}]
[23,23,{"$error":"#VALUE!"},{"$error":"#VALUE!"},{"$error":"#VALUE!"},{"$error":"#VALUE!"},null,23,{"$error":"#VALUE!"},{"$error":"#VALUE!"},{"$error":"#VALUE!"},{"$error":"#VALUE!"}]
[24,24,{"$error":"#VALUE!"},{"$error":"#VALUE!"},{"$error":"#VALUE!"},{"$error":"#VALUE!"},null,24,{"$error":"#VALUE!"},{"$error":"#VALUE!"},{"$error":"#VALUE!"},{"$error":"#VALUE!"}]
[25,25,{"$error":"#VALUE!"},{"$error":"#VALUE!"},{"$error":"#VALUE!"},{"$error":"#VALUE!"},null,25,{"$error":"#VALUE!"},{"$error":"#VALUE!"},{"$error":"#VALUE!"},{"$error":"#VALUE!"}]
[26,26,{"$error":"#VALUE!"},{"$error":"#VALUE!"},{"$error":"#VALUE!"},{"$error":"#VALUE!"},null,26,{"$error":"#VALUE!"},{"$error":"#VALUE!"},{"$error":"#VALUE!"},{"$error":"#VALUE!"}]
[27,27,{"$error":"#VALUE!"},{"$error":"#VALUE!"},{"$error":"#VALUE!"},{"$error":"#VALUE!"},null,27,{"$error":"#VALUE!"},{"$error":"#VALUE!"},{"$error":"#VALUE!"},{"$error":"#VALUE!"}]
[28,28,{"$error":"#VALUE!"},{"$error":"#VALUE!"},{"$error":"#VALUE!"},{"$error":"#VALUE!"},null,28,{"$error":"#VALUE!"},{"$error":"#VALUE!"},{"$error":"#VALUE!"},{"$error":"#VALUE!"}]
[29,29,{"$error":"#VALUE!"},{"$error":"#VALUE!"},{"$error":"#VALUE!"},{"$error":"#VALUE!"},null,29,{"$error":"#VALUE!"},{"$error":"#VALUE!"},{"$error":"#VALUE!"},{"$error":"#VALUE!"}]
[30,30,{"$error":"#VALUE!"},{"$error":"#VALUE!"},{"$error":"#VALUE!"},{"$error":"#VALUE!"},null,30,{"$error":"#VALUE!"},{"$error":"#VALUE!"},{"$error":"#VALUE!"},{"$error":"#VALUE!"}]
[31,31,{"$error":"#VALUE!"},{"$error":"#VALUE!"},{"$error":"#VALUE!"},{"$error":"#VALUE!"},null,31,{"$error":"#VALUE!"},{"$error":"#VALUE!"},{"$error":"#VALUE!"},{"$error":"#VALUE!"}]
[32,32,{"$error":"#VALUE!"},{"$error":"#VALUE!"},{"$error":"#VALUE!"},{"$error":"#VALUE!"},null,32,{"$error":"#VALUE!"},{"$error":"#VALUE!"},{"$error":"#VALUE!"},{"$error":"#VALUE!"}]
[33,33,{"$error":"#VALUE!"},{"$error":"#VALUE!"},{"$error":"#VALUE!"},{"$error":"#VALUE!"},null,33,{"$error":"#VALUE!"},{"$error":"#VALUE!"},{"$error":"#VALUE!"},{"$error":"#VALUE!"}]
[34,34,{"$error":"#VALUE!"},{"$error":"#VALUE!"},{"$error":"#VALUE!"},{"$error":"#VALUE!"},null,34,{"$error":"#VALUE!"},{"$error":"#VALUE!"},{"$error":"#VALUE!"},{"$error":"#VALUE!"}]
[35,35,{"$error":"#VALUE!"},{"$error":"#VALUE!"},{"$error":"#VALUE!"},{"$error":"#VALUE!"},null,35,{"$error":"#VALUE!"},{"$error":"#VALUE!"},{"$error":"#VALUE!"},{"$error":"#VALUE!"}]
[36,36,{"$error":"#VALUE!"},{"$error":"#VALUE!"},{"$error":"#VALUE!"},{"$error":"#VALUE!"},null,36,{"$error":"#VALUE!"},{"$error":"#VALUE!"},{"$error":"#VALUE!"},{"$error":"#VALUE!"}]
[37,37,{"$error":"#VALUE!"},{"$error":"#VALUE!"},{"$error":"#VALUE!"},{"$error":"#VALUE!"},null,37,{"$error":"#VALUE!"},{"$error":"#VALUE!"},{"$error":"#VALUE!"},{"$error":"#VALUE!"}]
[38,38,{"$error":"#VALUE!"},{"$error":"#VALUE!"},{"$error":"#VALUE!"},{"$error":"#VALUE!"},null,38,{"$error":"#VALUE!"},{"$error":"#VALUE!"},{"$error":"#VALUE!"},{"$error":"#VALUE!"}]
[39,39,{"$error":"#VALUE!"},{"$error":"#VALUE!"},{"$error":"#VALUE!"},{"$error":"#VALUE!"},null,39,{"$error":"#VALUE!"},{"$error":"#VALUE!"},{"$error":"#VALUE!"},{"$error":"#VALUE!"}]
[40,40,{"$error":"#VALUE!"},{"$error":"#VALUE!"},{"$error":"#VALUE!"},{"$error":"#VALUE!"},null,40,{"$error":"#VALUE!"},{"$error":"#VALUE!"},{"$error":"#VALUE!"},{"$error":"#VALUE!"}]
[41,41,{"$error":"#VALUE!"},{"$error":"#VALUE!"},{"$error":"#VALUE!"},{"$error":"#VALUE!"},null,41,{"$error":"#VALUE!"},{"$error":"#VALUE!"},{"$error":"#VALUE!"},{"$error":"#VALUE!"}]
[42,42,{"$error":"#VALUE!"},{"$error":"#VALUE!"},{"$error":"#VALUE!"},{"$error":"#VALUE!"},null,42,{"$error":"#VALUE!"},{"$error":"#VALUE!"},{"$error":"#VALUE!"},{"$error":"#VALUE!"}]
[43,43,{"$error":"#VALUE!"},{"$error":"#VALUE!"},{"$error":"#VALUE!"},{"$error":"#VALUE!"},null,43,{"$error":"#VALUE!"},{"$error":"#VALUE!"},{"$error":"#VALUE!"},{"$error":"#VALUE!"}]
[44,44,{"$error":"#VALUE!"},{"$error":"#VALUE!"},{"$error":"#VALUE!"},{"$error":"#VALUE!"},null,44,{"$error":"#VALUE!"},{"$error":"#VALUE!"},{"$error":"#VALUE!"},{"$error":"#VALUE!"}]
[45,45,{"$error":"#VALUE!"},{"$error":"#VALUE!"},{"$error":"#VALUE!"},{"$error":"#VALUE!"},null,45,{"$error":"#VALUE!"},{"$error":"#VALUE!"},{"$error":"#VALUE!"},{"$error":"#VALUE!"}]
[46,46,{"$error":"#VALUE!"},{"$error":"#VALUE!"},{"$error":"#VALUE!"},{"$error":"#VALUE!"},null,46,{"$error":"#VALUE!"},{"$error":"#VALUE!"},{"$error":"#VALUE!"},{"$error":"#VALUE!"}]
[47,47,{"$error":"#VALUE!"},{"$error":"#VALUE!"},{"$error":"#VALUE!"},{"$error":"#VALUE!"},null,47,{"$error":"#VALUE!"},{"$error":"#VALUE!"},{"$error":"#VALUE!"},{"$error":"#VALUE!"}]
[48,48,{"$error":"#VALUE!"},{"$error":"#VALUE!"},{"$error":"#VALUE!"},{"$error":"#VALUE!"},null,48,{"$error":"#VALUE!"},{"$error":"#VALUE!"},{"$error":"#VALUE!"},{"$error":"#VALUE!"}]
[49,49,{"$error":"#VALUE!"},{"$error":"#VALUE!"},{"$error":"#VALUE!"},{"$error":"#VALUE!"},null,49,{"$error":"#VALUE!"},{"$error":"#VALUE!"},{"$error":"#VALUE!"},{"$error":"#VALUE!"}]
[50,50,{"$error":"#VALUE!"},{"$error":"#VALUE!"},{"$error":"#VALUE!"},{"$error":"#VALUE!"},null,50,{"$error":"#VALUE!"},{"$error":"#VALUE!"},{"$error":"#VALUE!"},{"$error":"#VALUE!"}]
[51,51,{"$error":"#VALUE!"},{"$error":"#VALUE!"},{"$error":"#VALUE!"},{"$error":"#VALUE!"},null,51,{"$error":"#VALUE!"},{"$error":"#VALUE!"},{"$error":"#VALUE!"},{"$error":"#VALUE!"}]
[52,52,{"$error":"#VALUE!"},{"$error":"#VALUE!"},{"$error":"#VALUE!"},{"$error":"#VALUE!"},null,52,{"$error":"#VALUE!"},{"$error":"#VALUE!"},{"$error":"#VALUE!"},{"$error":"#VALUE!"}]
[53,53,{"$error":"#VALUE!"},{"$error":"#VALUE!"},{"$error":"#VALUE!"},{"$error":"#VALUE!"},null,53,{"$error":"#VALUE!"},{"$error":"#VALUE!"},{"$error":"#VALUE!"},{"$error":"#VALUE!"}]
[54,54,{"$error":"#VALUE!"},{"$error":"#VALUE!"},{"$error":"#VALUE!"},{"$error":"#VALUE!"},null,54,{"$error":"#VALUE!"},{"$error":"#VALUE!"},{"$error":"#VALUE!"},{"$error":"#VALUE!"}]
[55,55,{"$error":"#VALUE!"},{"$error":"#VALUE!"},{"$error":"#VALUE!"},{"$error":"#VALUE!"},null,55,{"$error":"#VALUE!"},{"$error":"#VALUE!"},{"$error":"#VALUE!"},{"$error":"#VALUE!"}]
[56,56,{"$error":"#VALUE!"},{"$error":"#VALUE!"},{"$error":"#VALUE!"},{"$error":"#VALUE!"},null,56,{"$error":"#VALUE!"},{"$error":"#VALUE!"},{"$error":"#VALUE!"},{"$error":"#VALUE!"}]
[57,57,{"$error":"#VALUE!"},{"$error":"#VALUE!"},{"$error":"#VALUE!"},{"$error":"#VALUE!"},null,57,{"$error":"#VALUE!"},{"$error":"#VALUE!"},{"$error":"#VALUE!"},{"$error":"#VALUE!"}]
[58,58,{"$error":"#VALUE!"},{"$error":"#VALUE!"},{"$error":"#VALUE!"},{"$error":"#VALUE!"},null,58,{"$error":"#VALUE!"},{"$error":"#VALUE!"},{"$error":"#VALUE!"},{"$error":"#VALUE!"}]
[59,59,{"$error":"#VALUE!"},{"$error":"#VALUE!"},{"$error":"#VALUE!"},{"$error":"#VALUE!"},null,59,{"$error":"#VALUE!"},{"$error":"#VALUE!"},{"$error":"#VALUE!"},{"$error":"#VALUE!"}]
[60,60,{"$error":"#VALUE!"},{"$error":"#VALUE!"},{"$error":"#VALUE!"},{"$error":"#VALUE!"},null,60,{"$f":"IF(H78=A78,I77-J78,\" \")","v":{"$error":"#VALUE!"}},{"$error":"#VALUE!"},{"$error":"#VALUE!"},{"$error":"#VALUE!"}]
[61,61,{"$error":"#VALUE!"},{"$error":"#VALUE!"},{"$error":"#VALUE!"},{"$error":"#VALUE!"},null,61,{"$f":"IF(H79=A79,I78-J79,\" \")","v":{"$error":"#VALUE!"}},{"$error":"#VALUE!"},{"$error":"#VALUE!"},{"$error":"#VALUE!"}]
[62,62,{"$error":"#VALUE!"},{"$error":"#VALUE!"},{"$error":"#VALUE!"},{"$error":"#VALUE!"},null,62,{"$error":"#VALUE!"},{"$error":"#VALUE!"},{"$error":"#VALUE!"},{"$error":"#VALUE!"}]
[63,63,{"$error":"#VALUE!"},{"$error":"#VALUE!"},{"$error":"#VALUE!"},{"$error":"#VALUE!"},null,63,{"$error":"#VALUE!"},{"$error":"#VALUE!"},{"$error":"#VALUE!"},{"$error":"#VALUE!"}]
[64,64,{"$error":"#VALUE!"},{"$error":"#VALUE!"},{"$error":"#VALUE!"},{"$error":"#VALUE!"},null,64,{"$error":"#VALUE!"},{"$error":"#VALUE!"},{"$error":"#VALUE!"},{"$error":"#VALUE!"}]
[65,{"$f":"IF(A83<=$C$10,A83,\" \")","v":65},{"$error":"#VALUE!"},{"$error":"#VALUE!"},{"$error":"#VALUE!"},{"$error":"#VALUE!"},null,{"$f":"IF(A83<=$C$10,A83,\" \")","v":65},{"$error":"#VALUE!"},{"$f":"IF(H83=A83,$I$18/$C$10,\" \")","v":{"$error":"#VALUE!"}},{"$f":"IF(H83=A83,I82*$C$11/12,\" \")","v":{"$error":"#VALUE!"}},{"$error":"#VALUE!"}]
[66,66,{"$f":"IF(B84=A84,C83-D84,\" \")","v":{"$error":"#VALUE!"}},{"$error":"#VALUE!"},{"$error":"#VALUE!"},{"$error":"#VALUE!"},null,66,{"$error":"#VALUE!"},{"$error":"#VALUE!"},{"$error":"#VALUE!"},{"$f":"IF(H84=A84,J84+K84,\" \")","v":{"$error":"#VALUE!"}}]
[67,67,{"$error":"#VALUE!"},{"$error":"#VALUE!"},{"$error":"#VALUE!"},{"$error":"#VALUE!"},null,67,{"$error":"#VALUE!"},{"$error":"#VALUE!"},{"$error":"#VALUE!"},{"$error":"#VALUE!"}]
[68,68,{"$error":"#VALUE!"},{"$error":"#VALUE!"},{"$error":"#VALUE!"},{"$error":"#VALUE!"},null,68,{"$error":"#VALUE!"},{"$error":"#VALUE!"},{"$error":"#VALUE!"},{"$error":"#VALUE!"}]
[69,69,{"$error":"#VALUE!"},{"$error":"#VALUE!"},{"$error":"#VALUE!"},{"$error":"#VALUE!"},null,69,{"$error":"#VALUE!"},{"$error":"#VALUE!"},{"$error":"#VALUE!"},{"$error":"#VALUE!"}]
[70,70,{"$error":"#VALUE!"},{"$error":"#VALUE!"},{"$error":"#VALUE!"},{"$error":"#VALUE!"},null,70,{"$error":"#VALUE!"},{"$error":"#VALUE!"},{"$error":"#VALUE!"},{"$error":"#VALUE!"}]
[71,71,{"$error":"#VALUE!"},{"$error":"#VALUE!"},{"$error":"#VALUE!"},{"$error":"#VALUE!"},null,71,{"$error":"#VALUE!"},{"$error":"#VALUE!"},{"$error":"#VALUE!"},{"$error":"#VALUE!"}]
[72,72,{"$error":"#VALUE!"},{"$error":"#VALUE!"},{"$error":"#VALUE!"},{"$error":"#VALUE!"},null,72,{"$error":"#VALUE!"},{"$error":"#VALUE!"},{"$error":"#VALUE!"},{"$error":"#VALUE!"}]
[73,73,{"$error":"#VALUE!"},{"$error":"#VALUE!"},{"$error":"#VALUE!"},{"$error":"#VALUE!"},null,73,{"$error":"#VALUE!"},{"$error":"#VALUE!"},{"$error":"#VALUE!"},{"$error":"#VALUE!"}]
[74,74,{"$error":"#VALUE!"},{"$error":"#VALUE!"},{"$error":"#VALUE!"},{"$error":"#VALUE!"},null,74,{"$error":"#VALUE!"},{"$error":"#VALUE!"},{"$error":"#VALUE!"},{"$error":"#VALUE!"}]
[75,75,{"$error":"#VALUE!"},{"$error":"#VALUE!"},{"$error":"#VALUE!"},{"$error":"#VALUE!"},null,75,{"$error":"#VALUE!"},{"$error":"#VALUE!"},{"$error":"#VALUE!"},{"$error":"#VALUE!"}]
[76,76,{"$error":"#VALUE!"},{"$error":"#VALUE!"},{"$error":"#VALUE!"},{"$error":"#VALUE!"},null,76,{"$error":"#VALUE!"},{"$error":"#VALUE!"},{"$error":"#VALUE!"},{"$error":"#VALUE!"}]
[77,77,{"$error":"#VALUE!"},{"$error":"#VALUE!"},{"$error":"#VALUE!"},{"$error":"#VALUE!"},null,77,{"$error":"#VALUE!"},{"$error":"#VALUE!"},{"$error":"#VALUE!"},{"$error":"#VALUE!"}]
[78,78,{"$error":"#VALUE!"},{"$f":"IF(B96=A96,F96-E96,\" \")","v":{"$error":"#VALUE!"}},{"$f":"IF(B96=A96,C95*$C$11/12,\" \")","v":{"$error":"#VALUE!"}},{"$f":"IF(B96=A96,-PMT($C$11/12,$C$10,$C$9),\" \")","v":{"$error":"#VALUE!"}},null,78,{"$error":"#VALUE!"},{"$error":"#VALUE!"},{"$error":"#VALUE!"},{"$error":"#VALUE!"}]
[79,79,{"$error":"#VALUE!"},{"$error":"#VALUE!"},{"$error":"#VALUE!"},{"$error":"#VALUE!"},null,79,{"$error":"#VALUE!"},{"$error":"#VALUE!"},{"$error":"#VALUE!"},{"$error":"#VALUE!"}]
[80,80,{"$error":"#VALUE!"},{"$error":"#VALUE!"},{"$error":"#VALUE!"},{"$error":"#VALUE!"},null,80,{"$error":"#VALUE!"},{"$error":"#VALUE!"},{"$error":"#VALUE!"},{"$error":"#VALUE!"}]
[81,81,{"$error":"#VALUE!"},{"$error":"#VALUE!"},{"$error":"#VALUE!"},{"$error":"#VALUE!"},null,81,{"$error":"#VALUE!"},{"$error":"#VALUE!"},{"$error":"#VALUE!"},{"$error":"#VALUE!"}]
[82,82,{"$error":"#VALUE!"},{"$error":"#VALUE!"},{"$error":"#VALUE!"},{"$error":"#VALUE!"},null,82,{"$error":"#VALUE!"},{"$error":"#VALUE!"},{"$error":"#VALUE!"},{"$error":"#VALUE!"}]
[83,83,{"$error":"#VALUE!"},{"$error":"#VALUE!"},{"$error":"#VALUE!"},{"$error":"#VALUE!"},null,83,{"$error":"#VALUE!"},{"$error":"#VALUE!"},{"$error":"#VALUE!"},{"$error":"#VALUE!"}]
[84,84,{"$error":"#VALUE!"},{"$error":"#VALUE!"},{"$error":"#VALUE!"},{"$error":"#VALUE!"},null,84,{"$error":"#VALUE!"},{"$error":"#VALUE!"},{"$error":"#VALUE!"},{"$f":"IF(H102=A102,J102+K102,\" \")","v":{"$error":"#VALUE!"}}]
[85," "," "," "," "," ",null," "," "," "," ",{"$f":"IF(H103=A103,J103+K103,\" \")","v":" "}]
[86," "," "," "," "," ",null," "," "," "," "," "]
[87," "," "," "," "," ",null," "," "," "," "," "]
[88," "," "," "," "," ",null," "," "," "," "," "]
[89," "," "," "," "," ",null," "," "," "," "," "]
[90," "," "," "," "," ",null," "," "," "," "," "]
[91," "," "," "," "," ",null," "," "," "," "," "]
[92," "," "," "," "," ",null," "," "," "," "," "]
[93," "," "," "," "," ",null," "," "," "," "," "]
[94," "," "," "," "," ",null," "," "," "," "," "]
[95," "," "," "," "," ",null," "," "," "," "," "]
[96," "," "," "," "," ",null," "," "," "," "," "]
[97," "," "," "," "," ",null," "," "," "," "," "]
[98," "," "," "," "," ",null," "," "," "," "," "]
[99," "," "," "," "," ",null," "," "," "," "," "]
[100," "," "," "," "," ",null," "," "," "," "," "]
[101," "," "," "," "," ",null," "," "," "," "," "]
[102," "," "," "," "," ",null," "," "," "," "," "]
[103," "," "," "," "," ",null," "," "," "," "," "]
[104," "," "," "," "," ",null," "," "," "," "," "]
[105," "," "," "," "," ",null," "," "," "," "," "]
[106," "," "," "," "," ",null," "," "," "," "," "]
[107," "," "," "," "," ",null," "," "," "," "," "]
[108," "," "," "," "," ",null," "," "," "," "," "]
[109," "," "," "," "," ",null," "," "," "," "," "]
[110," "," "," "," "," ",null," "," "," "," "," "]
[111," "," "," "," "," ",null," "," "," "," "," "]
[112," "," "," "," "," ",null," "," "," "," "," "]
[113," "," "," "," "," ",null," "," "," "," "," "]
[114," "," "," "," "," ",null," "," "," "," "," "]
[115," "," "," "," "," ",null," "," "," "," "," "]
[116," "," "," "," "," ",null," "," "," "," "," "]
[117," ",{"$f":"IF(B135=A135,C134-D135,\" \")","v":" "}," "," "," ",null," "," "," "," "," "]
[118," "," "," "," "," ",null," "," "," "," "," "]
[119," "," "," "," "," ",null," "," "," "," "," "]
[120," "," "," "," "," ",null," "," "," "," "," "]

{"sheet":"График Light +","index":4,"n_rows":99,"n_cols":10,"rows_kept":99,"cut":false,"hidden":true,"merged":[[8,4,8,5],[9,4,9,5],[11,1,11,5],[11,7,11,9]]}
[null,12,{"$f":"'Исходные данные'!C41","v":0.25}]
[null,24,{"$f":"'Исходные данные'!D41","v":0}]
[null,36,{"$f":"'Исходные данные'!E41","v":0}]
[null,48,{"$f":"'Исходные данные'!F41","v":0}]
[null,60,{"$f":"'Исходные данные'!G41","v":0}]
[null,"Сумма кредита",{"$f":"'Исходные данные'!C33","v":"исправьте ошибки"}]
[null,"срок кредита",36]
[null,"Ставка",{"$f":"VLOOKUP(C7,B3:C5,2)","v":0}]
[null,null,null,null,"Итого вознаграждение",null,null,0.215,{"$f":"-PMT(H9/12,$C$7-24,C39)","v":{"$error":"#VALUE!"}},"3 год"]
[null,null,null,null,{"$f":"SUM(E16:E51)","v":{"$error":"#VALUE!"}}]
[]
[null,"Предварительный график аннуитетных платежей"]
[]
[null,"период","остаток ОД","оплата ОД","оплата %%","платеж"]
[null,null,{"$f":"C6","v":"исправьте ошибки"}]
[1,{"$f":"IF(A16<=$C$7,A16,\" \")","v":1},{"$f":"IF(B16=A16,C15-D16,\" \")","v":{"$error":"#VALUE!"}},{"$f":"F16-E16","v":{"$error":"#VALUE!"}},{"$f":"C15*$C$8/12","v":{"$error":"#VALUE!"}},{"$f":"-PMT($C$8/12,24,$C$6*10%)+$C$6*90%*$C$8/12","v":{"$error":"#VALUE!"}}]
[2,2,{"$f":"IF(B17=A17,C16-D17,\" \")","v":{"$error":"#VALUE!"}},{"$f":"F17-E17","v":{"$error":"#VALUE!"}},{"$f":"C16*$C$8/12","v":{"$error":"#VALUE!"}},{"$f":"-PMT($C$8/12,24,$C$6*10%)+$C$6*90%*$C$8/12","v":{"$error":"#VALUE!"}}]
[3,3,{"$error":"#VALUE!"},{"$error":"#VALUE!"},{"$f":"C17*$C$8/12","v":{"$error":"#VALUE!"}},{"$error":"#VALUE!"}]
[4,4,{"$error":"#VALUE!"},{"$error":"#VALUE!"},{"$error":"#VALUE!"},{"$error":"#VALUE!"}]
[5,5,{"$error":"#VALUE!"},{"$error":"#VALUE!"},{"$error":"#VALUE!"},{"$error":"#VALUE!"}]
[6,6,{"$error":"#VALUE!"},{"$error":"#VALUE!"},{"$error":"#VALUE!"},{"$error":"#VALUE!"}]
[7,7,{"$error":"#VALUE!"},{"$error":"#VALUE!"},{"$error":"#VALUE!"},{"$error":"#VALUE!"}]
[8,8,{"$error":"#VALUE!"},{"$error":"#VALUE!"},{"$error":"#VALUE!"},{"$error":"#VALUE!"}]
[9,9,{"$error":"#VALUE!"},{"$error":"#VALUE!"},{"$error":"#VALUE!"},{"$error":"#VALUE!"}]
[10,10,{"$error":"#VALUE!"},{"$error":"#VALUE!"},{"$error":"#VALUE!"},{"$error":"#VALUE!"}]
[11,11,{"$error":"#VALUE!"},{"$error":"#VALUE!"},{"$error":"#VALUE!"},{"$error":"#VALUE!"}]
[12,12,{"$error":"#VALUE!"},{"$error":"#VALUE!"},{"$error":"#VALUE!"},{"$error":"#VALUE!"}]
[13,13,{"$error":"#VALUE!"},{"$error":"#VALUE!"},{"$error":"#VALUE!"},{"$error":"#VALUE!"}]
[14,14,{"$error":"#VALUE!"},{"$error":"#VALUE!"},{"$error":"#VALUE!"},{"$error":"#VALUE!"}]
[15,15,{"$error":"#VALUE!"},{"$error":"#VALUE!"},{"$error":"#VALUE!"},{"$error":"#VALUE!"}]
[16,16,{"$error":"#VALUE!"},{"$error":"#VALUE!"},{"$error":"#VALUE!"},{"$error":"#VALUE!"}]
[17,17,{"$error":"#VALUE!"},{"$error":"#VALUE!"},{"$error":"#VALUE!"},{"$error":"#VALUE!"}]
[18,18,{"$error":"#VALUE!"},{"$error":"#VALUE!"},{"$error":"#VALUE!"},{"$error":"#VALUE!"}]
[19,19,{"$error":"#VALUE!"},{"$error":"#VALUE!"},{"$error":"#VALUE!"},{"$error":"#VALUE!"}]
[20,20,{"$error":"#VALUE!"},{"$error":"#VALUE!"},{"$error":"#VALUE!"},{"$error":"#VALUE!"}]
[21,21,{"$error":"#VALUE!"},{"$error":"#VALUE!"},{"$error":"#VALUE!"},{"$error":"#VALUE!"}]
[22,22,{"$error":"#VALUE!"},{"$error":"#VALUE!"},{"$error":"#VALUE!"},{"$error":"#VALUE!"}]
[23,23,{"$error":"#VALUE!"},{"$error":"#VALUE!"},{"$error":"#VALUE!"},{"$error":"#VALUE!"}]
[24,24,{"$error":"#VALUE!"},{"$error":"#VALUE!"},{"$error":"#VALUE!"},{"$error":"#VALUE!"}]
[25,25,{"$f":"IF(B40=A40,C39-D40,\" \")","v":{"$error":"#VALUE!"}},{"$error":"#VALUE!"},{"$error":"#VALUE!"},{"$f":"-PMT($C$8/12,$C$7-24,C39)","v":{"$error":"#VALUE!"}}]
[26,26,{"$error":"#VALUE!"},{"$error":"#VALUE!"},{"$error":"#VALUE!"},{"$f":"F40","v":{"$error":"#VALUE!"}}]
[27,27,{"$error":"#VALUE!"},{"$error":"#VALUE!"},{"$error":"#VALUE!"},{"$f":"F41","v":{"$error":"#VALUE!"}}]
[28,28,{"$error":"#VALUE!"},{"$error":"#VALUE!"},{"$error":"#VALUE!"},{"$error":"#VALUE!"}]
[29,29,{"$error":"#VALUE!"},{"$error":"#VALUE!"},{"$error":"#VALUE!"},{"$error":"#VALUE!"}]
[30,30,{"$error":"#VALUE!"},{"$error":"#VALUE!"},{"$error":"#VALUE!"},{"$error":"#VALUE!"}]
[31,31,{"$error":"#VALUE!"},{"$error":"#VALUE!"},{"$error":"#VALUE!"},{"$error":"#VALUE!"}]
[32,32,{"$error":"#VALUE!"},{"$error":"#VALUE!"},{"$error":"#VALUE!"},{"$error":"#VALUE!"}]
[33,33,{"$error":"#VALUE!"},{"$error":"#VALUE!"},{"$error":"#VALUE!"},{"$error":"#VALUE!"}]
[34,34,{"$error":"#VALUE!"},{"$error":"#VALUE!"},{"$error":"#VALUE!"},{"$error":"#VALUE!"}]
[35,35,{"$error":"#VALUE!"},{"$error":"#VALUE!"},{"$error":"#VALUE!"},{"$error":"#VALUE!"}]
[36,36,{"$error":"#VALUE!"},{"$error":"#VALUE!"},{"$error":"#VALUE!"},{"$error":"#VALUE!"}]
[37," "," ",{"$f":"IF(B52=A52,F52-E52,\" \")","v":" "},{"$f":"IF(B52=A52,C51*$H$9/12,\" \")","v":" "},{"$error":"#VALUE!"}]
[38," "," "," "," ",{"$error":"#VALUE!"}]
[39," "," "," "," ",{"$error":"#VALUE!"}]
[40," "," "," "," ",{"$error":"#VALUE!"}]
[41," "," "," "," ",{"$error":"#VALUE!"}]
[42," "," "," "," ",{"$error":"#VALUE!"}]
[43," "," "," "," ",{"$error":"#VALUE!"}]
[44," "," "," "," ",{"$error":"#VALUE!"}]
[45," "," "," "," ",{"$error":"#VALUE!"}]
[46," "," "," "," ",{"$error":"#VALUE!"}]
[47," "," "," "," ",{"$error":"#VALUE!"}]
[48," "," "," "," ",{"$error":"#VALUE!"}]
[49," "," "," "," ",{"$error":"#VALUE!"}]
[50," "," "," "," ",{"$error":"#VALUE!"}]
[51," "," "," "," ",{"$error":"#VALUE!"}]
[52," "," "," "," ",{"$error":"#VALUE!"}]
[53," "," "," "," ",{"$error":"#VALUE!"}]
[54," "," "," "," ",{"$error":"#VALUE!"}]
[55," "," "," "," ",{"$error":"#VALUE!"}]
[56," "," "," "," ",{"$error":"#VALUE!"}]
[57," "," "," "," ",{"$error":"#VALUE!"}]
[58," "," "," "," ",{"$error":"#VALUE!"}]
[59," "," "," "," ",{"$error":"#VALUE!"}]
[60," "," "," "," ",{"$error":"#VALUE!"}]
[61," "," "," "," ",{"$f":"IF(A76=B76,$I$9,\" \")","v":" "}]
[62," "," "," "," "," "]
[63," "," "," "," "," "]
[64," "," "," "," "," "]
[65,{"$f":"IF(A80<=$C$7,A80,\" \")","v":" "}," "," "," "," "]
[66," ",{"$f":"IF(B81=A81,C80-D81,\" \")","v":" "}," "," "," "]
[67," "," "," "," "," "]
[68," "," "," "," "," "]
[69," "," "," "," "," "]
[70," "," "," "," "," "]
[71," "," "," "," "," "]
[72," "," "," "," "," "]
[73," "," "," "," "," "]
[74," "," "," "," "," "]
[75," "," "," "," "," "]
[76," "," "," "," "," "]
[77," "," "," "," "," "]
[78," "," "," "," "," "]
[79," "," "," "," "," "]
[80," "," "," "," "," "]
[81," "," "," "," "," "]
[82," "," "," "," "," "]
[83," "," "," "," "," "]
[84," "," "," "," "," "]

{"sheet":"График Senim","index":5,"n_rows":101,"n_cols":6,"rows_kept":101,"cut":false,"hidden":true,"merged":[[10,4,10,5],[11,4,11,5],[13,1,13,5]]}
[null,12,{"$f":"'Исходные данные'!C41","v":0.25}]
[null,null,{"$f":"'Исходные данные'!D41","v":0}]
[null,null,{"$f":"'Исходные данные'!E41","v":0}]
[null,null,{"$f":"'Исходные данные'!F41","v":0}]
[null,null,{"$f":"'Исходные данные'!G41","v":0}]
[null,null,{"$f":"+'Исходные данные'!H41","v":0}]
[null,null,{"$f":"+'Исходные данные'!I41","v":0}]
[]
[null,"Сумма кредита",{"$f":"'Исходные данные'!C33","v":"исправьте ошибки"}]
[null,"срок кредита",12]
[null,"Ставка",{"$f":"VLOOKUP(C10,B1:C7,2,FALSE)","v":0.25},null,"Итого вознаграждение"]
[null,null,null,null,{"$f":"SUM(E18:E29)","v":{"$error":"#VALUE!"}}]
[]
[null,"Предварительный график аннуитетных платежей"]
[]
[null,"период","остаток ОД","оплата ОД","оплата %%","платеж"]
[null,null,{"$f":"C9","v":"исправьте ошибки"}]
[1,{"$f":"IF(A18<=$C$10,A18,\" \")","v":1},{"$f":"IF(B18=A18,C17-D18,\" \")","v":{"$error":"#VALUE!"}},{"$f":"IF(B18=A18,F18-E18,\" \")","v":{"$error":"#VALUE!"}},{"$f":"IF(B18=A18,C17*$C$11/12,\" \")","v":{"$error":"#VALUE!"}},{"$f":"IF(B18=A18,-PMT($C$11/12,$C$10,$C$9)/2,\" \")","v":{"$error":"#VALUE!"}}]
[2,2,{"$f":"IF(B19=A19,C18-D19,\" \")","v":{"$error":"#VALUE!"}},{"$f":"IF(B19=A19,F19-E19,\" \")","v":{"$error":"#VALUE!"}},{"$f":"IF(B19=A19,C18*$C$11/12,\" \")","v":{"$error":"#VALUE!"}},{"$f":"IF(B19=A19,-PMT($C$11/12,$C$10,$C$9)/2,\" \")","v":{"$error":"#VALUE!"}}]
[3,3,{"$error":"#VALUE!"},{"$error":"#VALUE!"},{"$error":"#VALUE!"},{"$error":"#VALUE!"}]
[4,4,{"$error":"#VALUE!"},{"$error":"#VALUE!"},{"$error":"#VALUE!"},{"$error":"#VALUE!"}]
[5,5,{"$error":"#VALUE!"},{"$error":"#VALUE!"},{"$error":"#VALUE!"},{"$error":"#VALUE!"}]
[6,6,{"$error":"#VALUE!"},{"$error":"#VALUE!"},{"$error":"#VALUE!"},{"$error":"#VALUE!"}]
[7,7,{"$error":"#VALUE!"},{"$error":"#VALUE!"},{"$error":"#VALUE!"},{"$error":"#VALUE!"}]
[8,8,{"$error":"#VALUE!"},{"$error":"#VALUE!"},{"$error":"#VALUE!"},{"$error":"#VALUE!"}]
[9,9,{"$error":"#VALUE!"},{"$error":"#VALUE!"},{"$error":"#VALUE!"},{"$error":"#VALUE!"}]
[10,10,{"$error":"#VALUE!"},{"$error":"#VALUE!"},{"$error":"#VALUE!"},{"$error":"#VALUE!"}]
[11,11,{"$error":"#VALUE!"},{"$error":"#VALUE!"},{"$error":"#VALUE!"},{"$error":"#VALUE!"}]
[12,12,{"$error":"#VALUE!"},{"$error":"#VALUE!"},{"$error":"#VALUE!"},{"$error":"#VALUE!"}]
[13,"Последний платеж",{"$f":"C29","v":{"$error":"#VALUE!"}}," ",{"$f":"E29","v":{"$error":"#VALUE!"}},{"$f":"C29+F29","v":{"$error":"#VALUE!"}}]
[14," "," "," "," ",{"$f":"IF(B31=A31,-PMT($C$11/12,$C$10,$C$9),\" \")","v":" "}]
[15," "," "," "," "," "]
[16," "," "," "," "," "]
[17," "," "," "," "," "]
[18," "," "," "," "," "]
[19," "," "," "," "," "]
[20," "," "," "," "," "]
[21," "," "," "," "," "]
[22," "," "," "," "," "]
[23," "," "," "," "," "]
[24," "," "," "," "," "]
[25," "," "," "," "," "]
[26," "," "," "," "," "]
[27," "," "," "," "," "]
[28," "," "," "," "," "]
[29," "," "," "," "," "]
[30," "," "," "," "," "]
[31," "," "," "," "," "]
[32," "," "," "," "," "]
[33," "," "," "," "," "]
[34," "," "," "," "," "]
[35," "," "," "," "," "]
[36," "," "," "," "," "]
[37," "," "," "," "," "]
[38," "," "," "," "," "]
[39," "," "," "," "," "]
[40," "," "," "," "," "]
[41," "," "," "," "," "]
[42," "," "," "," "," "]
[43," "," "," "," "," "]
[44," "," "," "," "," "]
[45," "," "," "," "," "]
[46," "," "," "," "," "]
[47," "," "," "," "," "]
[48," "," "," "," "," "]
[49," "," "," "," "," "]
[50," "," "," "," "," "]
[51," "," "," "," "," "]
[52," "," "," "," "," "]
[53," "," "," "," "," "]
[54," "," "," "," "," "]
[55," "," "," "," "," "]
[56," "," "," "," "," "]
[57," "," "," "," "," "]
[58," "," "," "," "," "]
[59," "," "," "," "," "]
[60," "," "," "," "," "]
[61," "," "," "," "," "]
[62," "," "," "," "," "]
[63," "," "," "," "," "]
[64," "," "," "," "," "]
[65,{"$f":"IF(A82<=$C$10,A82,\" \")","v":" "}," "," "," "," "]
[66," ",{"$f":"IF(B83=A83,C82-D83,\" \")","v":" "},{"$f":"IF(B83=A83,F83-E83,\" \")","v":" "},{"$f":"IF(B83=A83,C82*$C$11/12,\" \")","v":" "}," "]
[67," "," "," "," "," "]
[68," "," "," "," "," "]
[69," "," "," "," "," "]
[70," "," "," "," "," "]
[71," "," "," "," "," "]
[72," "," "," "," "," "]
[73," "," "," "," "," "]
[74," "," "," "," "," "]
[75," "," "," "," "," "]
[76," "," "," "," "," "]
[77," "," "," "," ",{"$f":"IF(B94=A94,-PMT($C$11/12,$C$10,$C$9),\" \")","v":" "}]
[78," "," "," "," "," "]
[79," "," "," "," "," "]
[80," "," "," "," "," "]
[81," "," "," "," "," "]
[82," "," "," "," "," "]
[83," ",{"$f":"IF(B100=A100,C99-D100,\" \")","v":" "},{"$f":"IF(B100=A100,F100-E100,\" \")","v":" "},{"$f":"IF(B100=A100,C99*$C$11/12,\" \")","v":" "},{"$f":"IF(B100=A100,-PMT($C$11/12,$C$10,$C$9),\" \")","v":" "}]
[84," ",{"$f":"IF(B101=A101,C100-D101,\" \")","v":" "}," "," ",{"$f":"IF(B101=A101,-PMT($C$11/12,$C$10,$C$9),\" \")","v":" "}]

{"sheet":"равными","index":6,"n_rows":123,"n_cols":59,"rows_kept":123,"cut":false,"hidden":true,"merged":[]}
[12,{"$f":"'Исходные данные'!C41","v":0.25},null,{"$f":"SUM(D4:D15)","v":{"$error":"#VALUE!"}},null,null,24,{"$f":"'Исходные данные'!D41","v":0},null,{"$f":"SUM(J4:J27)","v":{"$error":"#VALUE!"}},null,null,36,{"$f":"'Исходные данные'!E41","v":0},null,{"$f":"SUM(P4:P39)","v":{"$error":"#VALUE!"}},null,null,48,{"$f":"'Исходные данные'!F41","v":0},null,{"$f":"SUM(V4:V51)","v":{"$error":"#VALUE!"}},null,null,60,{"$f":"'Исходные данные'!G41","v":0},null,{"$f":"SUM(AB4:AB63)","v":{"$error":"#VALUE!"}},null,null,72,{"$f":"'Исходные данные'!H41","v":0},null,{"$f":"SUM(AH4:AH75)","v":{"$error":"#VALUE!"}},null,null,84,{"$f":"'Исходные данные'!I41","v":0},null,{"$f":"SUM(AN4:AN87)","v":{"$error":"#VALUE!"}},null,null,96,{"$f":"'Исходные данные'!N41","v":0},null,{"$f":"SUM(AT4:AT99)","v":{"$error":"#VALUE!"}},null,null,108,{"$f":"'Исходные данные'!T41","v":0},null,{"$f":"SUM(AZ4:AZ111)","v":{"$error":"#VALUE!"}},null,null,120,{"$f":"'Исходные данные'!C41","v":0.25},null,{"$f":"SUM(BF4:BF123)","v":{"$error":"#VALUE!"}}]
["период","остаток ОД","оплата ОД","оплата %%","платеж",null,"период","остаток ОД","оплата ОД","оплата %%","платеж",null,"период","остаток ОД","оплата ОД","оплата %%","платеж",null,"период","остаток ОД","оплата ОД","оплата %%","платеж",null,"период","остаток ОД","оплата ОД","оплата %%","платеж",null,"период","остаток ОД","оплата ОД","оплата %%","платеж",null,"период","остаток ОД","оплата ОД","оплата %%","платеж",null,"период","остаток ОД","оплата ОД","оплата %%","платеж",null,"период","остаток ОД","оплата ОД","оплата %%","платеж",null,"период","остаток ОД","оплата ОД","оплата %%","платеж"]
[null,{"$f":"'Исходные данные'!C33","v":"исправьте ошибки"},null,null,null,null,null,{"$f":"B3","v":"исправьте ошибки"},null,null,null,null,null,{"$f":"H3","v":"исправьте ошибки"},null,null,null,null,null,{"$f":"N3","v":"исправьте ошибки"},null,null,null,null,null,{"$f":"T3","v":"исправьте ошибки"},null,null,null,null,null,{"$f":"Z3","v":"исправьте ошибки"},null,null,null,null,null,{"$f":"AF3","v":"исправьте ошибки"},null,null,null,null,null,{"$f":"AL3","v":"исправьте ошибки"},null,null,null,null,null,{"$f":"AR3","v":"исправьте ошибки"},null,null,null,null,null,{"$f":"AL3","v":"исправьте ошибки"}]
[1,{"$f":"B3-C4","v":{"$error":"#VALUE!"}},{"$f":"$B$3/$A$1","v":{"$error":"#VALUE!"}},{"$f":"B3*$B$1/12","v":{"$error":"#VALUE!"}},{"$f":"C4+D4","v":{"$error":"#VALUE!"}},null,1,{"$f":"H3-I4","v":{"$error":"#VALUE!"}},{"$f":"$B$3/$G$1","v":{"$error":"#VALUE!"}},{"$f":"H3*$H$1/12","v":{"$error":"#VALUE!"}},{"$f":"I4+J4","v":{"$error":"#VALUE!"}},null,1,{"$f":"N3-O4","v":{"$error":"#VALUE!"}},{"$f":"$B$3/$M$1","v":{"$error":"#VALUE!"}},{"$f":"N3*$N$1/12","v":{"$error":"#VALUE!"}},{"$f":"O4+P4","v":{"$error":"#VALUE!"}},null,1,{"$f":"T3-U4","v":{"$error":"#VALUE!"}},{"$f":"$B$3/$S$1","v":{"$error":"#VALUE!"}},{"$f":"T3*$T$1/12","v":{"$error":"#VALUE!"}},{"$f":"U4+V4","v":{"$error":"#VALUE!"}},null,1,{"$f":"Z3-AA4","v":{"$error":"#VALUE!"}},{"$f":"$B$3/$Y$1","v":{"$error":"#VALUE!"}},{"$f":"Z3*$Z$1/12","v":{"$error":"#VALUE!"}},{"$f":"AA4+AB4","v":{"$error":"#VALUE!"}},null,1,{"$f":"AF3-AG4","v":{"$error":"#VALUE!"}},{"$f":"$B$3/$AE$1","v":{"$error":"#VALUE!"}},{"$f":"AF3*$AF$1/12","v":{"$error":"#VALUE!"}},{"$f":"AG4+AH4","v":{"$error":"#VALUE!"}},null,1,{"$f":"AL3-AM4","v":{"$error":"#VALUE!"}},{"$f":"$B$3/$AK$1","v":{"$error":"#VALUE!"}},{"$f":"AL3*$AL$1/12","v":{"$error":"#VALUE!"}},{"$f":"AM4+AN4","v":{"$error":"#VALUE!"}},null,1,{"$f":"AR3-AS4","v":{"$error":"#VALUE!"}},{"$f":"$B$3/$AQ$1","v":{"$error":"#VALUE!"}},{"$f":"AR3*$AL$1/12","v":{"$error":"#VALUE!"}},{"$f":"AS4+AT4","v":{"$error":"#VALUE!"}},null,1,{"$f":"AX3-AY4","v":{"$error":"#VALUE!"}},{"$f":"$B$3/$AW$1","v":{"$error":"#VALUE!"}},{"$f":"AX3*$AL$1/12","v":{"$error":"#VALUE!"}},{"$f":"AY4+AZ4","v":{"$error":"#VALUE!"}},null,1,{"$f":"BD3-BE4","v":{"$error":"#VALUE!"}},{"$f":"$B$3/$BC$1","v":{"$error":"#VALUE!"}},{"$f":"BD3*$BD$1/12","v":{"$error":"#VALUE!"}},{"$f":"BE4+BF4","v":{"$error":"#VALUE!"}}]
[2,{"$f":"B4-C5","v":{"$error":"#VALUE!"}},{"$f":"$B$3/$A$1","v":{"$error":"#VALUE!"}},{"$f":"B4*$B$1/12","v":{"$error":"#VALUE!"}},{"$f":"C5+D5","v":{"$error":"#VALUE!"}},null,2,{"$f":"H4-I5","v":{"$error":"#VALUE!"}},{"$f":"$B$3/$G$1","v":{"$error":"#VALUE!"}},{"$f":"H4*$H$1/12","v":{"$error":"#VALUE!"}},{"$f":"I5+J5","v":{"$error":"#VALUE!"}},null,2,{"$f":"N4-O5","v":{"$error":"#VALUE!"}},{"$f":"$B$3/$M$1","v":{"$error":"#VALUE!"}},{"$f":"N4*$N$1/12","v":{"$error":"#VALUE!"}},{"$f":"O5+P5","v":{"$error":"#VALUE!"}},null,2,{"$f":"T4-U5","v":{"$error":"#VALUE!"}},{"$f":"$B$3/$S$1","v":{"$error":"#VALUE!"}},{"$f":"T4*$T$1/12","v":{"$error":"#VALUE!"}},{"$f":"U5+V5","v":{"$error":"#VALUE!"}},null,2,{"$f":"Z4-AA5","v":{"$error":"#VALUE!"}},{"$f":"$B$3/$Y$1","v":{"$error":"#VALUE!"}},{"$f":"Z4*$Z$1/12","v":{"$error":"#VALUE!"}},{"$f":"AA5+AB5","v":{"$error":"#VALUE!"}},null,2,{"$f":"AF4-AG5","v":{"$error":"#VALUE!"}},{"$f":"$B$3/$AE$1","v":{"$error":"#VALUE!"}},{"$f":"AF4*$AF$1/12","v":{"$error":"#VALUE!"}},{"$f":"AG5+AH5","v":{"$error":"#VALUE!"}},null,2,{"$f":"AL4-AM5","v":{"$error":"#VALUE!"}},{"$f":"$B$3/$AK$1","v":{"$error":"#VALUE!"}},{"$f":"AL4*$AL$1/12","v":{"$error":"#VALUE!"}},{"$f":"AM5+AN5","v":{"$error":"#VALUE!"}},null,2,{"$f":"AR4-AS5","v":{"$error":"#VALUE!"}},{"$f":"$B$3/$AQ$1","v":{"$error":"#VALUE!"}},{"$f":"AR4*$AL$1/12","v":{"$error":"#VALUE!"}},{"$f":"AS5+AT5","v":{"$error":"#VALUE!"}},null,2,{"$f":"AX4-AY5","v":{"$error":"#VALUE!"}},{"$f":"$B$3/$AW$1","v":{"$error":"#VALUE!"}},{"$f":"AX4*$AL$1/12","v":{"$error":"#VALUE!"}},{"$f":"AY5+AZ5","v":{"$error":"#VALUE!"}},null,2,{"$f":"BD4-BE5","v":{"$error":"#VALUE!"}},{"$f":"$B$3/$BC$1","v":{"$error":"#VALUE!"}},{"$f":"BD4*$BD$1/12","v":{"$error":"#VALUE!"}},{"$f":"BE5+BF5","v":{"$error":"#VALUE!"}}]
[3,{"$error":"#VALUE!"},{"$error":"#VALUE!"},{"$error":"#VALUE!"},{"$error":"#VALUE!"},null,3,{"$error":"#VALUE!"},{"$error":"#VALUE!"},{"$error":"#VALUE!"},{"$error":"#VALUE!"},null,3,{"$error":"#VALUE!"},{"$error":"#VALUE!"},{"$error":"#VALUE!"},{"$error":"#VALUE!"},null,3,{"$error":"#VALUE!"},{"$error":"#VALUE!"},{"$error":"#VALUE!"},{"$error":"#VALUE!"},null,3,{"$error":"#VALUE!"},{"$error":"#VALUE!"},{"$error":"#VALUE!"},{"$error":"#VALUE!"},null,3,{"$error":"#VALUE!"},{"$error":"#VALUE!"},{"$error":"#VALUE!"},{"$error":"#VALUE!"},null,3,{"$error":"#VALUE!"},{"$error":"#VALUE!"},{"$error":"#VALUE!"},{"$error":"#VALUE!"},null,3,{"$error":"#VALUE!"},{"$error":"#VALUE!"},{"$error":"#VALUE!"},{"$error":"#VALUE!"},null,3,{"$error":"#VALUE!"},{"$error":"#VALUE!"},{"$error":"#VALUE!"},{"$error":"#VALUE!"},null,3,{"$error":"#VALUE!"},{"$error":"#VALUE!"},{"$error":"#VALUE!"},{"$error":"#VALUE!"}]
[4,{"$error":"#VALUE!"},{"$error":"#VALUE!"},{"$error":"#VALUE!"},{"$error":"#VALUE!"},null,4,{"$error":"#VALUE!"},{"$error":"#VALUE!"},{"$error":"#VALUE!"},{"$error":"#VALUE!"},null,4,{"$error":"#VALUE!"},{"$error":"#VALUE!"},{"$error":"#VALUE!"},{"$error":"#VALUE!"},null,4,{"$error":"#VALUE!"},{"$error":"#VALUE!"},{"$error":"#VALUE!"},{"$error":"#VALUE!"},null,4,{"$error":"#VALUE!"},{"$error":"#VALUE!"},{"$error":"#VALUE!"},{"$error":"#VALUE!"},null,4,{"$error":"#VALUE!"},{"$error":"#VALUE!"},{"$error":"#VALUE!"},{"$error":"#VALUE!"},null,4,{"$error":"#VALUE!"},{"$error":"#VALUE!"},{"$error":"#VALUE!"},{"$error":"#VALUE!"},null,4,{"$error":"#VALUE!"},{"$error":"#VALUE!"},{"$error":"#VALUE!"},{"$error":"#VALUE!"},null,4,{"$error":"#VALUE!"},{"$error":"#VALUE!"},{"$error":"#VALUE!"},{"$error":"#VALUE!"},null,4,{"$error":"#VALUE!"},{"$error":"#VALUE!"},{"$error":"#VALUE!"},{"$error":"#VALUE!"}]
[5,{"$error":"#VALUE!"},{"$error":"#VALUE!"},{"$error":"#VALUE!"},{"$error":"#VALUE!"},null,5,{"$error":"#VALUE!"},{"$error":"#VALUE!"},{"$error":"#VALUE!"},{"$error":"#VALUE!"},null,5,{"$error":"#VALUE!"},{"$error":"#VALUE!"},{"$error":"#VALUE!"},{"$error":"#VALUE!"},null,5,{"$error":"#VALUE!"},{"$error":"#VALUE!"},{"$error":"#VALUE!"},{"$error":"#VALUE!"},null,5,{"$error":"#VALUE!"},{"$error":"#VALUE!"},{"$error":"#VALUE!"},{"$error":"#VALUE!"},null,5,{"$error":"#VALUE!"},{"$error":"#VALUE!"},{"$error":"#VALUE!"},{"$error":"#VALUE!"},null,5,{"$error":"#VALUE!"},{"$error":"#VALUE!"},{"$error":"#VALUE!"},{"$error":"#VALUE!"},null,5,{"$error":"#VALUE!"},{"$error":"#VALUE!"},{"$error":"#VALUE!"},{"$error":"#VALUE!"},null,5,{"$error":"#VALUE!"},{"$error":"#VALUE!"},{"$error":"#VALUE!"},{"$error":"#VALUE!"},null,5,{"$error":"#VALUE!"},{"$error":"#VALUE!"},{"$error":"#VALUE!"},{"$error":"#VALUE!"}]
[6,{"$error":"#VALUE!"},{"$error":"#VALUE!"},{"$error":"#VALUE!"},{"$error":"#VALUE!"},null,6,{"$error":"#VALUE!"},{"$error":"#VALUE!"},{"$error":"#VALUE!"},{"$error":"#VALUE!"},null,6,{"$error":"#VALUE!"},{"$error":"#VALUE!"},{"$error":"#VALUE!"},{"$error":"#VALUE!"},null,6,{"$error":"#VALUE!"},{"$error":"#VALUE!"},{"$error":"#VALUE!"},{"$error":"#VALUE!"},null,6,{"$error":"#VALUE!"},{"$error":"#VALUE!"},{"$error":"#VALUE!"},{"$error":"#VALUE!"},null,6,{"$error":"#VALUE!"},{"$error":"#VALUE!"},{"$error":"#VALUE!"},{"$error":"#VALUE!"},null,6,{"$error":"#VALUE!"},{"$error":"#VALUE!"},{"$error":"#VALUE!"},{"$error":"#VALUE!"},null,6,{"$error":"#VALUE!"},{"$error":"#VALUE!"},{"$error":"#VALUE!"},{"$error":"#VALUE!"},null,6,{"$error":"#VALUE!"},{"$error":"#VALUE!"},{"$error":"#VALUE!"},{"$error":"#VALUE!"},null,6,{"$error":"#VALUE!"},{"$error":"#VALUE!"},{"$error":"#VALUE!"},{"$error":"#VALUE!"}]
[7,{"$error":"#VALUE!"},{"$error":"#VALUE!"},{"$error":"#VALUE!"},{"$error":"#VALUE!"},null,7,{"$error":"#VALUE!"},{"$error":"#VALUE!"},{"$error":"#VALUE!"},{"$error":"#VALUE!"},null,7,{"$error":"#VALUE!"},{"$error":"#VALUE!"},{"$error":"#VALUE!"},{"$error":"#VALUE!"},null,7,{"$error":"#VALUE!"},{"$error":"#VALUE!"},{"$error":"#VALUE!"},{"$error":"#VALUE!"},null,7,{"$error":"#VALUE!"},{"$error":"#VALUE!"},{"$error":"#VALUE!"},{"$error":"#VALUE!"},null,7,{"$error":"#VALUE!"},{"$error":"#VALUE!"},{"$error":"#VALUE!"},{"$error":"#VALUE!"},null,7,{"$error":"#VALUE!"},{"$error":"#VALUE!"},{"$error":"#VALUE!"},{"$error":"#VALUE!"},null,7,{"$error":"#VALUE!"},{"$error":"#VALUE!"},{"$error":"#VALUE!"},{"$error":"#VALUE!"},null,7,{"$error":"#VALUE!"},{"$error":"#VALUE!"},{"$error":"#VALUE!"},{"$error":"#VALUE!"},null,7,{"$error":"#VALUE!"},{"$error":"#VALUE!"},{"$error":"#VALUE!"},{"$error":"#VALUE!"}]
[8,{"$error":"#VALUE!"},{"$error":"#VALUE!"},{"$error":"#VALUE!"},{"$error":"#VALUE!"},null,8,{"$error":"#VALUE!"},{"$error":"#VALUE!"},{"$error":"#VALUE!"},{"$error":"#VALUE!"},null,8,{"$error":"#VALUE!"},{"$error":"#VALUE!"},{"$error":"#VALUE!"},{"$error":"#VALUE!"},null,8,{"$error":"#VALUE!"},{"$error":"#VALUE!"},{"$error":"#VALUE!"},{"$error":"#VALUE!"},null,8,{"$error":"#VALUE!"},{"$error":"#VALUE!"},{"$error":"#VALUE!"},{"$error":"#VALUE!"},null,8,{"$error":"#VALUE!"},{"$error":"#VALUE!"},{"$error":"#VALUE!"},{"$error":"#VALUE!"},null,8,{"$error":"#VALUE!"},{"$error":"#VALUE!"},{"$error":"#VALUE!"},{"$error":"#VALUE!"},null,8,{"$error":"#VALUE!"},{"$error":"#VALUE!"},{"$error":"#VALUE!"},{"$error":"#VALUE!"},null,8,{"$error":"#VALUE!"},{"$error":"#VALUE!"},{"$error":"#VALUE!"},{"$error":"#VALUE!"},null,8,{"$error":"#VALUE!"},{"$error":"#VALUE!"},{"$error":"#VALUE!"},{"$error":"#VALUE!"}]
[9,{"$error":"#VALUE!"},{"$error":"#VALUE!"},{"$error":"#VALUE!"},{"$error":"#VALUE!"},null,9,{"$error":"#VALUE!"},{"$error":"#VALUE!"},{"$error":"#VALUE!"},{"$error":"#VALUE!"},null,9,{"$error":"#VALUE!"},{"$error":"#VALUE!"},{"$error":"#VALUE!"},{"$error":"#VALUE!"},null,9,{"$error":"#VALUE!"},{"$error":"#VALUE!"},{"$error":"#VALUE!"},{"$error":"#VALUE!"},null,9,{"$error":"#VALUE!"},{"$error":"#VALUE!"},{"$error":"#VALUE!"},{"$error":"#VALUE!"},null,9,{"$error":"#VALUE!"},{"$error":"#VALUE!"},{"$error":"#VALUE!"},{"$error":"#VALUE!"},null,9,{"$error":"#VALUE!"},{"$error":"#VALUE!"},{"$error":"#VALUE!"},{"$error":"#VALUE!"},null,9,{"$error":"#VALUE!"},{"$error":"#VALUE!"},{"$error":"#VALUE!"},{"$error":"#VALUE!"},null,9,{"$error":"#VALUE!"},{"$error":"#VALUE!"},{"$error":"#VALUE!"},{"$error":"#VALUE!"},null,9,{"$error":"#VALUE!"},{"$error":"#VALUE!"},{"$error":"#VALUE!"},{"$error":"#VALUE!"}]
[10,{"$error":"#VALUE!"},{"$error":"#VALUE!"},{"$error":"#VALUE!"},{"$error":"#VALUE!"},null,10,{"$error":"#VALUE!"},{"$error":"#VALUE!"},{"$error":"#VALUE!"},{"$error":"#VALUE!"},null,10,{"$error":"#VALUE!"},{"$error":"#VALUE!"},{"$error":"#VALUE!"},{"$error":"#VALUE!"},null,10,{"$error":"#VALUE!"},{"$error":"#VALUE!"},{"$error":"#VALUE!"},{"$error":"#VALUE!"},null,10,{"$error":"#VALUE!"},{"$error":"#VALUE!"},{"$error":"#VALUE!"},{"$error":"#VALUE!"},null,10,{"$error":"#VALUE!"},{"$error":"#VALUE!"},{"$error":"#VALUE!"},{"$error":"#VALUE!"},null,10,{"$error":"#VALUE!"},{"$error":"#VALUE!"},{"$error":"#VALUE!"},{"$error":"#VALUE!"},null,10,{"$error":"#VALUE!"},{"$error":"#VALUE!"},{"$error":"#VALUE!"},{"$error":"#VALUE!"},null,10,{"$error":"#VALUE!"},{"$error":"#VALUE!"},{"$error":"#VALUE!"},{"$error":"#VALUE!"},null,10,{"$error":"#VALUE!"},{"$error":"#VALUE!"},{"$error":"#VALUE!"},{"$error":"#VALUE!"}]
[11,{"$error":"#VALUE!"},{"$error":"#VALUE!"},{"$error":"#VALUE!"},{"$error":"#VALUE!"},null,11,{"$error":"#VALUE!"},{"$error":"#VALUE!"},{"$error":"#VALUE!"},{"$error":"#VALUE!"},null,11,{"$error":"#VALUE!"},{"$error":"#VALUE!"},{"$error":"#VALUE!"},{"$error":"#VALUE!"},null,11,{"$error":"#VALUE!"},{"$error":"#VALUE!"},{"$error":"#VALUE!"},{"$error":"#VALUE!"},null,11,{"$error":"#VALUE!"},{"$error":"#VALUE!"},{"$error":"#VALUE!"},{"$error":"#VALUE!"},null,11,{"$error":"#VALUE!"},{"$error":"#VALUE!"},{"$error":"#VALUE!"},{"$error":"#VALUE!"},null,11,{"$error":"#VALUE!"},{"$error":"#VALUE!"},{"$error":"#VALUE!"},{"$error":"#VALUE!"},null,11,{"$error":"#VALUE!"},{"$error":"#VALUE!"},{"$error":"#VALUE!"},{"$error":"#VALUE!"},null,11,{"$error":"#VALUE!"},{"$error":"#VALUE!"},{"$error":"#VALUE!"},{"$error":"#VALUE!"},null,11,{"$error":"#VALUE!"},{"$error":"#VALUE!"},{"$error":"#VALUE!"},{"$error":"#VALUE!"}]
[12,{"$f":"B14-C15","v":{"$error":"#VALUE!"}},{"$error":"#VALUE!"},{"$error":"#VALUE!"},{"$error":"#VALUE!"},null,12,{"$f":"H14-I15","v":{"$error":"#VALUE!"}},{"$error":"#VALUE!"},{"$error":"#VALUE!"},{"$error":"#VALUE!"},null,12,{"$f":"N14-O15","v":{"$error":"#VALUE!"}},{"$error":"#VALUE!"},{"$error":"#VALUE!"},{"$error":"#VALUE!"},null,12,{"$f":"T14-U15","v":{"$error":"#VALUE!"}},{"$error":"#VALUE!"},{"$error":"#VALUE!"},{"$error":"#VALUE!"},null,12,{"$f":"Z14-AA15","v":{"$error":"#VALUE!"}},{"$error":"#VALUE!"},{"$error":"#VALUE!"},{"$error":"#VALUE!"},null,12,{"$f":"AF14-AG15","v":{"$error":"#VALUE!"}},{"$error":"#VALUE!"},{"$error":"#VALUE!"},{"$error":"#VALUE!"},null,12,{"$f":"AL14-AM15","v":{"$error":"#VALUE!"}},{"$error":"#VALUE!"},{"$error":"#VALUE!"},{"$error":"#VALUE!"},null,12,{"$error":"#VALUE!"},{"$error":"#VALUE!"},{"$error":"#VALUE!"},{"$error":"#VALUE!"},null,12,{"$error":"#VALUE!"},{"$error":"#VALUE!"},{"$error":"#VALUE!"},{"$error":"#VALUE!"},null,12,{"$f":"BD14-BE15","v":{"$error":"#VALUE!"}},{"$error":"#VALUE!"},{"$error":"#VALUE!"},{"$error":"#VALUE!"}]
[null,null,null,null,null,null,13,{"$f":"H15-I16","v":{"$error":"#VALUE!"}},{"$error":"#VALUE!"},{"$error":"#VALUE!"},{"$error":"#VALUE!"},null,13,{"$f":"N15-O16","v":{"$error":"#VALUE!"}},{"$error":"#VALUE!"},{"$error":"#VALUE!"},{"$error":"#VALUE!"},null,13,{"$f":"T15-U16","v":{"$error":"#VALUE!"}},{"$error":"#VALUE!"},{"$error":"#VALUE!"},{"$error":"#VALUE!"},null,13,{"$f":"Z15-AA16","v":{"$error":"#VALUE!"}},{"$error":"#VALUE!"},{"$error":"#VALUE!"},{"$error":"#VALUE!"},null,13,{"$f":"AF15-AG16","v":{"$error":"#VALUE!"}},{"$error":"#VALUE!"},{"$error":"#VALUE!"},{"$error":"#VALUE!"},null,13,{"$f":"AL15-AM16","v":{"$error":"#VALUE!"}},{"$error":"#VALUE!"},{"$error":"#VALUE!"},{"$error":"#VALUE!"},null,13,{"$error":"#VALUE!"},{"$error":"#VALUE!"},{"$error":"#VALUE!"},{"$error":"#VALUE!"},null,13,{"$error":"#VALUE!"},{"$error":"#VALUE!"},{"$error":"#VALUE!"},{"$error":"#VALUE!"},null,13,{"$f":"BD15-BE16","v":{"$error":"#VALUE!"}},{"$error":"#VALUE!"},{"$error":"#VALUE!"},{"$error":"#VALUE!"}]
[null,null,null,null,null,null,14,{"$error":"#VALUE!"},{"$error":"#VALUE!"},{"$error":"#VALUE!"},{"$error":"#VALUE!"},null,14,{"$error":"#VALUE!"},{"$error":"#VALUE!"},{"$error":"#VALUE!"},{"$error":"#VALUE!"},null,14,{"$error":"#VALUE!"},{"$error":"#VALUE!"},{"$error":"#VALUE!"},{"$error":"#VALUE!"},null,14,{"$error":"#VALUE!"},{"$error":"#VALUE!"},{"$error":"#VALUE!"},{"$error":"#VALUE!"},null,14,{"$error":"#VALUE!"},{"$error":"#VALUE!"},{"$error":"#VALUE!"},{"$error":"#VALUE!"},null,14,{"$error":"#VALUE!"},{"$error":"#VALUE!"},{"$error":"#VALUE!"},{"$error":"#VALUE!"},null,14,{"$error":"#VALUE!"},{"$error":"#VALUE!"},{"$error":"#VALUE!"},{"$error":"#VALUE!"},null,14,{"$error":"#VALUE!"},{"$error":"#VALUE!"},{"$error":"#VALUE!"},{"$error":"#VALUE!"},null,14,{"$error":"#VALUE!"},{"$error":"#VALUE!"},{"$error":"#VALUE!"},{"$error":"#VALUE!"}]
[null,null,null,null,null,null,15,{"$error":"#VALUE!"},{"$error":"#VALUE!"},{"$error":"#VALUE!"},{"$error":"#VALUE!"},null,15,{"$error":"#VALUE!"},{"$error":"#VALUE!"},{"$error":"#VALUE!"},{"$error":"#VALUE!"},null,15,{"$error":"#VALUE!"},{"$error":"#VALUE!"},{"$error":"#VALUE!"},{"$error":"#VALUE!"},null,15,{"$error":"#VALUE!"},{"$error":"#VALUE!"},{"$error":"#VALUE!"},{"$error":"#VALUE!"},null,15,{"$error":"#VALUE!"},{"$error":"#VALUE!"},{"$error":"#VALUE!"},{"$error":"#VALUE!"},null,15,{"$error":"#VALUE!"},{"$error":"#VALUE!"},{"$error":"#VALUE!"},{"$error":"#VALUE!"},null,15,{"$error":"#VALUE!"},{"$error":"#VALUE!"},{"$error":"#VALUE!"},{"$error":"#VALUE!"},null,15,{"$error":"#VALUE!"},{"$error":"#VALUE!"},{"$error":"#VALUE!"},{"$error":"#VALUE!"},null,15,{"$error":"#VALUE!"},{"$error":"#VALUE!"},{"$error":"#VALUE!"},{"$error":"#VALUE!"}]
[null,null,null,null,null,null,16,{"$error":"#VALUE!"},{"$error":"#VALUE!"},{"$error":"#VALUE!"},{"$error":"#VALUE!"},null,16,{"$error":"#VALUE!"},{"$error":"#VALUE!"},{"$error":"#VALUE!"},{"$error":"#VALUE!"},null,16,{"$error":"#VALUE!"},{"$error":"#VALUE!"},{"$error":"#VALUE!"},{"$error":"#VALUE!"},null,16,{"$error":"#VALUE!"},{"$error":"#VALUE!"},{"$error":"#VALUE!"},{"$error":"#VALUE!"},null,16,{"$error":"#VALUE!"},{"$error":"#VALUE!"},{"$error":"#VALUE!"},{"$error":"#VALUE!"},null,16,{"$error":"#VALUE!"},{"$error":"#VALUE!"},{"$error":"#VALUE!"},{"$error":"#VALUE!"},null,16,{"$error":"#VALUE!"},{"$error":"#VALUE!"},{"$error":"#VALUE!"},{"$error":"#VALUE!"},null,16,{"$error":"#VALUE!"},{"$error":"#VALUE!"},{"$error":"#VALUE!"},{"$error":"#VALUE!"},null,16,{"$error":"#VALUE!"},{"$error":"#VALUE!"},{"$error":"#VALUE!"},{"$error":"#VALUE!"}]
[null,null,null,null,null,null,17,{"$error":"#VALUE!"},{"$error":"#VALUE!"},{"$error":"#VALUE!"},{"$error":"#VALUE!"},null,17,{"$error":"#VALUE!"},{"$error":"#VALUE!"},{"$error":"#VALUE!"},{"$error":"#VALUE!"},null,17,{"$error":"#VALUE!"},{"$error":"#VALUE!"},{"$error":"#VALUE!"},{"$error":"#VALUE!"},null,17,{"$error":"#VALUE!"},{"$error":"#VALUE!"},{"$error":"#VALUE!"},{"$error":"#VALUE!"},null,17,{"$error":"#VALUE!"},{"$error":"#VALUE!"},{"$error":"#VALUE!"},{"$error":"#VALUE!"},null,17,{"$error":"#VALUE!"},{"$error":"#VALUE!"},{"$error":"#VALUE!"},{"$error":"#VALUE!"},null,17,{"$error":"#VALUE!"},{"$error":"#VALUE!"},{"$error":"#VALUE!"},{"$error":"#VALUE!"},null,17,{"$error":"#VALUE!"},{"$error":"#VALUE!"},{"$error":"#VALUE!"},{"$error":"#VALUE!"},null,17,{"$error":"#VALUE!"},{"$error":"#VALUE!"},{"$error":"#VALUE!"},{"$error":"#VALUE!"}]
[null,null,null,null,null,null,18,{"$error":"#VALUE!"},{"$error":"#VALUE!"},{"$error":"#VALUE!"},{"$error":"#VALUE!"},null,18,{"$error":"#VALUE!"},{"$error":"#VALUE!"},{"$error":"#VALUE!"},{"$error":"#VALUE!"},null,18,{"$error":"#VALUE!"},{"$error":"#VALUE!"},{"$error":"#VALUE!"},{"$error":"#VALUE!"},null,18,{"$error":"#VALUE!"},{"$error":"#VALUE!"},{"$error":"#VALUE!"},{"$error":"#VALUE!"},null,18,{"$error":"#VALUE!"},{"$error":"#VALUE!"},{"$error":"#VALUE!"},{"$error":"#VALUE!"},null,18,{"$error":"#VALUE!"},{"$error":"#VALUE!"},{"$error":"#VALUE!"},{"$error":"#VALUE!"},null,18,{"$error":"#VALUE!"},{"$error":"#VALUE!"},{"$error":"#VALUE!"},{"$error":"#VALUE!"},null,18,{"$error":"#VALUE!"},{"$error":"#VALUE!"},{"$error":"#VALUE!"},{"$error":"#VALUE!"},null,18,{"$error":"#VALUE!"},{"$error":"#VALUE!"},{"$error":"#VALUE!"},{"$error":"#VALUE!"}]
[null,null,null,null,null,null,19,{"$error":"#VALUE!"},{"$error":"#VALUE!"},{"$error":"#VALUE!"},{"$error":"#VALUE!"},null,19,{"$error":"#VALUE!"},{"$error":"#VALUE!"},{"$error":"#VALUE!"},{"$error":"#VALUE!"},null,19,{"$error":"#VALUE!"},{"$error":"#VALUE!"},{"$error":"#VALUE!"},{"$error":"#VALUE!"},null,19,{"$error":"#VALUE!"},{"$error":"#VALUE!"},{"$error":"#VALUE!"},{"$error":"#VALUE!"},null,19,{"$error":"#VALUE!"},{"$error":"#VALUE!"},{"$error":"#VALUE!"},{"$error":"#VALUE!"},null,19,{"$error":"#VALUE!"},{"$error":"#VALUE!"},{"$error":"#VALUE!"},{"$error":"#VALUE!"},null,19,{"$error":"#VALUE!"},{"$error":"#VALUE!"},{"$error":"#VALUE!"},{"$error":"#VALUE!"},null,19,{"$error":"#VALUE!"},{"$error":"#VALUE!"},{"$error":"#VALUE!"},{"$error":"#VALUE!"},null,19,{"$error":"#VALUE!"},{"$error":"#VALUE!"},{"$error":"#VALUE!"},{"$error":"#VALUE!"}]
[null,null,null,null,null,null,20,{"$error":"#VALUE!"},{"$error":"#VALUE!"},{"$error":"#VALUE!"},{"$error":"#VALUE!"},null,20,{"$error":"#VALUE!"},{"$error":"#VALUE!"},{"$error":"#VALUE!"},{"$error":"#VALUE!"},null,20,{"$error":"#VALUE!"},{"$error":"#VALUE!"},{"$error":"#VALUE!"},{"$error":"#VALUE!"},null,20,{"$error":"#VALUE!"},{"$error":"#VALUE!"},{"$error":"#VALUE!"},{"$error":"#VALUE!"},null,20,{"$error":"#VALUE!"},{"$error":"#VALUE!"},{"$error":"#VALUE!"},{"$error":"#VALUE!"},null,20,{"$error":"#VALUE!"},{"$error":"#VALUE!"},{"$error":"#VALUE!"},{"$error":"#VALUE!"},null,20,{"$error":"#VALUE!"},{"$error":"#VALUE!"},{"$error":"#VALUE!"},{"$error":"#VALUE!"},null,20,{"$error":"#VALUE!"},{"$error":"#VALUE!"},{"$error":"#VALUE!"},{"$error":"#VALUE!"},null,20,{"$error":"#VALUE!"},{"$error":"#VALUE!"},{"$error":"#VALUE!"},{"$error":"#VALUE!"}]
[null,null,null,null,null,null,21,{"$error":"#VALUE!"},{"$error":"#VALUE!"},{"$error":"#VALUE!"},{"$error":"#VALUE!"},null,21,{"$error":"#VALUE!"},{"$error":"#VALUE!"},{"$error":"#VALUE!"},{"$error":"#VALUE!"},null,21,{"$error":"#VALUE!"},{"$error":"#VALUE!"},{"$error":"#VALUE!"},{"$error":"#VALUE!"},null,21,{"$error":"#VALUE!"},{"$error":"#VALUE!"},{"$error":"#VALUE!"},{"$error":"#VALUE!"},null,21,{"$error":"#VALUE!"},{"$error":"#VALUE!"},{"$error":"#VALUE!"},{"$error":"#VALUE!"},null,21,{"$error":"#VALUE!"},{"$error":"#VALUE!"},{"$error":"#VALUE!"},{"$error":"#VALUE!"},null,21,{"$error":"#VALUE!"},{"$error":"#VALUE!"},{"$error":"#VALUE!"},{"$error":"#VALUE!"},null,21,{"$error":"#VALUE!"},{"$error":"#VALUE!"},{"$error":"#VALUE!"},{"$error":"#VALUE!"},null,21,{"$error":"#VALUE!"},{"$error":"#VALUE!"},{"$error":"#VALUE!"},{"$error":"#VALUE!"}]
[null,null,null,null,null,null,22,{"$error":"#VALUE!"},{"$error":"#VALUE!"},{"$error":"#VALUE!"},{"$error":"#VALUE!"},null,22,{"$error":"#VALUE!"},{"$error":"#VALUE!"},{"$error":"#VALUE!"},{"$error":"#VALUE!"},null,22,{"$error":"#VALUE!"},{"$error":"#VALUE!"},{"$error":"#VALUE!"},{"$error":"#VALUE!"},null,22,{"$error":"#VALUE!"},{"$error":"#VALUE!"},{"$error":"#VALUE!"},{"$error":"#VALUE!"},null,22,{"$error":"#VALUE!"},{"$error":"#VALUE!"},{"$error":"#VALUE!"},{"$error":"#VALUE!"},null,22,{"$error":"#VALUE!"},{"$error":"#VALUE!"},{"$error":"#VALUE!"},{"$error":"#VALUE!"},null,22,{"$error":"#VALUE!"},{"$error":"#VALUE!"},{"$error":"#VALUE!"},{"$error":"#VALUE!"},null,22,{"$error":"#VALUE!"},{"$error":"#VALUE!"},{"$error":"#VALUE!"},{"$error":"#VALUE!"},null,22,{"$error":"#VALUE!"},{"$error":"#VALUE!"},{"$error":"#VALUE!"},{"$error":"#VALUE!"}]
[null,null,null,null,null,null,23,{"$error":"#VALUE!"},{"$error":"#VALUE!"},{"$error":"#VALUE!"},{"$error":"#VALUE!"},null,23,{"$error":"#VALUE!"},{"$error":"#VALUE!"},{"$error":"#VALUE!"},{"$error":"#VALUE!"},null,23,{"$error":"#VALUE!"},{"$error":"#VALUE!"},{"$error":"#VALUE!"},{"$error":"#VALUE!"},null,23,{"$error":"#VALUE!"},{"$error":"#VALUE!"},{"$error":"#VALUE!"},{"$error":"#VALUE!"},null,23,{"$error":"#VALUE!"},{"$error":"#VALUE!"},{"$error":"#VALUE!"},{"$error":"#VALUE!"},null,23,{"$error":"#VALUE!"},{"$error":"#VALUE!"},{"$error":"#VALUE!"},{"$error":"#VALUE!"},null,23,{"$error":"#VALUE!"},{"$error":"#VALUE!"},{"$error":"#VALUE!"},{"$error":"#VALUE!"},null,23,{"$error":"#VALUE!"},{"$error":"#VALUE!"},{"$error":"#VALUE!"},{"$error":"#VALUE!"},null,23,{"$error":"#VALUE!"},{"$error":"#VALUE!"},{"$error":"#VALUE!"},{"$error":"#VALUE!"}]
[null,null,null,null,null,null,24,{"$error":"#VALUE!"},{"$error":"#VALUE!"},{"$error":"#VALUE!"},{"$error":"#VALUE!"},null,24,{"$error":"#VALUE!"},{"$error":"#VALUE!"},{"$error":"#VALUE!"},{"$error":"#VALUE!"},null,24,{"$error":"#VALUE!"},{"$error":"#VALUE!"},{"$error":"#VALUE!"},{"$error":"#VALUE!"},null,24,{"$error":"#VALUE!"},{"$error":"#VALUE!"},{"$error":"#VALUE!"},{"$error":"#VALUE!"},null,24,{"$error":"#VALUE!"},{"$error":"#VALUE!"},{"$error":"#VALUE!"},{"$error":"#VALUE!"},null,24,{"$error":"#VALUE!"},{"$error":"#VALUE!"},{"$error":"#VALUE!"},{"$error":"#VALUE!"},null,24,{"$error":"#VALUE!"},{"$error":"#VALUE!"},{"$error":"#VALUE!"},{"$error":"#VALUE!"},null,24,{"$error":"#VALUE!"},{"$error":"#VALUE!"},{"$error":"#VALUE!"},{"$error":"#VALUE!"},null,24,{"$error":"#VALUE!"},{"$error":"#VALUE!"},{"$error":"#VALUE!"},{"$error":"#VALUE!"}]
[null,null,null,null,null,null,null,null,null,null,null,null,25,{"$error":"#VALUE!"},{"$error":"#VALUE!"},{"$error":"#VALUE!"},{"$error":"#VALUE!"},null,25,{"$error":"#VALUE!"},{"$error":"#VALUE!"},{"$error":"#VALUE!"},{"$error":"#VALUE!"},null,25,{"$error":"#VALUE!"},{"$error":"#VALUE!"},{"$error":"#VALUE!"},{"$error":"#VALUE!"},null,25,{"$error":"#VALUE!"},{"$error":"#VALUE!"},{"$error":"#VALUE!"},{"$error":"#VALUE!"},null,25,{"$error":"#VALUE!"},{"$error":"#VALUE!"},{"$error":"#VALUE!"},{"$error":"#VALUE!"},null,25,{"$error":"#VALUE!"},{"$error":"#VALUE!"},{"$error":"#VALUE!"},{"$error":"#VALUE!"},null,25,{"$error":"#VALUE!"},{"$error":"#VALUE!"},{"$error":"#VALUE!"},{"$error":"#VALUE!"},null,25,{"$error":"#VALUE!"},{"$error":"#VALUE!"},{"$error":"#VALUE!"},{"$error":"#VALUE!"}]
[null,null,null,null,null,null,null,null,null,null,null,null,26,{"$error":"#VALUE!"},{"$error":"#VALUE!"},{"$error":"#VALUE!"},{"$error":"#VALUE!"},null,26,{"$error":"#VALUE!"},{"$error":"#VALUE!"},{"$error":"#VALUE!"},{"$error":"#VALUE!"},null,26,{"$error":"#VALUE!"},{"$error":"#VALUE!"},{"$error":"#VALUE!"},{"$error":"#VALUE!"},null,26,{"$error":"#VALUE!"},{"$error":"#VALUE!"},{"$error":"#VALUE!"},{"$error":"#VALUE!"},null,26,{"$error":"#VALUE!"},{"$error":"#VALUE!"},{"$error":"#VALUE!"},{"$error":"#VALUE!"},null,26,{"$error":"#VALUE!"},{"$error":"#VALUE!"},{"$error":"#VALUE!"},{"$error":"#VALUE!"},null,26,{"$error":"#VALUE!"},{"$error":"#VALUE!"},{"$error":"#VALUE!"},{"$error":"#VALUE!"},null,26,{"$error":"#VALUE!"},{"$error":"#VALUE!"},{"$error":"#VALUE!"},{"$error":"#VALUE!"}]
[null,null,null,null,null,null,null,null,null,null,null,null,27,{"$error":"#VALUE!"},{"$error":"#VALUE!"},{"$error":"#VALUE!"},{"$error":"#VALUE!"},null,27,{"$error":"#VALUE!"},{"$error":"#VALUE!"},{"$error":"#VALUE!"},{"$error":"#VALUE!"},null,27,{"$error":"#VALUE!"},{"$error":"#VALUE!"},{"$error":"#VALUE!"},{"$error":"#VALUE!"},null,27,{"$error":"#VALUE!"},{"$error":"#VALUE!"},{"$error":"#VALUE!"},{"$error":"#VALUE!"},null,27,{"$error":"#VALUE!"},{"$error":"#VALUE!"},{"$error":"#VALUE!"},{"$error":"#VALUE!"},null,27,{"$error":"#VALUE!"},{"$error":"#VALUE!"},{"$error":"#VALUE!"},{"$error":"#VALUE!"},null,27,{"$error":"#VALUE!"},{"$error":"#VALUE!"},{"$error":"#VALUE!"},{"$error":"#VALUE!"},null,27,{"$error":"#VALUE!"},{"$error":"#VALUE!"},{"$error":"#VALUE!"},{"$error":"#VALUE!"}]
[null,null,null,null,null,null,null,null,null,null,null,null,28,{"$error":"#VALUE!"},{"$error":"#VALUE!"},{"$error":"#VALUE!"},{"$error":"#VALUE!"},null,28,{"$error":"#VALUE!"},{"$error":"#VALUE!"},{"$error":"#VALUE!"},{"$error":"#VALUE!"},null,28,{"$error":"#VALUE!"},{"$error":"#VALUE!"},{"$error":"#VALUE!"},{"$error":"#VALUE!"},null,28,{"$error":"#VALUE!"},{"$error":"#VALUE!"},{"$error":"#VALUE!"},{"$error":"#VALUE!"},null,28,{"$error":"#VALUE!"},{"$error":"#VALUE!"},{"$error":"#VALUE!"},{"$error":"#VALUE!"},null,28,{"$error":"#VALUE!"},{"$error":"#VALUE!"},{"$error":"#VALUE!"},{"$error":"#VALUE!"},null,28,{"$error":"#VALUE!"},{"$error":"#VALUE!"},{"$error":"#VALUE!"},{"$error":"#VALUE!"},null,28,{"$error":"#VALUE!"},{"$error":"#VALUE!"},{"$error":"#VALUE!"},{"$error":"#VALUE!"}]
[null,null,null,null,null,null,null,null,null,null,null,null,29,{"$error":"#VALUE!"},{"$error":"#VALUE!"},{"$error":"#VALUE!"},{"$error":"#VALUE!"},null,29,{"$error":"#VALUE!"},{"$error":"#VALUE!"},{"$error":"#VALUE!"},{"$error":"#VALUE!"},null,29,{"$error":"#VALUE!"},{"$error":"#VALUE!"},{"$error":"#VALUE!"},{"$error":"#VALUE!"},null,29,{"$error":"#VALUE!"},{"$error":"#VALUE!"},{"$error":"#VALUE!"},{"$error":"#VALUE!"},null,29,{"$error":"#VALUE!"},{"$error":"#VALUE!"},{"$error":"#VALUE!"},{"$error":"#VALUE!"},null,29,{"$error":"#VALUE!"},{"$error":"#VALUE!"},{"$error":"#VALUE!"},{"$error":"#VALUE!"},null,29,{"$error":"#VALUE!"},{"$error":"#VALUE!"},{"$error":"#VALUE!"},{"$error":"#VALUE!"},null,29,{"$error":"#VALUE!"},{"$error":"#VALUE!"},{"$error":"#VALUE!"},{"$error":"#VALUE!"}]
[null,null,null,null,null,null,null,null,null,null,null,null,30,{"$error":"#VALUE!"},{"$error":"#VALUE!"},{"$error":"#VALUE!"},{"$error":"#VALUE!"},null,30,{"$error":"#VALUE!"},{"$error":"#VALUE!"},{"$error":"#VALUE!"},{"$error":"#VALUE!"},null,30,{"$error":"#VALUE!"},{"$error":"#VALUE!"},{"$error":"#VALUE!"},{"$error":"#VALUE!"},null,30,{"$error":"#VALUE!"},{"$error":"#VALUE!"},{"$error":"#VALUE!"},{"$error":"#VALUE!"},null,30,{"$error":"#VALUE!"},{"$error":"#VALUE!"},{"$error":"#VALUE!"},{"$error":"#VALUE!"},null,30,{"$error":"#VALUE!"},{"$error":"#VALUE!"},{"$error":"#VALUE!"},{"$error":"#VALUE!"},null,30,{"$error":"#VALUE!"},{"$error":"#VALUE!"},{"$error":"#VALUE!"},{"$error":"#VALUE!"},null,30,{"$error":"#VALUE!"},{"$error":"#VALUE!"},{"$error":"#VALUE!"},{"$error":"#VALUE!"}]
[null,null,null,null,null,null,null,null,null,null,null,null,31,{"$error":"#VALUE!"},{"$error":"#VALUE!"},{"$error":"#VALUE!"},{"$error":"#VALUE!"},null,31,{"$error":"#VALUE!"},{"$error":"#VALUE!"},{"$error":"#VALUE!"},{"$error":"#VALUE!"},null,31,{"$error":"#VALUE!"},{"$error":"#VALUE!"},{"$error":"#VALUE!"},{"$error":"#VALUE!"},null,31,{"$error":"#VALUE!"},{"$error":"#VALUE!"},{"$error":"#VALUE!"},{"$error":"#VALUE!"},null,31,{"$error":"#VALUE!"},{"$error":"#VALUE!"},{"$error":"#VALUE!"},{"$error":"#VALUE!"},null,31,{"$error":"#VALUE!"},{"$error":"#VALUE!"},{"$error":"#VALUE!"},{"$error":"#VALUE!"},null,31,{"$error":"#VALUE!"},{"$error":"#VALUE!"},{"$error":"#VALUE!"},{"$error":"#VALUE!"},null,31,{"$error":"#VALUE!"},{"$error":"#VALUE!"},{"$error":"#VALUE!"},{"$error":"#VALUE!"}]
[null,null,null,null,null,null,null,null,null,null,null,null,32,{"$error":"#VALUE!"},{"$error":"#VALUE!"},{"$error":"#VALUE!"},{"$error":"#VALUE!"},null,32,{"$error":"#VALUE!"},{"$error":"#VALUE!"},{"$error":"#VALUE!"},{"$error":"#VALUE!"},null,32,{"$error":"#VALUE!"},{"$error":"#VALUE!"},{"$error":"#VALUE!"},{"$error":"#VALUE!"},null,32,{"$error":"#VALUE!"},{"$error":"#VALUE!"},{"$error":"#VALUE!"},{"$error":"#VALUE!"},null,32,{"$error":"#VALUE!"},{"$error":"#VALUE!"},{"$error":"#VALUE!"},{"$error":"#VALUE!"},null,32,{"$error":"#VALUE!"},{"$error":"#VALUE!"},{"$error":"#VALUE!"},{"$error":"#VALUE!"},null,32,{"$error":"#VALUE!"},{"$error":"#VALUE!"},{"$error":"#VALUE!"},{"$error":"#VALUE!"},null,32,{"$error":"#VALUE!"},{"$error":"#VALUE!"},{"$error":"#VALUE!"},{"$error":"#VALUE!"}]
[null,null,null,null,null,null,null,null,null,null,null,null,33,{"$error":"#VALUE!"},{"$error":"#VALUE!"},{"$error":"#VALUE!"},{"$error":"#VALUE!"},null,33,{"$error":"#VALUE!"},{"$error":"#VALUE!"},{"$error":"#VALUE!"},{"$error":"#VALUE!"},null,33,{"$error":"#VALUE!"},{"$error":"#VALUE!"},{"$error":"#VALUE!"},{"$error":"#VALUE!"},null,33,{"$error":"#VALUE!"},{"$error":"#VALUE!"},{"$error":"#VALUE!"},{"$error":"#VALUE!"},null,33,{"$error":"#VALUE!"},{"$error":"#VALUE!"},{"$error":"#VALUE!"},{"$error":"#VALUE!"},null,33,{"$error":"#VALUE!"},{"$error":"#VALUE!"},{"$error":"#VALUE!"},{"$error":"#VALUE!"},null,33,{"$error":"#VALUE!"},{"$error":"#VALUE!"},{"$error":"#VALUE!"},{"$error":"#VALUE!"},null,33,{"$error":"#VALUE!"},{"$error":"#VALUE!"},{"$error":"#VALUE!"},{"$error":"#VALUE!"}]
[null,null,null,null,null,null,null,null,null,null,null,null,34,{"$error":"#VALUE!"},{"$error":"#VALUE!"},{"$error":"#VALUE!"},{"$error":"#VALUE!"},null,34,{"$error":"#VALUE!"},{"$error":"#VALUE!"},{"$error":"#VALUE!"},{"$error":"#VALUE!"},null,34,{"$error":"#VALUE!"},{"$error":"#VALUE!"},{"$error":"#VALUE!"},{"$error":"#VALUE!"},null,34,{"$error":"#VALUE!"},{"$error":"#VALUE!"},{"$error":"#VALUE!"},{"$error":"#VALUE!"},null,34,{"$error":"#VALUE!"},{"$error":"#VALUE!"},{"$error":"#VALUE!"},{"$error":"#VALUE!"},null,34,{"$error":"#VALUE!"},{"$error":"#VALUE!"},{"$error":"#VALUE!"},{"$error":"#VALUE!"},null,34,{"$error":"#VALUE!"},{"$error":"#VALUE!"},{"$error":"#VALUE!"},{"$error":"#VALUE!"},null,34,{"$error":"#VALUE!"},{"$error":"#VALUE!"},{"$error":"#VALUE!"},{"$error":"#VALUE!"}]
[null,null,null,null,null,null,null,null,null,null,null,null,35,{"$error":"#VALUE!"},{"$error":"#VALUE!"},{"$error":"#VALUE!"},{"$error":"#VALUE!"},null,35,{"$error":"#VALUE!"},{"$error":"#VALUE!"},{"$error":"#VALUE!"},{"$error":"#VALUE!"},null,35,{"$error":"#VALUE!"},{"$error":"#VALUE!"},{"$error":"#VALUE!"},{"$error":"#VALUE!"},null,35,{"$error":"#VALUE!"},{"$error":"#VALUE!"},{"$error":"#VALUE!"},{"$error":"#VALUE!"},null,35,{"$error":"#VALUE!"},{"$error":"#VALUE!"},{"$error":"#VALUE!"},{"$error":"#VALUE!"},null,35,{"$error":"#VALUE!"},{"$error":"#VALUE!"},{"$error":"#VALUE!"},{"$error":"#VALUE!"},null,35,{"$error":"#VALUE!"},{"$error":"#VALUE!"},{"$error":"#VALUE!"},{"$error":"#VALUE!"},null,35,{"$error":"#VALUE!"},{"$error":"#VALUE!"},{"$error":"#VALUE!"},{"$error":"#VALUE!"}]
[null,null,null,null,null,null,null,null,null,null,null,null,36,{"$error":"#VALUE!"},{"$error":"#VALUE!"},{"$error":"#VALUE!"},{"$error":"#VALUE!"},null,36,{"$error":"#VALUE!"},{"$error":"#VALUE!"},{"$error":"#VALUE!"},{"$error":"#VALUE!"},null,36,{"$error":"#VALUE!"},{"$error":"#VALUE!"},{"$error":"#VALUE!"},{"$error":"#VALUE!"},null,36,{"$error":"#VALUE!"},{"$error":"#VALUE!"},{"$error":"#VALUE!"},{"$error":"#VALUE!"},null,36,{"$error":"#VALUE!"},{"$error":"#VALUE!"},{"$error":"#VALUE!"},{"$error":"#VALUE!"},null,36,{"$error":"#VALUE!"},{"$error":"#VALUE!"},{"$error":"#VALUE!"},{"$error":"#VALUE!"},null,36,{"$error":"#VALUE!"},{"$error":"#VALUE!"},{"$error":"#VALUE!"},{"$error":"#VALUE!"},null,36,{"$error":"#VALUE!"},{"$error":"#VALUE!"},{"$error":"#VALUE!"},{"$error":"#VALUE!"}]
[null,null,null,null,null,null,null,null,null,null,null,null,null,null,null,null,null,null,37,{"$error":"#VALUE!"},{"$error":"#VALUE!"},{"$error":"#VALUE!"},{"$error":"#VALUE!"},null,37,{"$error":"#VALUE!"},{"$error":"#VALUE!"},{"$error":"#VALUE!"},{"$error":"#VALUE!"},null,37,{"$error":"#VALUE!"},{"$error":"#VALUE!"},{"$error":"#VALUE!"},{"$error":"#VALUE!"},null,37,{"$error":"#VALUE!"},{"$error":"#VALUE!"},{"$error":"#VALUE!"},{"$error":"#VALUE!"},null,37,{"$error":"#VALUE!"},{"$error":"#VALUE!"},{"$error":"#VALUE!"},{"$error":"#VALUE!"},null,37,{"$error":"#VALUE!"},{"$error":"#VALUE!"},{"$error":"#VALUE!"},{"$error":"#VALUE!"},null,37,{"$error":"#VALUE!"},{"$error":"#VALUE!"},{"$error":"#VALUE!"},{"$error":"#VALUE!"}]
[null,null,null,null,null,null,null,null,null,null,null,null,null,null,null,null,null,null,38,{"$error":"#VALUE!"},{"$error":"#VALUE!"},{"$error":"#VALUE!"},{"$error":"#VALUE!"},null,38,{"$error":"#VALUE!"},{"$error":"#VALUE!"},{"$error":"#VALUE!"},{"$error":"#VALUE!"},null,38,{"$error":"#VALUE!"},{"$error":"#VALUE!"},{"$error":"#VALUE!"},{"$error":"#VALUE!"},null,38,{"$error":"#VALUE!"},{"$error":"#VALUE!"},{"$error":"#VALUE!"},{"$error":"#VALUE!"},null,38,{"$error":"#VALUE!"},{"$error":"#VALUE!"},{"$error":"#VALUE!"},{"$error":"#VALUE!"},null,38,{"$error":"#VALUE!"},{"$error":"#VALUE!"},{"$error":"#VALUE!"},{"$error":"#VALUE!"},null,38,{"$error":"#VALUE!"},{"$error":"#VALUE!"},{"$error":"#VALUE!"},{"$error":"#VALUE!"}]
[null,null,null,null,null,null,null,null,null,null,null,null,null,null,null,null,null,null,39,{"$error":"#VALUE!"},{"$error":"#VALUE!"},{"$error":"#VALUE!"},{"$error":"#VALUE!"},null,39,{"$error":"#VALUE!"},{"$error":"#VALUE!"},{"$error":"#VALUE!"},{"$error":"#VALUE!"},null,39,{"$error":"#VALUE!"},{"$error":"#VALUE!"},{"$error":"#VALUE!"},{"$error":"#VALUE!"},null,39,{"$error":"#VALUE!"},{"$error":"#VALUE!"},{"$error":"#VALUE!"},{"$error":"#VALUE!"},null,39,{"$error":"#VALUE!"},{"$error":"#VALUE!"},{"$error":"#VALUE!"},{"$error":"#VALUE!"},null,39,{"$error":"#VALUE!"},{"$error":"#VALUE!"},{"$error":"#VALUE!"},{"$error":"#VALUE!"},null,39,{"$error":"#VALUE!"},{"$error":"#VALUE!"},{"$error":"#VALUE!"},{"$error":"#VALUE!"}]
[null,null,null,null,null,null,null,null,null,null,null,null,null,null,null,null,null,null,40,{"$error":"#VALUE!"},{"$error":"#VALUE!"},{"$error":"#VALUE!"},{"$error":"#VALUE!"},null,40,{"$error":"#VALUE!"},{"$error":"#VALUE!"},{"$error":"#VALUE!"},{"$error":"#VALUE!"},null,40,{"$error":"#VALUE!"},{"$error":"#VALUE!"},{"$error":"#VALUE!"},{"$error":"#VALUE!"},null,40,{"$error":"#VALUE!"},{"$error":"#VALUE!"},{"$error":"#VALUE!"},{"$error":"#VALUE!"},null,40,{"$error":"#VALUE!"},{"$error":"#VALUE!"},{"$error":"#VALUE!"},{"$error":"#VALUE!"},null,40,{"$error":"#VALUE!"},{"$error":"#VALUE!"},{"$error":"#VALUE!"},{"$error":"#VALUE!"},null,40,{"$error":"#VALUE!"},{"$error":"#VALUE!"},{"$error":"#VALUE!"},{"$error":"#VALUE!"}]
[null,null,null,null,null,null,null,null,null,null,null,null,null,null,null,null,null,null,41,{"$error":"#VALUE!"},{"$error":"#VALUE!"},{"$error":"#VALUE!"},{"$error":"#VALUE!"},null,41,{"$error":"#VALUE!"},{"$error":"#VALUE!"},{"$error":"#VALUE!"},{"$error":"#VALUE!"},null,41,{"$error":"#VALUE!"},{"$error":"#VALUE!"},{"$error":"#VALUE!"},{"$error":"#VALUE!"},null,41,{"$error":"#VALUE!"},{"$error":"#VALUE!"},{"$error":"#VALUE!"},{"$error":"#VALUE!"},null,41,{"$error":"#VALUE!"},{"$error":"#VALUE!"},{"$error":"#VALUE!"},{"$error":"#VALUE!"},null,41,{"$error":"#VALUE!"},{"$error":"#VALUE!"},{"$error":"#VALUE!"},{"$error":"#VALUE!"},null,41,{"$error":"#VALUE!"},{"$error":"#VALUE!"},{"$error":"#VALUE!"},{"$error":"#VALUE!"}]
[null,null,null,null,null,null,null,null,null,null,null,null,null,null,null,null,null,null,42,{"$error":"#VALUE!"},{"$error":"#VALUE!"},{"$error":"#VALUE!"},{"$error":"#VALUE!"},null,42,{"$error":"#VALUE!"},{"$error":"#VALUE!"},{"$error":"#VALUE!"},{"$error":"#VALUE!"},null,42,{"$error":"#VALUE!"},{"$error":"#VALUE!"},{"$error":"#VALUE!"},{"$error":"#VALUE!"},null,42,{"$error":"#VALUE!"},{"$error":"#VALUE!"},{"$error":"#VALUE!"},{"$error":"#VALUE!"},null,42,{"$error":"#VALUE!"},{"$error":"#VALUE!"},{"$error":"#VALUE!"},{"$error":"#VALUE!"},null,42,{"$error":"#VALUE!"},{"$error":"#VALUE!"},{"$error":"#VALUE!"},{"$error":"#VALUE!"},null,42,{"$error":"#VALUE!"},{"$error":"#VALUE!"},{"$error":"#VALUE!"},{"$error":"#VALUE!"}]
[null,null,null,null,null,null,null,null,null,null,null,null,null,null,null,null,null,null,43,{"$error":"#VALUE!"},{"$error":"#VALUE!"},{"$error":"#VALUE!"},{"$error":"#VALUE!"},null,43,{"$error":"#VALUE!"},{"$error":"#VALUE!"},{"$error":"#VALUE!"},{"$error":"#VALUE!"},null,43,{"$error":"#VALUE!"},{"$error":"#VALUE!"},{"$error":"#VALUE!"},{"$error":"#VALUE!"},null,43,{"$error":"#VALUE!"},{"$error":"#VALUE!"},{"$error":"#VALUE!"},{"$error":"#VALUE!"},null,43,{"$error":"#VALUE!"},{"$error":"#VALUE!"},{"$error":"#VALUE!"},{"$error":"#VALUE!"},null,43,{"$error":"#VALUE!"},{"$error":"#VALUE!"},{"$error":"#VALUE!"},{"$error":"#VALUE!"},null,43,{"$error":"#VALUE!"},{"$error":"#VALUE!"},{"$error":"#VALUE!"},{"$error":"#VALUE!"}]
[null,null,null,null,null,null,null,null,null,null,null,null,null,null,null,null,null,null,44,{"$error":"#VALUE!"},{"$error":"#VALUE!"},{"$error":"#VALUE!"},{"$error":"#VALUE!"},null,44,{"$error":"#VALUE!"},{"$error":"#VALUE!"},{"$error":"#VALUE!"},{"$error":"#VALUE!"},null,44,{"$error":"#VALUE!"},{"$error":"#VALUE!"},{"$error":"#VALUE!"},{"$error":"#VALUE!"},null,44,{"$error":"#VALUE!"},{"$error":"#VALUE!"},{"$error":"#VALUE!"},{"$error":"#VALUE!"},null,44,{"$error":"#VALUE!"},{"$error":"#VALUE!"},{"$error":"#VALUE!"},{"$error":"#VALUE!"},null,44,{"$error":"#VALUE!"},{"$error":"#VALUE!"},{"$error":"#VALUE!"},{"$error":"#VALUE!"},null,44,{"$error":"#VALUE!"},{"$error":"#VALUE!"},{"$error":"#VALUE!"},{"$error":"#VALUE!"}]
[null,null,null,null,null,null,null,null,null,null,null,null,null,null,null,null,null,null,45,{"$error":"#VALUE!"},{"$error":"#VALUE!"},{"$error":"#VALUE!"},{"$error":"#VALUE!"},null,45,{"$error":"#VALUE!"},{"$error":"#VALUE!"},{"$error":"#VALUE!"},{"$error":"#VALUE!"},null,45,{"$error":"#VALUE!"},{"$error":"#VALUE!"},{"$error":"#VALUE!"},{"$error":"#VALUE!"},null,45,{"$error":"#VALUE!"},{"$error":"#VALUE!"},{"$error":"#VALUE!"},{"$error":"#VALUE!"},null,45,{"$error":"#VALUE!"},{"$error":"#VALUE!"},{"$error":"#VALUE!"},{"$error":"#VALUE!"},null,45,{"$error":"#VALUE!"},{"$error":"#VALUE!"},{"$error":"#VALUE!"},{"$error":"#VALUE!"},null,45,{"$error":"#VALUE!"},{"$error":"#VALUE!"},{"$error":"#VALUE!"},{"$error":"#VALUE!"}]
[null,null,null,null,null,null,null,null,null,null,null,null,null,null,null,null,null,null,46,{"$error":"#VALUE!"},{"$error":"#VALUE!"},{"$error":"#VALUE!"},{"$error":"#VALUE!"},null,46,{"$error":"#VALUE!"},{"$error":"#VALUE!"},{"$error":"#VALUE!"},{"$error":"#VALUE!"},null,46,{"$error":"#VALUE!"},{"$error":"#VALUE!"},{"$error":"#VALUE!"},{"$error":"#VALUE!"},null,46,{"$error":"#VALUE!"},{"$error":"#VALUE!"},{"$error":"#VALUE!"},{"$error":"#VALUE!"},null,46,{"$error":"#VALUE!"},{"$error":"#VALUE!"},{"$error":"#VALUE!"},{"$error":"#VALUE!"},null,46,{"$error":"#VALUE!"},{"$error":"#VALUE!"},{"$error":"#VALUE!"},{"$error":"#VALUE!"},null,46,{"$error":"#VALUE!"},{"$error":"#VALUE!"},{"$error":"#VALUE!"},{"$error":"#VALUE!"}]
[null,null,null,null,null,null,null,null,null,null,null,null,null,null,null,null,null,null,47,{"$error":"#VALUE!"},{"$error":"#VALUE!"},{"$error":"#VALUE!"},{"$error":"#VALUE!"},null,47,{"$error":"#VALUE!"},{"$error":"#VALUE!"},{"$error":"#VALUE!"},{"$error":"#VALUE!"},null,47,{"$error":"#VALUE!"},{"$error":"#VALUE!"},{"$error":"#VALUE!"},{"$error":"#VALUE!"},null,47,{"$error":"#VALUE!"},{"$error":"#VALUE!"},{"$error":"#VALUE!"},{"$error":"#VALUE!"},null,47,{"$error":"#VALUE!"},{"$error":"#VALUE!"},{"$error":"#VALUE!"},{"$error":"#VALUE!"},null,47,{"$error":"#VALUE!"},{"$error":"#VALUE!"},{"$error":"#VALUE!"},{"$error":"#VALUE!"},null,47,{"$error":"#VALUE!"},{"$error":"#VALUE!"},{"$error":"#VALUE!"},{"$error":"#VALUE!"}]
[null,null,null,null,null,null,null,null,null,null,null,null,null,null,null,null,null,null,48,{"$error":"#VALUE!"},{"$error":"#VALUE!"},{"$error":"#VALUE!"},{"$error":"#VALUE!"},null,48,{"$error":"#VALUE!"},{"$error":"#VALUE!"},{"$error":"#VALUE!"},{"$error":"#VALUE!"},null,48,{"$error":"#VALUE!"},{"$error":"#VALUE!"},{"$error":"#VALUE!"},{"$error":"#VALUE!"},null,48,{"$error":"#VALUE!"},{"$error":"#VALUE!"},{"$error":"#VALUE!"},{"$error":"#VALUE!"},null,48,{"$error":"#VALUE!"},{"$error":"#VALUE!"},{"$error":"#VALUE!"},{"$error":"#VALUE!"},null,48,{"$error":"#VALUE!"},{"$error":"#VALUE!"},{"$error":"#VALUE!"},{"$error":"#VALUE!"},null,48,{"$error":"#VALUE!"},{"$error":"#VALUE!"},{"$error":"#VALUE!"},{"$error":"#VALUE!"}]
[null,null,null,null,null,null,null,null,null,null,null,null,null,null,null,null,null,null,null,null,null,null,null,null,49,{"$error":"#VALUE!"},{"$error":"#VALUE!"},{"$error":"#VALUE!"},{"$error":"#VALUE!"},null,49,{"$error":"#VALUE!"},{"$error":"#VALUE!"},{"$error":"#VALUE!"},{"$error":"#VALUE!"},null,49,{"$error":"#VALUE!"},{"$error":"#VALUE!"},{"$error":"#VALUE!"},{"$error":"#VALUE!"},null,49,{"$error":"#VALUE!"},{"$error":"#VALUE!"},{"$error":"#VALUE!"},{"$error":"#VALUE!"},null,49,{"$error":"#VALUE!"},{"$error":"#VALUE!"},{"$error":"#VALUE!"},{"$error":"#VALUE!"},null,49,{"$error":"#VALUE!"},{"$error":"#VALUE!"},{"$error":"#VALUE!"},{"$error":"#VALUE!"}]
[null,null,null,null,null,null,null,null,null,null,null,null,null,null,null,null,null,null,null,null,null,null,null,null,50,{"$error":"#VALUE!"},{"$error":"#VALUE!"},{"$error":"#VALUE!"},{"$error":"#VALUE!"},null,50,{"$error":"#VALUE!"},{"$error":"#VALUE!"},{"$error":"#VALUE!"},{"$error":"#VALUE!"},null,50,{"$error":"#VALUE!"},{"$error":"#VALUE!"},{"$error":"#VALUE!"},{"$error":"#VALUE!"},null,50,{"$error":"#VALUE!"},{"$error":"#VALUE!"},{"$error":"#VALUE!"},{"$error":"#VALUE!"},null,50,{"$error":"#VALUE!"},{"$error":"#VALUE!"},{"$error":"#VALUE!"},{"$error":"#VALUE!"},null,50,{"$error":"#VALUE!"},{"$error":"#VALUE!"},{"$error":"#VALUE!"},{"$error":"#VALUE!"}]
[null,null,null,null,null,null,null,null,null,null,null,null,null,null,null,null,null,null,null,null,null,null,null,null,51,{"$error":"#VALUE!"},{"$error":"#VALUE!"},{"$error":"#VALUE!"},{"$error":"#VALUE!"},null,51,{"$error":"#VALUE!"},{"$error":"#VALUE!"},{"$error":"#VALUE!"},{"$error":"#VALUE!"},null,51,{"$error":"#VALUE!"},{"$error":"#VALUE!"},{"$error":"#VALUE!"},{"$error":"#VALUE!"},null,51,{"$error":"#VALUE!"},{"$error":"#VALUE!"},{"$error":"#VALUE!"},{"$error":"#VALUE!"},null,51,{"$error":"#VALUE!"},{"$error":"#VALUE!"},{"$error":"#VALUE!"},{"$error":"#VALUE!"},null,51,{"$error":"#VALUE!"},{"$error":"#VALUE!"},{"$error":"#VALUE!"},{"$error":"#VALUE!"}]
[null,null,null,null,null,null,null,null,null,null,null,null,null,null,null,null,null,null,null,null,null,null,null,null,52,{"$error":"#VALUE!"},{"$error":"#VALUE!"},{"$error":"#VALUE!"},{"$error":"#VALUE!"},null,52,{"$error":"#VALUE!"},{"$error":"#VALUE!"},{"$error":"#VALUE!"},{"$error":"#VALUE!"},null,52,{"$error":"#VALUE!"},{"$error":"#VALUE!"},{"$error":"#VALUE!"},{"$error":"#VALUE!"},null,52,{"$error":"#VALUE!"},{"$error":"#VALUE!"},{"$error":"#VALUE!"},{"$error":"#VALUE!"},null,52,{"$error":"#VALUE!"},{"$error":"#VALUE!"},{"$error":"#VALUE!"},{"$error":"#VALUE!"},null,52,{"$error":"#VALUE!"},{"$error":"#VALUE!"},{"$error":"#VALUE!"},{"$error":"#VALUE!"}]
[null,null,null,null,null,null,null,null,null,null,null,null,null,null,null,null,null,null,null,null,null,null,null,null,53,{"$error":"#VALUE!"},{"$error":"#VALUE!"},{"$error":"#VALUE!"},{"$error":"#VALUE!"},null,53,{"$error":"#VALUE!"},{"$error":"#VALUE!"},{"$error":"#VALUE!"},{"$error":"#VALUE!"},null,53,{"$error":"#VALUE!"},{"$error":"#VALUE!"},{"$error":"#VALUE!"},{"$error":"#VALUE!"},null,53,{"$error":"#VALUE!"},{"$error":"#VALUE!"},{"$error":"#VALUE!"},{"$error":"#VALUE!"},null,53,{"$error":"#VALUE!"},{"$error":"#VALUE!"},{"$error":"#VALUE!"},{"$error":"#VALUE!"},null,53,{"$error":"#VALUE!"},{"$error":"#VALUE!"},{"$error":"#VALUE!"},{"$error":"#VALUE!"}]
[null,null,null,null,null,null,null,null,null,null,null,null,null,null,null,null,null,null,null,null,null,null,null,null,54,{"$error":"#VALUE!"},{"$error":"#VALUE!"},{"$error":"#VALUE!"},{"$error":"#VALUE!"},null,54,{"$error":"#VALUE!"},{"$error":"#VALUE!"},{"$error":"#VALUE!"},{"$error":"#VALUE!"},null,54,{"$error":"#VALUE!"},{"$error":"#VALUE!"},{"$error":"#VALUE!"},{"$error":"#VALUE!"},null,54,{"$error":"#VALUE!"},{"$error":"#VALUE!"},{"$error":"#VALUE!"},{"$error":"#VALUE!"},null,54,{"$error":"#VALUE!"},{"$error":"#VALUE!"},{"$error":"#VALUE!"},{"$error":"#VALUE!"},null,54,{"$error":"#VALUE!"},{"$error":"#VALUE!"},{"$error":"#VALUE!"},{"$error":"#VALUE!"}]
[null,null,null,null,null,null,null,null,null,null,null,null,null,null,null,null,null,null,null,null,null,null,null,null,55,{"$error":"#VALUE!"},{"$error":"#VALUE!"},{"$error":"#VALUE!"},{"$error":"#VALUE!"},null,55,{"$error":"#VALUE!"},{"$error":"#VALUE!"},{"$error":"#VALUE!"},{"$error":"#VALUE!"},null,55,{"$error":"#VALUE!"},{"$error":"#VALUE!"},{"$error":"#VALUE!"},{"$error":"#VALUE!"},null,55,{"$error":"#VALUE!"},{"$error":"#VALUE!"},{"$error":"#VALUE!"},{"$error":"#VALUE!"},null,55,{"$error":"#VALUE!"},{"$error":"#VALUE!"},{"$error":"#VALUE!"},{"$error":"#VALUE!"},null,55,{"$error":"#VALUE!"},{"$error":"#VALUE!"},{"$error":"#VALUE!"},{"$error":"#VALUE!"}]
[null,null,null,null,null,null,null,null,null,null,null,null,null,null,null,null,null,null,null,null,null,null,null,null,56,{"$error":"#VALUE!"},{"$error":"#VALUE!"},{"$error":"#VALUE!"},{"$error":"#VALUE!"},null,56,{"$error":"#VALUE!"},{"$error":"#VALUE!"},{"$error":"#VALUE!"},{"$error":"#VALUE!"},null,56,{"$error":"#VALUE!"},{"$error":"#VALUE!"},{"$error":"#VALUE!"},{"$error":"#VALUE!"},null,56,{"$error":"#VALUE!"},{"$error":"#VALUE!"},{"$error":"#VALUE!"},{"$error":"#VALUE!"},null,56,{"$error":"#VALUE!"},{"$error":"#VALUE!"},{"$error":"#VALUE!"},{"$error":"#VALUE!"},null,56,{"$error":"#VALUE!"},{"$error":"#VALUE!"},{"$error":"#VALUE!"},{"$error":"#VALUE!"}]
[null,null,null,null,null,null,null,null,null,null,null,null,null,null,null,null,null,null,null,null,null,null,null,null,57,{"$error":"#VALUE!"},{"$error":"#VALUE!"},{"$error":"#VALUE!"},{"$error":"#VALUE!"},null,57,{"$error":"#VALUE!"},{"$error":"#VALUE!"},{"$error":"#VALUE!"},{"$error":"#VALUE!"},null,57,{"$error":"#VALUE!"},{"$error":"#VALUE!"},{"$error":"#VALUE!"},{"$error":"#VALUE!"},null,57,{"$error":"#VALUE!"},{"$error":"#VALUE!"},{"$error":"#VALUE!"},{"$error":"#VALUE!"},null,57,{"$error":"#VALUE!"},{"$error":"#VALUE!"},{"$error":"#VALUE!"},{"$error":"#VALUE!"},null,57,{"$error":"#VALUE!"},{"$error":"#VALUE!"},{"$error":"#VALUE!"},{"$error":"#VALUE!"}]
[null,null,null,null,null,null,null,null,null,null,null,null,null,null,null,null,null,null,null,null,null,null,null,null,58,{"$error":"#VALUE!"},{"$error":"#VALUE!"},{"$error":"#VALUE!"},{"$error":"#VALUE!"},null,58,{"$error":"#VALUE!"},{"$error":"#VALUE!"},{"$error":"#VALUE!"},{"$error":"#VALUE!"},null,58,{"$error":"#VALUE!"},{"$error":"#VALUE!"},{"$error":"#VALUE!"},{"$error":"#VALUE!"},null,58,{"$error":"#VALUE!"},{"$error":"#VALUE!"},{"$error":"#VALUE!"},{"$error":"#VALUE!"},null,58,{"$error":"#VALUE!"},{"$error":"#VALUE!"},{"$error":"#VALUE!"},{"$error":"#VALUE!"},null,58,{"$error":"#VALUE!"},{"$error":"#VALUE!"},{"$error":"#VALUE!"},{"$error":"#VALUE!"}]
[null,null,null,null,null,null,null,null,null,null,null,null,null,null,null,null,null,null,null,null,null,null,null,null,59,{"$error":"#VALUE!"},{"$error":"#VALUE!"},{"$error":"#VALUE!"},{"$error":"#VALUE!"},null,59,{"$error":"#VALUE!"},{"$error":"#VALUE!"},{"$error":"#VALUE!"},{"$error":"#VALUE!"},null,59,{"$error":"#VALUE!"},{"$error":"#VALUE!"},{"$error":"#VALUE!"},{"$error":"#VALUE!"},null,59,{"$error":"#VALUE!"},{"$error":"#VALUE!"},{"$error":"#VALUE!"},{"$error":"#VALUE!"},null,59,{"$error":"#VALUE!"},{"$error":"#VALUE!"},{"$error":"#VALUE!"},{"$error":"#VALUE!"},null,59,{"$error":"#VALUE!"},{"$error":"#VALUE!"},{"$error":"#VALUE!"},{"$error":"#VALUE!"}]
[null,null,null,null,null,null,null,null,null,null,null,null,null,null,null,null,null,null,null,null,null,null,null,null,60,{"$error":"#VALUE!"},{"$error":"#VALUE!"},{"$error":"#VALUE!"},{"$error":"#VALUE!"},null,60,{"$error":"#VALUE!"},{"$error":"#VALUE!"},{"$error":"#VALUE!"},{"$error":"#VALUE!"},null,60,{"$error":"#VALUE!"},{"$error":"#VALUE!"},{"$error":"#VALUE!"},{"$error":"#VALUE!"},null,60,{"$error":"#VALUE!"},{"$error":"#VALUE!"},{"$error":"#VALUE!"},{"$error":"#VALUE!"},null,60,{"$error":"#VALUE!"},{"$error":"#VALUE!"},{"$error":"#VALUE!"},{"$error":"#VALUE!"},null,60,{"$error":"#VALUE!"},{"$error":"#VALUE!"},{"$error":"#VALUE!"},{"$error":"#VALUE!"}]
[null,null,null,null,null,null,null,null,null,null,null,null,null,null,null,null,null,null,null,null,null,null,null,null,null,null,null,null,null,null,61,{"$error":"#VALUE!"},{"$error":"#VALUE!"},{"$error":"#VALUE!"},{"$error":"#VALUE!"},null,61,{"$error":"#VALUE!"},{"$error":"#VALUE!"},{"$error":"#VALUE!"},{"$error":"#VALUE!"},null,61,{"$error":"#VALUE!"},{"$error":"#VALUE!"},{"$error":"#VALUE!"},{"$error":"#VALUE!"},null,61,{"$error":"#VALUE!"},{"$error":"#VALUE!"},{"$error":"#VALUE!"},{"$error":"#VALUE!"},null,61,{"$error":"#VALUE!"},{"$error":"#VALUE!"},{"$error":"#VALUE!"},{"$error":"#VALUE!"}]
[null,null,null,null,null,null,null,null,null,null,null,null,null,null,null,null,null,null,null,null,null,null,null,null,null,null,null,null,null,null,62,{"$error":"#VALUE!"},{"$error":"#VALUE!"},{"$error":"#VALUE!"},{"$error":"#VALUE!"},null,62,{"$error":"#VALUE!"},{"$error":"#VALUE!"},{"$error":"#VALUE!"},{"$error":"#VALUE!"},null,62,{"$error":"#VALUE!"},{"$error":"#VALUE!"},{"$error":"#VALUE!"},{"$error":"#VALUE!"},null,62,{"$error":"#VALUE!"},{"$error":"#VALUE!"},{"$error":"#VALUE!"},{"$error":"#VALUE!"},null,62,{"$error":"#VALUE!"},{"$error":"#VALUE!"},{"$error":"#VALUE!"},{"$error":"#VALUE!"}]
[null,null,null,null,null,null,null,null,null,null,null,null,null,null,null,null,null,null,null,null,null,null,null,null,null,null,null,null,null,null,63,{"$error":"#VALUE!"},{"$error":"#VALUE!"},{"$error":"#VALUE!"},{"$error":"#VALUE!"},null,63,{"$error":"#VALUE!"},{"$error":"#VALUE!"},{"$error":"#VALUE!"},{"$error":"#VALUE!"},null,63,{"$error":"#VALUE!"},{"$error":"#VALUE!"},{"$error":"#VALUE!"},{"$error":"#VALUE!"},null,63,{"$error":"#VALUE!"},{"$error":"#VALUE!"},{"$error":"#VALUE!"},{"$error":"#VALUE!"},null,63,{"$error":"#VALUE!"},{"$error":"#VALUE!"},{"$error":"#VALUE!"},{"$error":"#VALUE!"}]
[null,null,null,null,null,null,null,null,null,null,null,null,null,null,null,null,null,null,null,null,null,null,null,null,null,null,null,null,null,null,64,{"$error":"#VALUE!"},{"$error":"#VALUE!"},{"$error":"#VALUE!"},{"$error":"#VALUE!"},null,64,{"$error":"#VALUE!"},{"$error":"#VALUE!"},{"$error":"#VALUE!"},{"$error":"#VALUE!"},null,64,{"$error":"#VALUE!"},{"$error":"#VALUE!"},{"$error":"#VALUE!"},{"$error":"#VALUE!"},null,64,{"$error":"#VALUE!"},{"$error":"#VALUE!"},{"$error":"#VALUE!"},{"$error":"#VALUE!"},null,64,{"$error":"#VALUE!"},{"$error":"#VALUE!"},{"$error":"#VALUE!"},{"$error":"#VALUE!"}]
[null,null,null,null,null,null,null,null,null,null,null,null,null,null,null,null,null,null,null,null,null,null,null,null,null,null,null,null,null,null,65,{"$error":"#VALUE!"},{"$error":"#VALUE!"},{"$error":"#VALUE!"},{"$error":"#VALUE!"},null,65,{"$error":"#VALUE!"},{"$error":"#VALUE!"},{"$error":"#VALUE!"},{"$error":"#VALUE!"},null,65,{"$error":"#VALUE!"},{"$error":"#VALUE!"},{"$error":"#VALUE!"},{"$error":"#VALUE!"},null,65,{"$error":"#VALUE!"},{"$error":"#VALUE!"},{"$error":"#VALUE!"},{"$error":"#VALUE!"},null,65,{"$error":"#VALUE!"},{"$error":"#VALUE!"},{"$error":"#VALUE!"},{"$error":"#VALUE!"}]
[null,null,null,null,null,null,null,null,null,null,null,null,null,null,null,null,null,null,null,null,null,null,null,null,null,null,null,null,null,null,66,{"$error":"#VALUE!"},{"$f":"$B$3/$AE$1","v":{"$error":"#VALUE!"}},{"$f":"AF68*$AF$1/12","v":{"$error":"#VALUE!"}},{"$f":"AG69+AH69","v":{"$error":"#VALUE!"}},null,66,{"$error":"#VALUE!"},{"$f":"$B$3/$AK$1","v":{"$error":"#VALUE!"}},{"$f":"AL68*$AL$1/12","v":{"$error":"#VALUE!"}},{"$f":"AM69+AN69","v":{"$error":"#VALUE!"}},null,66,{"$f":"AR68-AS69","v":{"$error":"#VALUE!"}},{"$f":"$B$3/$AQ$1","v":{"$error":"#VALUE!"}},{"$f":"AR68*$AL$1/12","v":{"$error":"#VALUE!"}},{"$f":"AS69+AT69","v":{"$error":"#VALUE!"}},null,66,{"$f":"AX68-AY69","v":{"$error":"#VALUE!"}},{"$f":"$B$3/$AW$1","v":{"$error":"#VALUE!"}},{"$f":"AX68*$AL$1/12","v":{"$error":"#VALUE!"}},{"$f":"AY69+AZ69","v":{"$error":"#VALUE!"}},null,66,{"$error":"#VALUE!"},{"$f":"$B$3/$BC$1","v":{"$error":"#VALUE!"}},{"$f":"BD68*$BD$1/12","v":{"$error":"#VALUE!"}},{"$f":"BE69+BF69","v":{"$error":"#VALUE!"}}]
[null,null,null,null,null,null,null,null,null,null,null,null,null,null,null,null,null,null,null,null,null,null,null,null,null,null,null,null,null,null,67,{"$error":"#VALUE!"},{"$error":"#VALUE!"},{"$error":"#VALUE!"},{"$error":"#VALUE!"},null,67,{"$error":"#VALUE!"},{"$error":"#VALUE!"},{"$error":"#VALUE!"},{"$error":"#VALUE!"},null,67,{"$error":"#VALUE!"},{"$error":"#VALUE!"},{"$error":"#VALUE!"},{"$error":"#VALUE!"},null,67,{"$error":"#VALUE!"},{"$error":"#VALUE!"},{"$error":"#VALUE!"},{"$error":"#VALUE!"},null,67,{"$error":"#VALUE!"},{"$error":"#VALUE!"},{"$error":"#VALUE!"},{"$error":"#VALUE!"}]
[null,null,null,null,null,null,null,null,null,null,null,null,null,null,null,null,null,null,null,null,null,null,null,null,null,null,null,null,null,null,68,{"$error":"#VALUE!"},{"$error":"#VALUE!"},{"$error":"#VALUE!"},{"$error":"#VALUE!"},null,68,{"$error":"#VALUE!"},{"$error":"#VALUE!"},{"$error":"#VALUE!"},{"$error":"#VALUE!"},null,68,{"$error":"#VALUE!"},{"$error":"#VALUE!"},{"$error":"#VALUE!"},{"$error":"#VALUE!"},null,68,{"$error":"#VALUE!"},{"$error":"#VALUE!"},{"$error":"#VALUE!"},{"$error":"#VALUE!"},null,68,{"$error":"#VALUE!"},{"$error":"#VALUE!"},{"$error":"#VALUE!"},{"$error":"#VALUE!"}]
[null,null,null,null,null,null,null,null,null,null,null,null,null,null,null,null,null,null,null,null,null,null,null,null,null,null,null,null,null,null,69,{"$error":"#VALUE!"},{"$error":"#VALUE!"},{"$error":"#VALUE!"},{"$error":"#VALUE!"},null,69,{"$error":"#VALUE!"},{"$error":"#VALUE!"},{"$error":"#VALUE!"},{"$error":"#VALUE!"},null,69,{"$error":"#VALUE!"},{"$error":"#VALUE!"},{"$error":"#VALUE!"},{"$error":"#VALUE!"},null,69,{"$error":"#VALUE!"},{"$error":"#VALUE!"},{"$error":"#VALUE!"},{"$error":"#VALUE!"},null,69,{"$error":"#VALUE!"},{"$error":"#VALUE!"},{"$error":"#VALUE!"},{"$error":"#VALUE!"}]
[null,null,null,null,null,null,null,null,null,null,null,null,null,null,null,null,null,null,null,null,null,null,null,null,null,null,null,null,null,null,70,{"$error":"#VALUE!"},{"$error":"#VALUE!"},{"$error":"#VALUE!"},{"$error":"#VALUE!"},null,70,{"$error":"#VALUE!"},{"$error":"#VALUE!"},{"$error":"#VALUE!"},{"$error":"#VALUE!"},null,70,{"$error":"#VALUE!"},{"$error":"#VALUE!"},{"$error":"#VALUE!"},{"$error":"#VALUE!"},null,70,{"$error":"#VALUE!"},{"$error":"#VALUE!"},{"$error":"#VALUE!"},{"$error":"#VALUE!"},null,70,{"$error":"#VALUE!"},{"$error":"#VALUE!"},{"$error":"#VALUE!"},{"$error":"#VALUE!"}]
[null,null,null,null,null,null,null,null,null,null,null,null,null,null,null,null,null,null,null,null,null,null,null,null,null,null,null,null,null,null,71,{"$error":"#VALUE!"},{"$error":"#VALUE!"},{"$error":"#VALUE!"},{"$error":"#VALUE!"},null,71,{"$error":"#VALUE!"},{"$error":"#VALUE!"},{"$error":"#VALUE!"},{"$error":"#VALUE!"},null,71,{"$error":"#VALUE!"},{"$error":"#VALUE!"},{"$error":"#VALUE!"},{"$error":"#VALUE!"},null,71,{"$error":"#VALUE!"},{"$error":"#VALUE!"},{"$error":"#VALUE!"},{"$error":"#VALUE!"},null,71,{"$error":"#VALUE!"},{"$error":"#VALUE!"},{"$error":"#VALUE!"},{"$error":"#VALUE!"}]
[null,null,null,null,null,null,null,null,null,null,null,null,null,null,null,null,null,null,null,null,null,null,null,null,null,null,null,null,null,null,72,{"$error":"#VALUE!"},{"$error":"#VALUE!"},{"$error":"#VALUE!"},{"$error":"#VALUE!"},null,72,{"$error":"#VALUE!"},{"$error":"#VALUE!"},{"$error":"#VALUE!"},{"$error":"#VALUE!"},null,72,{"$error":"#VALUE!"},{"$error":"#VALUE!"},{"$error":"#VALUE!"},{"$error":"#VALUE!"},null,72,{"$error":"#VALUE!"},{"$error":"#VALUE!"},{"$error":"#VALUE!"},{"$error":"#VALUE!"},null,72,{"$error":"#VALUE!"},{"$error":"#VALUE!"},{"$error":"#VALUE!"},{"$error":"#VALUE!"}]
[null,null,null,null,null,null,null,null,null,null,null,null,null,null,null,null,null,null,null,null,null,null,null,null,null,null,null,null,null,null,null,null,null,null,null,null,73,{"$error":"#VALUE!"},{"$error":"#VALUE!"},{"$error":"#VALUE!"},{"$error":"#VALUE!"},null,73,{"$error":"#VALUE!"},{"$error":"#VALUE!"},{"$error":"#VALUE!"},{"$error":"#VALUE!"},null,73,{"$error":"#VALUE!"},{"$error":"#VALUE!"},{"$error":"#VALUE!"},{"$error":"#VALUE!"},null,73,{"$error":"#VALUE!"},{"$error":"#VALUE!"},{"$error":"#VALUE!"},{"$error":"#VALUE!"}]
[null,null,null,null,null,null,null,null,null,null,null,null,null,null,null,null,null,null,null,null,null,null,null,null,null,null,null,null,null,null,null,null,null,null,null,null,74,{"$error":"#VALUE!"},{"$error":"#VALUE!"},{"$error":"#VALUE!"},{"$error":"#VALUE!"},null,74,{"$error":"#VALUE!"},{"$error":"#VALUE!"},{"$error":"#VALUE!"},{"$error":"#VALUE!"},null,74,{"$error":"#VALUE!"},{"$error":"#VALUE!"},{"$error":"#VALUE!"},{"$error":"#VALUE!"},null,74,{"$error":"#VALUE!"},{"$error":"#VALUE!"},{"$error":"#VALUE!"},{"$error":"#VALUE!"}]
[null,null,null,null,null,null,null,null,null,null,null,null,null,null,null,null,null,null,null,null,null,null,null,null,null,null,null,null,null,null,null,null,null,null,null,null,75,{"$error":"#VALUE!"},{"$error":"#VALUE!"},{"$error":"#VALUE!"},{"$error":"#VALUE!"},null,75,{"$error":"#VALUE!"},{"$error":"#VALUE!"},{"$error":"#VALUE!"},{"$error":"#VALUE!"},null,75,{"$error":"#VALUE!"},{"$error":"#VALUE!"},{"$error":"#VALUE!"},{"$error":"#VALUE!"},null,75,{"$error":"#VALUE!"},{"$error":"#VALUE!"},{"$error":"#VALUE!"},{"$error":"#VALUE!"}]
[null,null,null,null,null,null,null,null,null,null,null,null,null,null,null,null,null,null,null,null,null,null,null,null,null,null,null,null,null,null,null,null,null,null,null,null,76,{"$error":"#VALUE!"},{"$error":"#VALUE!"},{"$error":"#VALUE!"},{"$error":"#VALUE!"},null,76,{"$error":"#VALUE!"},{"$error":"#VALUE!"},{"$error":"#VALUE!"},{"$error":"#VALUE!"},null,76,{"$error":"#VALUE!"},{"$error":"#VALUE!"},{"$error":"#VALUE!"},{"$error":"#VALUE!"},null,76,{"$error":"#VALUE!"},{"$error":"#VALUE!"},{"$error":"#VALUE!"},{"$error":"#VALUE!"}]
[null,null,null,null,null,null,null,null,null,null,null,null,null,null,null,null,null,null,null,null,null,null,null,null,null,null,null,null,null,null,null,null,null,null,null,null,77,{"$f":"AL79-AM80","v":{"$error":"#VALUE!"}},{"$error":"#VALUE!"},{"$error":"#VALUE!"},{"$error":"#VALUE!"},null,77,{"$error":"#VALUE!"},{"$error":"#VALUE!"},{"$error":"#VALUE!"},{"$error":"#VALUE!"},null,77,{"$error":"#VALUE!"},{"$error":"#VALUE!"},{"$error":"#VALUE!"},{"$error":"#VALUE!"},null,77,{"$f":"BD79-BE80","v":{"$error":"#VALUE!"}},{"$error":"#VALUE!"},{"$error":"#VALUE!"},{"$error":"#VALUE!"}]
[null,null,null,null,null,null,null,null,null,null,null,null,null,null,null,null,null,null,null,null,null,null,null,null,null,null,null,null,null,null,null,null,null,null,null,null,78,{"$error":"#VALUE!"},{"$error":"#VALUE!"},{"$error":"#VALUE!"},{"$error":"#VALUE!"},null,78,{"$error":"#VALUE!"},{"$error":"#VALUE!"},{"$error":"#VALUE!"},{"$error":"#VALUE!"},null,78,{"$error":"#VALUE!"},{"$error":"#VALUE!"},{"$error":"#VALUE!"},{"$error":"#VALUE!"},null,78,{"$error":"#VALUE!"},{"$error":"#VALUE!"},{"$error":"#VALUE!"},{"$error":"#VALUE!"}]
[null,null,null,null,null,null,null,null,null,null,null,null,null,null,null,null,null,null,null,null,null,null,null,null,null,null,null,null,null,null,null,null,null,null,null,null,79,{"$error":"#VALUE!"},{"$error":"#VALUE!"},{"$error":"#VALUE!"},{"$error":"#VALUE!"},null,79,{"$error":"#VALUE!"},{"$error":"#VALUE!"},{"$error":"#VALUE!"},{"$error":"#VALUE!"},null,79,{"$error":"#VALUE!"},{"$error":"#VALUE!"},{"$error":"#VALUE!"},{"$error":"#VALUE!"},null,79,{"$error":"#VALUE!"},{"$error":"#VALUE!"},{"$error":"#VALUE!"},{"$error":"#VALUE!"}]
[null,null,null,null,null,null,null,null,null,null,null,null,null,null,null,null,null,null,null,null,null,null,null,null,null,null,null,null,null,null,null,null,null,null,null,null,80,{"$error":"#VALUE!"},{"$error":"#VALUE!"},{"$error":"#VALUE!"},{"$error":"#VALUE!"},null,80,{"$error":"#VALUE!"},{"$error":"#VALUE!"},{"$error":"#VALUE!"},{"$error":"#VALUE!"},null,80,{"$error":"#VALUE!"},{"$error":"#VALUE!"},{"$error":"#VALUE!"},{"$error":"#VALUE!"},null,80,{"$error":"#VALUE!"},{"$error":"#VALUE!"},{"$error":"#VALUE!"},{"$error":"#VALUE!"}]
[null,null,null,null,null,null,null,null,null,null,null,null,null,null,null,null,null,null,null,null,null,null,null,null,null,null,null,null,null,null,null,null,null,null,null,null,81,{"$error":"#VALUE!"},{"$error":"#VALUE!"},{"$error":"#VALUE!"},{"$error":"#VALUE!"},null,81,{"$error":"#VALUE!"},{"$error":"#VALUE!"},{"$error":"#VALUE!"},{"$error":"#VALUE!"},null,81,{"$error":"#VALUE!"},{"$error":"#VALUE!"},{"$error":"#VALUE!"},{"$error":"#VALUE!"},null,81,{"$error":"#VALUE!"},{"$error":"#VALUE!"},{"$error":"#VALUE!"},{"$error":"#VALUE!"}]
[null,null,null,null,null,null,null,null,null,null,null,null,null,null,null,null,null,null,null,null,null,null,null,null,null,null,null,null,null,null,null,null,null,null,null,null,82,{"$error":"#VALUE!"},{"$error":"#VALUE!"},{"$error":"#VALUE!"},{"$error":"#VALUE!"},null,82,{"$error":"#VALUE!"},{"$error":"#VALUE!"},{"$error":"#VALUE!"},{"$error":"#VALUE!"},null,82,{"$error":"#VALUE!"},{"$error":"#VALUE!"},{"$error":"#VALUE!"},{"$error":"#VALUE!"},null,82,{"$error":"#VALUE!"},{"$error":"#VALUE!"},{"$error":"#VALUE!"},{"$error":"#VALUE!"}]
[null,null,null,null,null,null,null,null,null,null,null,null,null,null,null,null,null,null,null,null,null,null,null,null,null,null,null,null,null,null,null,null,null,null,null,null,83,{"$error":"#VALUE!"},{"$error":"#VALUE!"},{"$error":"#VALUE!"},{"$error":"#VALUE!"},null,83,{"$error":"#VALUE!"},{"$error":"#VALUE!"},{"$error":"#VALUE!"},{"$error":"#VALUE!"},null,83,{"$error":"#VALUE!"},{"$error":"#VALUE!"},{"$error":"#VALUE!"},{"$error":"#VALUE!"},null,83,{"$error":"#VALUE!"},{"$error":"#VALUE!"},{"$error":"#VALUE!"},{"$error":"#VALUE!"}]
[null,null,null,null,null,null,null,null,null,null,null,null,null,null,null,null,null,null,null,null,null,null,null,null,null,null,null,null,null,null,null,null,null,null,null,null,84,{"$error":"#VALUE!"},{"$error":"#VALUE!"},{"$error":"#VALUE!"},{"$error":"#VALUE!"},null,84,{"$error":"#VALUE!"},{"$error":"#VALUE!"},{"$error":"#VALUE!"},{"$error":"#VALUE!"},null,84,{"$error":"#VALUE!"},{"$error":"#VALUE!"},{"$error":"#VALUE!"},{"$error":"#VALUE!"},null,84,{"$error":"#VALUE!"},{"$error":"#VALUE!"},{"$error":"#VALUE!"},{"$error":"#VALUE!"}]
[null,null,null,null,null,null,null,null,null,null,null,null,null,null,null,null,null,null,null,null,null,null,null,null,null,null,null,null,null,null,null,null,null,null,null,null,null,null,null,null,null,null,85,{"$error":"#VALUE!"},{"$error":"#VALUE!"},{"$error":"#VALUE!"},{"$error":"#VALUE!"},null,85,{"$error":"#VALUE!"},{"$error":"#VALUE!"},{"$error":"#VALUE!"},{"$error":"#VALUE!"},null,85,{"$f":"BD87-BE88","v":{"$error":"#VALUE!"}},{"$error":"#VALUE!"},{"$error":"#VALUE!"},{"$f":"BE88+BF88","v":{"$error":"#VALUE!"}}]
[null,null,null,null,null,null,null,null,null,null,null,null,null,null,null,null,null,null,null,null,null,null,null,null,null,null,null,null,null,null,null,null,null,null,null,null,null,null,null,null,null,null,86,{"$error":"#VALUE!"},{"$error":"#VALUE!"},{"$error":"#VALUE!"},{"$error":"#VALUE!"},null,86,{"$error":"#VALUE!"},{"$error":"#VALUE!"},{"$error":"#VALUE!"},{"$error":"#VALUE!"},null,86,{"$error":"#VALUE!"},{"$error":"#VALUE!"},{"$error":"#VALUE!"},{"$error":"#VALUE!"}]
[null,null,null,null,null,null,null,null,null,null,null,null,null,null,null,null,null,null,null,null,null,null,null,null,null,null,null,null,null,null,null,null,null,null,null,null,null,null,null,null,null,null,87,{"$error":"#VALUE!"},{"$error":"#VALUE!"},{"$error":"#VALUE!"},{"$error":"#VALUE!"},null,87,{"$error":"#VALUE!"},{"$error":"#VALUE!"},{"$error":"#VALUE!"},{"$error":"#VALUE!"},null,87,{"$error":"#VALUE!"},{"$error":"#VALUE!"},{"$error":"#VALUE!"},{"$error":"#VALUE!"}]
[null,null,null,null,null,null,null,null,null,null,null,null,null,null,null,null,null,null,null,null,null,null,null,null,null,null,null,null,null,null,null,null,null,null,null,null,null,null,null,null,null,null,88,{"$error":"#VALUE!"},{"$error":"#VALUE!"},{"$error":"#VALUE!"},{"$error":"#VALUE!"},null,88,{"$error":"#VALUE!"},{"$error":"#VALUE!"},{"$error":"#VALUE!"},{"$error":"#VALUE!"},null,88,{"$error":"#VALUE!"},{"$error":"#VALUE!"},{"$error":"#VALUE!"},{"$error":"#VALUE!"}]
[null,null,null,null,null,null,null,null,null,null,null,null,null,null,null,null,null,null,null,null,null,null,null,null,null,null,null,null,null,null,null,null,null,null,null,null,null,null,null,null,null,null,89,{"$error":"#VALUE!"},{"$error":"#VALUE!"},{"$error":"#VALUE!"},{"$error":"#VALUE!"},null,89,{"$error":"#VALUE!"},{"$error":"#VALUE!"},{"$error":"#VALUE!"},{"$error":"#VALUE!"},null,89,{"$error":"#VALUE!"},{"$error":"#VALUE!"},{"$error":"#VALUE!"},{"$error":"#VALUE!"}]
[null,null,null,null,null,null,null,null,null,null,null,null,null,null,null,null,null,null,null,null,null,null,null,null,null,null,null,null,null,null,null,null,null,null,null,null,null,null,null,null,null,null,90,{"$error":"#VALUE!"},{"$error":"#VALUE!"},{"$error":"#VALUE!"},{"$error":"#VALUE!"},null,90,{"$error":"#VALUE!"},{"$error":"#VALUE!"},{"$error":"#VALUE!"},{"$error":"#VALUE!"},null,90,{"$error":"#VALUE!"},{"$error":"#VALUE!"},{"$error":"#VALUE!"},{"$error":"#VALUE!"}]
[null,null,null,null,null,null,null,null,null,null,null,null,null,null,null,null,null,null,null,null,null,null,null,null,null,null,null,null,null,null,null,null,null,null,null,null,null,null,null,null,null,null,91,{"$error":"#VALUE!"},{"$error":"#VALUE!"},{"$error":"#VALUE!"},{"$error":"#VALUE!"},null,91,{"$error":"#VALUE!"},{"$error":"#VALUE!"},{"$error":"#VALUE!"},{"$error":"#VALUE!"},null,91,{"$error":"#VALUE!"},{"$error":"#VALUE!"},{"$error":"#VALUE!"},{"$error":"#VALUE!"}]
[null,null,null,null,null,null,null,null,null,null,null,null,null,null,null,null,null,null,null,null,null,null,null,null,null,null,null,null,null,null,null,null,null,null,null,null,null,null,null,null,null,null,92,{"$error":"#VALUE!"},{"$error":"#VALUE!"},{"$error":"#VALUE!"},{"$error":"#VALUE!"},null,92,{"$error":"#VALUE!"},{"$error":"#VALUE!"},{"$error":"#VALUE!"},{"$error":"#VALUE!"},null,92,{"$error":"#VALUE!"},{"$error":"#VALUE!"},{"$error":"#VALUE!"},{"$error":"#VALUE!"}]
[null,null,null,null,null,null,null,null,null,null,null,null,null,null,null,null,null,null,null,null,null,null,null,null,null,null,null,null,null,null,null,null,null,null,null,null,null,null,null,null,null,null,93,{"$error":"#VALUE!"},{"$error":"#VALUE!"},{"$error":"#VALUE!"},{"$error":"#VALUE!"},null,93,{"$error":"#VALUE!"},{"$error":"#VALUE!"},{"$error":"#VALUE!"},{"$error":"#VALUE!"},null,93,{"$error":"#VALUE!"},{"$error":"#VALUE!"},{"$error":"#VALUE!"},{"$error":"#VALUE!"}]
[null,null,null,null,null,null,null,null,null,null,null,null,null,null,null,null,null,null,null,null,null,null,null,null,null,null,null,null,null,null,null,null,null,null,null,null,null,null,null,null,null,null,94,{"$error":"#VALUE!"},{"$error":"#VALUE!"},{"$error":"#VALUE!"},{"$error":"#VALUE!"},null,94,{"$error":"#VALUE!"},{"$error":"#VALUE!"},{"$error":"#VALUE!"},{"$error":"#VALUE!"},null,94,{"$error":"#VALUE!"},{"$error":"#VALUE!"},{"$error":"#VALUE!"},{"$error":"#VALUE!"}]
[null,null,null,null,null,null,null,null,null,null,null,null,null,null,null,null,null,null,null,null,null,null,null,null,null,null,null,null,null,null,null,null,null,null,null,null,null,null,null,null,null,null,95,{"$error":"#VALUE!"},{"$error":"#VALUE!"},{"$error":"#VALUE!"},{"$error":"#VALUE!"},null,95,{"$error":"#VALUE!"},{"$error":"#VALUE!"},{"$error":"#VALUE!"},{"$error":"#VALUE!"},null,95,{"$error":"#VALUE!"},{"$error":"#VALUE!"},{"$error":"#VALUE!"},{"$error":"#VALUE!"}]
[null,null,null,null,null,null,null,null,null,null,null,null,null,null,null,null,null,null,null,null,null,null,null,null,null,null,null,null,null,null,null,null,null,null,null,null,null,null,null,null,null,null,96,{"$error":"#VALUE!"},{"$error":"#VALUE!"},{"$error":"#VALUE!"},{"$error":"#VALUE!"},null,96,{"$error":"#VALUE!"},{"$error":"#VALUE!"},{"$error":"#VALUE!"},{"$error":"#VALUE!"},null,96,{"$error":"#VALUE!"},{"$error":"#VALUE!"},{"$error":"#VALUE!"},{"$error":"#VALUE!"}]
[null,null,null,null,null,null,null,null,null,null,null,null,null,null,null,null,null,null,null,null,null,null,null,null,null,null,null,null,null,null,null,null,null,null,null,null,null,null,null,null,null,null,null,null,null,null,null,null,97,{"$error":"#VALUE!"},{"$error":"#VALUE!"},{"$error":"#VALUE!"},{"$error":"#VALUE!"},null,97,{"$error":"#VALUE!"},{"$error":"#VALUE!"},{"$error":"#VALUE!"},{"$error":"#VALUE!"}]
[null,null,null,null,null,null,null,null,null,null,null,null,null,null,null,null,null,null,null,null,null,null,null,null,null,null,null,null,null,null,null,null,null,null,null,null,null,null,null,null,null,null,null,null,null,null,null,null,98,{"$error":"#VALUE!"},{"$error":"#VALUE!"},{"$error":"#VALUE!"},{"$error":"#VALUE!"},null,98,{"$error":"#VALUE!"},{"$error":"#VALUE!"},{"$error":"#VALUE!"},{"$error":"#VALUE!"}]
[null,null,null,null,null,null,null,null,null,null,null,null,null,null,null,null,null,null,null,null,null,null,null,null,null,null,null,null,null,null,null,null,null,null,null,null,null,null,null,null,null,null,null,null,null,null,null,null,99,{"$error":"#VALUE!"},{"$error":"#VALUE!"},{"$error":"#VALUE!"},{"$error":"#VALUE!"},null,99,{"$error":"#VALUE!"},{"$error":"#VALUE!"},{"$error":"#VALUE!"},{"$error":"#VALUE!"}]
[null,null,null,null,null,null,null,null,null,null,null,null,null,null,null,null,null,null,null,null,null,null,null,null,null,null,null,null,null,null,null,null,null,null,null,null,null,null,null,null,null,null,null,null,null,null,null,null,100,{"$error":"#VALUE!"},{"$error":"#VALUE!"},{"$error":"#VALUE!"},{"$error":"#VALUE!"},null,100,{"$error":"#VALUE!"},{"$error":"#VALUE!"},{"$error":"#VALUE!"},{"$error":"#VALUE!"}]
[null,null,null,null,null,null,null,null,null,null,null,null,null,null,null,null,null,null,null,null,null,null,null,null,null,null,null,null,null,null,null,null,null,null,null,null,null,null,null,null,null,null,null,null,null,null,null,null,101,{"$error":"#VALUE!"},{"$error":"#VALUE!"},{"$error":"#VALUE!"},{"$error":"#VALUE!"},null,101,{"$error":"#VALUE!"},{"$error":"#VALUE!"},{"$error":"#VALUE!"},{"$error":"#VALUE!"}]
[null,null,null,null,null,null,null,null,null,null,null,null,null,null,null,null,null,null,null,null,null,null,null,null,null,null,null,null,null,null,null,null,null,null,null,null,null,null,null,null,null,null,null,null,null,null,null,null,102,{"$error":"#VALUE!"},{"$error":"#VALUE!"},{"$error":"#VALUE!"},{"$error":"#VALUE!"},null,102,{"$error":"#VALUE!"},{"$error":"#VALUE!"},{"$error":"#VALUE!"},{"$error":"#VALUE!"}]
[null,null,null,null,null,null,null,null,null,null,null,null,null,null,null,null,null,null,null,null,null,null,null,null,null,null,null,null,null,null,null,null,null,null,null,null,null,null,null,null,null,null,null,null,null,null,null,null,103,{"$error":"#VALUE!"},{"$error":"#VALUE!"},{"$error":"#VALUE!"},{"$error":"#VALUE!"},null,103,{"$error":"#VALUE!"},{"$error":"#VALUE!"},{"$error":"#VALUE!"},{"$error":"#VALUE!"}]
[null,null,null,null,null,null,null,null,null,null,null,null,null,null,null,null,null,null,null,null,null,null,null,null,null,null,null,null,null,null,null,null,null,null,null,null,null,null,null,null,null,null,null,null,null,null,null,null,104,{"$error":"#VALUE!"},{"$error":"#VALUE!"},{"$error":"#VALUE!"},{"$error":"#VALUE!"},null,104,{"$error":"#VALUE!"},{"$error":"#VALUE!"},{"$error":"#VALUE!"},{"$error":"#VALUE!"}]
[null,null,null,null,null,null,null,null,null,null,null,null,null,null,null,null,null,null,null,null,null,null,null,null,null,null,null,null,null,null,null,null,null,null,null,null,null,null,null,null,null,null,null,null,null,null,null,null,105,{"$error":"#VALUE!"},{"$error":"#VALUE!"},{"$error":"#VALUE!"},{"$error":"#VALUE!"},null,105,{"$error":"#VALUE!"},{"$error":"#VALUE!"},{"$error":"#VALUE!"},{"$error":"#VALUE!"}]
[null,null,null,null,null,null,null,null,null,null,null,null,null,null,null,null,null,null,null,null,null,null,null,null,null,null,null,null,null,null,null,null,null,null,null,null,null,null,null,null,null,null,null,null,null,null,null,null,106,{"$error":"#VALUE!"},{"$error":"#VALUE!"},{"$error":"#VALUE!"},{"$error":"#VALUE!"},null,106,{"$error":"#VALUE!"},{"$error":"#VALUE!"},{"$error":"#VALUE!"},{"$error":"#VALUE!"}]
[null,null,null,null,null,null,null,null,null,null,null,null,null,null,null,null,null,null,null,null,null,null,null,null,null,null,null,null,null,null,null,null,null,null,null,null,null,null,null,null,null,null,null,null,null,null,null,null,107,{"$error":"#VALUE!"},{"$error":"#VALUE!"},{"$error":"#VALUE!"},{"$error":"#VALUE!"},null,107,{"$error":"#VALUE!"},{"$error":"#VALUE!"},{"$error":"#VALUE!"},{"$error":"#VALUE!"}]
[null,null,null,null,null,null,null,null,null,null,null,null,null,null,null,null,null,null,null,null,null,null,null,null,null,null,null,null,null,null,null,null,null,null,null,null,null,null,null,null,null,null,null,null,null,null,null,null,108,{"$error":"#VALUE!"},{"$error":"#VALUE!"},{"$error":"#VALUE!"},{"$error":"#VALUE!"},null,108,{"$error":"#VALUE!"},{"$error":"#VALUE!"},{"$error":"#VALUE!"},{"$error":"#VALUE!"}]
[null,null,null,null,null,null,null,null,null,null,null,null,null,null,null,null,null,null,null,null,null,null,null,null,null,null,null,null,null,null,null,null,null,null,null,null,null,null,null,null,null,null,null,null,null,null,null,null,null,null,null,null,null,null,109,{"$error":"#VALUE!"},{"$error":"#VALUE!"},{"$error":"#VALUE!"},{"$error":"#VALUE!"}]
[null,null,null,null,null,null,null,null,null,null,null,null,null,null,null,null,null,null,null,null,null,null,null,null,null,null,null,null,null,null,null,null,null,null,null,null,null,null,null,null,null,null,null,null,null,null,null,null,null,null,null,null,null,null,110,{"$error":"#VALUE!"},{"$error":"#VALUE!"},{"$error":"#VALUE!"},{"$error":"#VALUE!"}]
[null,null,null,null,null,null,null,null,null,null,null,null,null,null,null,null,null,null,null,null,null,null,null,null,null,null,null,null,null,null,null,null,null,null,null,null,null,null,null,null,null,null,null,null,null,null,null,null,null,null,null,null,null,null,111,{"$error":"#VALUE!"},{"$error":"#VALUE!"},{"$error":"#VALUE!"},{"$error":"#VALUE!"}]
[null,null,null,null,null,null,null,null,null,null,null,null,null,null,null,null,null,null,null,null,null,null,null,null,null,null,null,null,null,null,null,null,null,null,null,null,null,null,null,null,null,null,null,null,null,null,null,null,null,null,null,null,null,null,112,{"$error":"#VALUE!"},{"$error":"#VALUE!"},{"$error":"#VALUE!"},{"$error":"#VALUE!"}]
[null,null,null,null,null,null,null,null,null,null,null,null,null,null,null,null,null,null,null,null,null,null,null,null,null,null,null,null,null,null,null,null,null,null,null,null,null,null,null,null,null,null,null,null,null,null,null,null,null,null,null,null,null,null,113,{"$error":"#VALUE!"},{"$error":"#VALUE!"},{"$error":"#VALUE!"},{"$error":"#VALUE!"}]
[null,null,null,null,null,null,null,null,null,null,null,null,null,null,null,null,null,null,null,null,null,null,null,null,null,null,null,null,null,null,null,null,null,null,null,null,null,null,null,null,null,null,null,null,null,null,null,null,null,null,null,null,null,null,114,{"$error":"#VALUE!"},{"$error":"#VALUE!"},{"$error":"#VALUE!"},{"$error":"#VALUE!"}]
[null,null,null,null,null,null,null,null,null,null,null,null,null,null,null,null,null,null,null,null,null,null,null,null,null,null,null,null,null,null,null,null,null,null,null,null,null,null,null,null,null,null,null,null,null,null,null,null,null,null,null,null,null,null,115,{"$error":"#VALUE!"},{"$error":"#VALUE!"},{"$error":"#VALUE!"},{"$error":"#VALUE!"}]
[null,null,null,null,null,null,null,null,null,null,null,null,null,null,null,null,null,null,null,null,null,null,null,null,null,null,null,null,null,null,null,null,null,null,null,null,null,null,null,null,null,null,null,null,null,null,null,null,null,null,null,null,null,null,116,{"$error":"#VALUE!"},{"$error":"#VALUE!"},{"$error":"#VALUE!"},{"$error":"#VALUE!"}]
[null,null,null,null,null,null,null,null,null,null,null,null,null,null,null,null,null,null,null,null,null,null,null,null,null,null,null,null,null,null,null,null,null,null,null,null,null,null,null,null,null,null,null,null,null,null,null,null,null,null,null,null,null,null,117,{"$error":"#VALUE!"},{"$error":"#VALUE!"},{"$error":"#VALUE!"},{"$error":"#VALUE!"}]
[null,null,null,null,null,null,null,null,null,null,null,null,null,null,null,null,null,null,null,null,null,null,null,null,null,null,null,null,null,null,null,null,null,null,null,null,null,null,null,null,null,null,null,null,null,null,null,null,null,null,null,null,null,null,118,{"$error":"#VALUE!"},{"$error":"#VALUE!"},{"$error":"#VALUE!"},{"$error":"#VALUE!"}]
[null,null,null,null,null,null,null,null,null,null,null,null,null,null,null,null,null,null,null,null,null,null,null,null,null,null,null,null,null,null,null,null,null,null,null,null,null,null,null,null,null,null,null,null,null,null,null,null,null,null,null,null,null,null,119,{"$error":"#VALUE!"},{"$error":"#VALUE!"},{"$error":"#VALUE!"},{"$error":"#VALUE!"}]
[null,null,null,null,null,null,null,null,null,null,null,null,null,null,null,null,null,null,null,null,null,null,null,null,null,null,null,null,null,null,null,null,null,null,null,null,null,null,null,null,null,null,null,null,null,null,null,null,null,null,null,null,null,null,120,{"$error":"#VALUE!"},{"$error":"#VALUE!"},{"$error":"#VALUE!"},{"$error":"#VALUE!"}]

{"sheet":"равными Light","index":7,"n_rows":111,"n_cols":42,"rows_kept":111,"cut":false,"hidden":true,"merged":[]}
[{"$f":"C3*A2","v":{"$error":"#VALUE!"}},12,0.185,null,{"$f":"SUM(E4:E27)+A1","v":{"$error":"#VALUE!"}},{"$f":"SUM(E4:E15)","v":{"$error":"#VALUE!"}},null,24,{"$f":"'Исходные данные'!D41","v":0},null,{"$f":"SUM(K4:K27)+A1","v":{"$error":"#VALUE!"}},{"$f":"SUM(K4:K27)","v":{"$error":"#VALUE!"}},null,36,{"$f":"'Исходные данные'!E41","v":0},null,{"$f":"SUM(Q4:Q39)+A1","v":{"$error":"#VALUE!"}},{"$f":"SUM(Q4:Q39)","v":{"$error":"#VALUE!"}},null,48,{"$f":"'Исходные данные'!F41","v":0},null,{"$f":"SUM(W4:W51)+A1","v":{"$error":"#VALUE!"}},{"$f":"SUM(W4:W51)","v":{"$error":"#VALUE!"}},null,60,{"$f":"'Исходные данные'!G41","v":0},null,{"$f":"SUM(AC4:AC63)+A1","v":{"$error":"#VALUE!"}},{"$f":"SUM(AC4:AC63)","v":{"$error":"#VALUE!"}},null,72,{"$f":"'Исходные данные'!H41","v":0},null,{"$f":"SUM(AI4:AI75)+A1","v":{"$error":"#VALUE!"}},{"$f":"SUM(AI4:AI75)","v":{"$error":"#VALUE!"}},null,108,{"$f":"'Исходные данные'!I41","v":0},null,{"$f":"SUM(AO4:AO87)+A1","v":{"$error":"#VALUE!"}},{"$f":"SUM(AO4:AO111)","v":{"$error":"#VALUE!"}}]
[{"$f":"'Исходные данные'!#REF!","v":{"$error":"#REF!"}},"период","остаток ОД","оплата ОД","оплата %%","платеж",null,"период","остаток ОД","оплата ОД","оплата %%","платеж",null,"период","остаток ОД","оплата ОД","оплата %%","платеж",null,"период","остаток ОД","оплата ОД","оплата %%","платеж",null,"период","остаток ОД","оплата ОД","оплата %%","платеж",null,"период","остаток ОД","оплата ОД","оплата %%","платеж",null,"период","остаток ОД","оплата ОД","оплата %%","платеж"]
[null,null,{"$f":"'Исходные данные'!C33","v":"исправьте ошибки"},null,null,null,null,null,{"$f":"C3","v":"исправьте ошибки"},null,null,null,null,null,{"$f":"I3","v":"исправьте ошибки"},null,null,null,null,null,{"$f":"O3","v":"исправьте ошибки"},null,null,null,null,null,{"$f":"U3","v":"исправьте ошибки"},null,null,null,null,null,{"$f":"AA3","v":"исправьте ошибки"},null,null,null,null,null,{"$f":"AG3","v":"исправьте ошибки"}]
[null,13,{"$f":"C3-D4","v":{"$error":"#VALUE!"}},{"$f":"$C$3/$B$1","v":{"$error":"#VALUE!"}},{"$f":"C3*$I$1/12","v":{"$error":"#VALUE!"}},{"$f":"D4+E4+$A$1/$B$1","v":{"$error":"#VALUE!"}},null,13,{"$f":"I3-J4","v":{"$error":"#VALUE!"}},{"$f":"$C$3/$H$1","v":{"$error":"#VALUE!"}},{"$f":"I3*$I$1/12","v":{"$error":"#VALUE!"}},{"$f":"J4+K4+$A$1/$H$1","v":{"$error":"#VALUE!"}},null,13,{"$f":"O3-P4","v":{"$error":"#VALUE!"}},{"$f":"$C$3/$N$1","v":{"$error":"#VALUE!"}},{"$f":"O3*$O$1/12","v":{"$error":"#VALUE!"}},{"$f":"P4+Q4+$A$1/$N$1","v":{"$error":"#VALUE!"}},null,13,{"$f":"U3-V4","v":{"$error":"#VALUE!"}},{"$f":"$C$3/$T$1","v":{"$error":"#VALUE!"}},{"$f":"U3*$U$1/12","v":{"$error":"#VALUE!"}},{"$f":"V4+W4+$A$1/$T$1","v":{"$error":"#VALUE!"}},null,13,{"$f":"AA3-AB4","v":{"$error":"#VALUE!"}},{"$f":"$C$3/$Z$1","v":{"$error":"#VALUE!"}},{"$f":"AA3*$AA$1/12","v":{"$error":"#VALUE!"}},{"$f":"AB4+AC4+$A$1/$Z$1","v":{"$error":"#VALUE!"}},null,13,{"$f":"AG3-AH4","v":{"$error":"#VALUE!"}},{"$f":"$C$3/$AF$1","v":{"$error":"#VALUE!"}},{"$f":"AG3*$AG$1/12","v":{"$error":"#VALUE!"}},{"$f":"AH4+AI4+$A$1/$AF$1","v":{"$error":"#VALUE!"}},null,13,{"$f":"AM3-AN4","v":{"$error":"#VALUE!"}},{"$f":"$C$3/$AL$1","v":{"$error":"#VALUE!"}},{"$f":"AM3*$AM$1/12","v":{"$error":"#VALUE!"}},{"$f":"AN4+AO4+$A$1/$AL$1","v":{"$error":"#VALUE!"}}]
[null,14,{"$f":"C4-D5","v":{"$error":"#VALUE!"}},{"$f":"$C$3/$B$1","v":{"$error":"#VALUE!"}},{"$f":"C4*$I$1/12","v":{"$error":"#VALUE!"}},{"$f":"D5+E5+$A$1/$B$1","v":{"$error":"#VALUE!"}},null,14,{"$f":"I4-J5","v":{"$error":"#VALUE!"}},{"$f":"$C$3/$H$1","v":{"$error":"#VALUE!"}},{"$f":"I4*$I$1/12","v":{"$error":"#VALUE!"}},{"$f":"J5+K5","v":{"$error":"#VALUE!"}},null,14,{"$f":"O4-P5","v":{"$error":"#VALUE!"}},{"$f":"$C$3/$N$1","v":{"$error":"#VALUE!"}},{"$f":"O4*$O$1/12","v":{"$error":"#VALUE!"}},{"$f":"P5+Q5+$A$1/$N$1","v":{"$error":"#VALUE!"}},null,14,{"$f":"U4-V5","v":{"$error":"#VALUE!"}},{"$f":"$C$3/$T$1","v":{"$error":"#VALUE!"}},{"$f":"U4*$U$1/12","v":{"$error":"#VALUE!"}},{"$f":"V5+W5+$A$1/$T$1","v":{"$error":"#VALUE!"}},null,14,{"$f":"AA4-AB5","v":{"$error":"#VALUE!"}},{"$f":"$C$3/$Z$1","v":{"$error":"#VALUE!"}},{"$f":"AA4*$AA$1/12","v":{"$error":"#VALUE!"}},{"$f":"AB5+AC5+$A$1/$Z$1","v":{"$error":"#VALUE!"}},null,14,{"$f":"AG4-AH5","v":{"$error":"#VALUE!"}},{"$f":"$C$3/$AF$1","v":{"$error":"#VALUE!"}},{"$f":"AG4*$AG$1/12","v":{"$error":"#VALUE!"}},{"$f":"AH5+AI5+$A$1/$AF$1","v":{"$error":"#VALUE!"}},null,14,{"$f":"AM4-AN5","v":{"$error":"#VALUE!"}},{"$f":"$C$3/$AL$1","v":{"$error":"#VALUE!"}},{"$f":"AM4*$AM$1/12","v":{"$error":"#VALUE!"}},{"$f":"AN5+AO5+$A$1/$AL$1","v":{"$error":"#VALUE!"}}]
[null,15,{"$error":"#VALUE!"},{"$error":"#VALUE!"},{"$error":"#VALUE!"},{"$error":"#VALUE!"},null,15,{"$error":"#VALUE!"},{"$error":"#VALUE!"},{"$error":"#VALUE!"},{"$error":"#VALUE!"},null,15,{"$error":"#VALUE!"},{"$error":"#VALUE!"},{"$error":"#VALUE!"},{"$error":"#VALUE!"},null,15,{"$error":"#VALUE!"},{"$error":"#VALUE!"},{"$error":"#VALUE!"},{"$error":"#VALUE!"},null,15,{"$error":"#VALUE!"},{"$error":"#VALUE!"},{"$error":"#VALUE!"},{"$error":"#VALUE!"},null,15,{"$error":"#VALUE!"},{"$error":"#VALUE!"},{"$error":"#VALUE!"},{"$error":"#VALUE!"},null,15,{"$error":"#VALUE!"},{"$error":"#VALUE!"},{"$error":"#VALUE!"},{"$error":"#VALUE!"}]
[null,16,{"$error":"#VALUE!"},{"$error":"#VALUE!"},{"$error":"#VALUE!"},{"$error":"#VALUE!"},null,16,{"$error":"#VALUE!"},{"$error":"#VALUE!"},{"$error":"#VALUE!"},{"$error":"#VALUE!"},null,16,{"$error":"#VALUE!"},{"$error":"#VALUE!"},{"$error":"#VALUE!"},{"$error":"#VALUE!"},null,16,{"$error":"#VALUE!"},{"$error":"#VALUE!"},{"$error":"#VALUE!"},{"$error":"#VALUE!"},null,16,{"$error":"#VALUE!"},{"$error":"#VALUE!"},{"$error":"#VALUE!"},{"$error":"#VALUE!"},null,16,{"$error":"#VALUE!"},{"$error":"#VALUE!"},{"$error":"#VALUE!"},{"$error":"#VALUE!"},null,16,{"$error":"#VALUE!"},{"$error":"#VALUE!"},{"$error":"#VALUE!"},{"$error":"#VALUE!"}]
[null,17,{"$error":"#VALUE!"},{"$error":"#VALUE!"},{"$error":"#VALUE!"},{"$error":"#VALUE!"},null,17,{"$error":"#VALUE!"},{"$error":"#VALUE!"},{"$error":"#VALUE!"},{"$error":"#VALUE!"},null,17,{"$error":"#VALUE!"},{"$error":"#VALUE!"},{"$error":"#VALUE!"},{"$error":"#VALUE!"},null,17,{"$error":"#VALUE!"},{"$error":"#VALUE!"},{"$error":"#VALUE!"},{"$error":"#VALUE!"},null,17,{"$error":"#VALUE!"},{"$error":"#VALUE!"},{"$error":"#VALUE!"},{"$error":"#VALUE!"},null,17,{"$error":"#VALUE!"},{"$error":"#VALUE!"},{"$error":"#VALUE!"},{"$error":"#VALUE!"},null,17,{"$error":"#VALUE!"},{"$error":"#VALUE!"},{"$error":"#VALUE!"},{"$error":"#VALUE!"}]
[null,18,{"$error":"#VALUE!"},{"$error":"#VALUE!"},{"$error":"#VALUE!"},{"$error":"#VALUE!"},null,18,{"$error":"#VALUE!"},{"$error":"#VALUE!"},{"$error":"#VALUE!"},{"$error":"#VALUE!"},null,18,{"$error":"#VALUE!"},{"$error":"#VALUE!"},{"$error":"#VALUE!"},{"$error":"#VALUE!"},null,18,{"$error":"#VALUE!"},{"$error":"#VALUE!"},{"$error":"#VALUE!"},{"$error":"#VALUE!"},null,18,{"$error":"#VALUE!"},{"$error":"#VALUE!"},{"$error":"#VALUE!"},{"$error":"#VALUE!"},null,18,{"$error":"#VALUE!"},{"$error":"#VALUE!"},{"$error":"#VALUE!"},{"$error":"#VALUE!"},null,18,{"$error":"#VALUE!"},{"$error":"#VALUE!"},{"$error":"#VALUE!"},{"$error":"#VALUE!"}]
[null,19,{"$error":"#VALUE!"},{"$error":"#VALUE!"},{"$error":"#VALUE!"},{"$error":"#VALUE!"},null,19,{"$error":"#VALUE!"},{"$error":"#VALUE!"},{"$error":"#VALUE!"},{"$error":"#VALUE!"},null,19,{"$error":"#VALUE!"},{"$error":"#VALUE!"},{"$error":"#VALUE!"},{"$error":"#VALUE!"},null,19,{"$error":"#VALUE!"},{"$error":"#VALUE!"},{"$error":"#VALUE!"},{"$error":"#VALUE!"},null,19,{"$error":"#VALUE!"},{"$error":"#VALUE!"},{"$error":"#VALUE!"},{"$error":"#VALUE!"},null,19,{"$error":"#VALUE!"},{"$error":"#VALUE!"},{"$error":"#VALUE!"},{"$error":"#VALUE!"},null,19,{"$error":"#VALUE!"},{"$error":"#VALUE!"},{"$error":"#VALUE!"},{"$error":"#VALUE!"}]
[null,20,{"$error":"#VALUE!"},{"$error":"#VALUE!"},{"$error":"#VALUE!"},{"$error":"#VALUE!"},null,20,{"$error":"#VALUE!"},{"$error":"#VALUE!"},{"$error":"#VALUE!"},{"$error":"#VALUE!"},null,20,{"$error":"#VALUE!"},{"$error":"#VALUE!"},{"$error":"#VALUE!"},{"$error":"#VALUE!"},null,20,{"$error":"#VALUE!"},{"$error":"#VALUE!"},{"$error":"#VALUE!"},{"$error":"#VALUE!"},null,20,{"$error":"#VALUE!"},{"$error":"#VALUE!"},{"$error":"#VALUE!"},{"$error":"#VALUE!"},null,20,{"$error":"#VALUE!"},{"$error":"#VALUE!"},{"$error":"#VALUE!"},{"$error":"#VALUE!"},null,20,{"$error":"#VALUE!"},{"$error":"#VALUE!"},{"$error":"#VALUE!"},{"$error":"#VALUE!"}]
[null,21,{"$error":"#VALUE!"},{"$error":"#VALUE!"},{"$error":"#VALUE!"},{"$error":"#VALUE!"},null,21,{"$error":"#VALUE!"},{"$error":"#VALUE!"},{"$error":"#VALUE!"},{"$error":"#VALUE!"},null,21,{"$error":"#VALUE!"},{"$error":"#VALUE!"},{"$error":"#VALUE!"},{"$error":"#VALUE!"},null,21,{"$error":"#VALUE!"},{"$error":"#VALUE!"},{"$error":"#VALUE!"},{"$error":"#VALUE!"},null,21,{"$error":"#VALUE!"},{"$error":"#VALUE!"},{"$error":"#VALUE!"},{"$error":"#VALUE!"},null,21,{"$error":"#VALUE!"},{"$error":"#VALUE!"},{"$error":"#VALUE!"},{"$error":"#VALUE!"},null,21,{"$error":"#VALUE!"},{"$error":"#VALUE!"},{"$error":"#VALUE!"},{"$error":"#VALUE!"}]
[null,22,{"$error":"#VALUE!"},{"$error":"#VALUE!"},{"$error":"#VALUE!"},{"$error":"#VALUE!"},null,22,{"$error":"#VALUE!"},{"$error":"#VALUE!"},{"$error":"#VALUE!"},{"$error":"#VALUE!"},null,22,{"$error":"#VALUE!"},{"$error":"#VALUE!"},{"$error":"#VALUE!"},{"$error":"#VALUE!"},null,22,{"$error":"#VALUE!"},{"$error":"#VALUE!"},{"$error":"#VALUE!"},{"$error":"#VALUE!"},null,22,{"$error":"#VALUE!"},{"$error":"#VALUE!"},{"$error":"#VALUE!"},{"$error":"#VALUE!"},null,22,{"$error":"#VALUE!"},{"$error":"#VALUE!"},{"$error":"#VALUE!"},{"$error":"#VALUE!"},null,22,{"$error":"#VALUE!"},{"$error":"#VALUE!"},{"$error":"#VALUE!"},{"$error":"#VALUE!"}]
[null,23,{"$error":"#VALUE!"},{"$error":"#VALUE!"},{"$error":"#VALUE!"},{"$error":"#VALUE!"},null,23,{"$error":"#VALUE!"},{"$error":"#VALUE!"},{"$error":"#VALUE!"},{"$error":"#VALUE!"},null,23,{"$error":"#VALUE!"},{"$error":"#VALUE!"},{"$error":"#VALUE!"},{"$error":"#VALUE!"},null,23,{"$error":"#VALUE!"},{"$error":"#VALUE!"},{"$error":"#VALUE!"},{"$error":"#VALUE!"},null,23,{"$error":"#VALUE!"},{"$error":"#VALUE!"},{"$error":"#VALUE!"},{"$error":"#VALUE!"},null,23,{"$error":"#VALUE!"},{"$error":"#VALUE!"},{"$error":"#VALUE!"},{"$error":"#VALUE!"},null,23,{"$error":"#VALUE!"},{"$error":"#VALUE!"},{"$error":"#VALUE!"},{"$error":"#VALUE!"}]
[null,24,{"$error":"#VALUE!"},{"$error":"#VALUE!"},{"$error":"#VALUE!"},{"$error":"#VALUE!"},null,24,{"$f":"I14-J15","v":{"$error":"#VALUE!"}},{"$error":"#VALUE!"},{"$error":"#VALUE!"},{"$error":"#VALUE!"},null,24,{"$f":"O14-P15","v":{"$error":"#VALUE!"}},{"$error":"#VALUE!"},{"$error":"#VALUE!"},{"$error":"#VALUE!"},null,24,{"$f":"U14-V15","v":{"$error":"#VALUE!"}},{"$error":"#VALUE!"},{"$error":"#VALUE!"},{"$error":"#VALUE!"},null,24,{"$f":"AA14-AB15","v":{"$error":"#VALUE!"}},{"$error":"#VALUE!"},{"$error":"#VALUE!"},{"$error":"#VALUE!"},null,24,{"$f":"AG14-AH15","v":{"$error":"#VALUE!"}},{"$error":"#VALUE!"},{"$error":"#VALUE!"},{"$error":"#VALUE!"},null,24,{"$error":"#VALUE!"},{"$error":"#VALUE!"},{"$error":"#VALUE!"},{"$error":"#VALUE!"}]
[null,null,null,null,null,null,null,25,{"$f":"I15-J16","v":{"$error":"#VALUE!"}},{"$error":"#VALUE!"},{"$error":"#VALUE!"},{"$error":"#VALUE!"},null,25,{"$f":"O15-P16","v":{"$error":"#VALUE!"}},{"$error":"#VALUE!"},{"$error":"#VALUE!"},{"$error":"#VALUE!"},null,25,{"$f":"U15-V16","v":{"$error":"#VALUE!"}},{"$error":"#VALUE!"},{"$error":"#VALUE!"},{"$error":"#VALUE!"},null,25,{"$f":"AA15-AB16","v":{"$error":"#VALUE!"}},{"$error":"#VALUE!"},{"$error":"#VALUE!"},{"$error":"#VALUE!"},null,25,{"$f":"AG15-AH16","v":{"$error":"#VALUE!"}},{"$error":"#VALUE!"},{"$error":"#VALUE!"},{"$error":"#VALUE!"},null,25,{"$error":"#VALUE!"},{"$error":"#VALUE!"},{"$error":"#VALUE!"},{"$error":"#VALUE!"}]
[null,null,null,null,null,null,null,26,{"$error":"#VALUE!"},{"$error":"#VALUE!"},{"$error":"#VALUE!"},{"$error":"#VALUE!"},null,26,{"$error":"#VALUE!"},{"$error":"#VALUE!"},{"$error":"#VALUE!"},{"$error":"#VALUE!"},null,26,{"$error":"#VALUE!"},{"$error":"#VALUE!"},{"$error":"#VALUE!"},{"$error":"#VALUE!"},null,26,{"$error":"#VALUE!"},{"$error":"#VALUE!"},{"$error":"#VALUE!"},{"$error":"#VALUE!"},null,26,{"$error":"#VALUE!"},{"$error":"#VALUE!"},{"$error":"#VALUE!"},{"$error":"#VALUE!"},null,26,{"$error":"#VALUE!"},{"$error":"#VALUE!"},{"$error":"#VALUE!"},{"$error":"#VALUE!"}]
[null,null,null,null,null,null,null,27,{"$error":"#VALUE!"},{"$error":"#VALUE!"},{"$error":"#VALUE!"},{"$error":"#VALUE!"},null,27,{"$error":"#VALUE!"},{"$error":"#VALUE!"},{"$error":"#VALUE!"},{"$error":"#VALUE!"},null,27,{"$error":"#VALUE!"},{"$error":"#VALUE!"},{"$error":"#VALUE!"},{"$error":"#VALUE!"},null,27,{"$error":"#VALUE!"},{"$error":"#VALUE!"},{"$error":"#VALUE!"},{"$error":"#VALUE!"},null,27,{"$error":"#VALUE!"},{"$error":"#VALUE!"},{"$error":"#VALUE!"},{"$error":"#VALUE!"},null,27,{"$error":"#VALUE!"},{"$error":"#VALUE!"},{"$error":"#VALUE!"},{"$error":"#VALUE!"}]
[null,null,null,null,null,null,null,28,{"$error":"#VALUE!"},{"$error":"#VALUE!"},{"$error":"#VALUE!"},{"$error":"#VALUE!"},null,28,{"$error":"#VALUE!"},{"$error":"#VALUE!"},{"$error":"#VALUE!"},{"$error":"#VALUE!"},null,28,{"$error":"#VALUE!"},{"$error":"#VALUE!"},{"$error":"#VALUE!"},{"$error":"#VALUE!"},null,28,{"$error":"#VALUE!"},{"$error":"#VALUE!"},{"$error":"#VALUE!"},{"$error":"#VALUE!"},null,28,{"$error":"#VALUE!"},{"$error":"#VALUE!"},{"$error":"#VALUE!"},{"$error":"#VALUE!"},null,28,{"$error":"#VALUE!"},{"$error":"#VALUE!"},{"$error":"#VALUE!"},{"$error":"#VALUE!"}]
[null,null,null,null,null,null,null,29,{"$error":"#VALUE!"},{"$error":"#VALUE!"},{"$error":"#VALUE!"},{"$error":"#VALUE!"},null,29,{"$error":"#VALUE!"},{"$error":"#VALUE!"},{"$error":"#VALUE!"},{"$error":"#VALUE!"},null,29,{"$error":"#VALUE!"},{"$error":"#VALUE!"},{"$error":"#VALUE!"},{"$error":"#VALUE!"},null,29,{"$error":"#VALUE!"},{"$error":"#VALUE!"},{"$error":"#VALUE!"},{"$error":"#VALUE!"},null,29,{"$error":"#VALUE!"},{"$error":"#VALUE!"},{"$error":"#VALUE!"},{"$error":"#VALUE!"},null,29,{"$error":"#VALUE!"},{"$error":"#VALUE!"},{"$error":"#VALUE!"},{"$error":"#VALUE!"}]
[null,null,null,null,null,null,null,30,{"$error":"#VALUE!"},{"$error":"#VALUE!"},{"$error":"#VALUE!"},{"$error":"#VALUE!"},null,30,{"$error":"#VALUE!"},{"$error":"#VALUE!"},{"$error":"#VALUE!"},{"$error":"#VALUE!"},null,30,{"$error":"#VALUE!"},{"$error":"#VALUE!"},{"$error":"#VALUE!"},{"$error":"#VALUE!"},null,30,{"$error":"#VALUE!"},{"$error":"#VALUE!"},{"$error":"#VALUE!"},{"$error":"#VALUE!"},null,30,{"$error":"#VALUE!"},{"$error":"#VALUE!"},{"$error":"#VALUE!"},{"$error":"#VALUE!"},null,30,{"$error":"#VALUE!"},{"$error":"#VALUE!"},{"$error":"#VALUE!"},{"$error":"#VALUE!"}]
[null,null,null,null,null,null,null,31,{"$error":"#VALUE!"},{"$error":"#VALUE!"},{"$error":"#VALUE!"},{"$error":"#VALUE!"},null,31,{"$error":"#VALUE!"},{"$error":"#VALUE!"},{"$error":"#VALUE!"},{"$error":"#VALUE!"},null,31,{"$error":"#VALUE!"},{"$error":"#VALUE!"},{"$error":"#VALUE!"},{"$error":"#VALUE!"},null,31,{"$error":"#VALUE!"},{"$error":"#VALUE!"},{"$error":"#VALUE!"},{"$error":"#VALUE!"},null,31,{"$error":"#VALUE!"},{"$error":"#VALUE!"},{"$error":"#VALUE!"},{"$error":"#VALUE!"},null,31,{"$error":"#VALUE!"},{"$error":"#VALUE!"},{"$error":"#VALUE!"},{"$error":"#VALUE!"}]
[null,null,null,null,null,null,null,32,{"$error":"#VALUE!"},{"$error":"#VALUE!"},{"$error":"#VALUE!"},{"$error":"#VALUE!"},null,32,{"$error":"#VALUE!"},{"$error":"#VALUE!"},{"$error":"#VALUE!"},{"$error":"#VALUE!"},null,32,{"$error":"#VALUE!"},{"$error":"#VALUE!"},{"$error":"#VALUE!"},{"$error":"#VALUE!"},null,32,{"$error":"#VALUE!"},{"$error":"#VALUE!"},{"$error":"#VALUE!"},{"$error":"#VALUE!"},null,32,{"$error":"#VALUE!"},{"$error":"#VALUE!"},{"$error":"#VALUE!"},{"$error":"#VALUE!"},null,32,{"$error":"#VALUE!"},{"$error":"#VALUE!"},{"$error":"#VALUE!"},{"$error":"#VALUE!"}]
[null,null,null,null,null,null,null,33,{"$error":"#VALUE!"},{"$error":"#VALUE!"},{"$error":"#VALUE!"},{"$error":"#VALUE!"},null,33,{"$error":"#VALUE!"},{"$error":"#VALUE!"},{"$error":"#VALUE!"},{"$error":"#VALUE!"},null,33,{"$error":"#VALUE!"},{"$error":"#VALUE!"},{"$error":"#VALUE!"},{"$error":"#VALUE!"},null,33,{"$error":"#VALUE!"},{"$error":"#VALUE!"},{"$error":"#VALUE!"},{"$error":"#VALUE!"},null,33,{"$error":"#VALUE!"},{"$error":"#VALUE!"},{"$error":"#VALUE!"},{"$error":"#VALUE!"},null,33,{"$error":"#VALUE!"},{"$error":"#VALUE!"},{"$error":"#VALUE!"},{"$error":"#VALUE!"}]
[null,null,null,null,null,null,null,34,{"$error":"#VALUE!"},{"$error":"#VALUE!"},{"$error":"#VALUE!"},{"$error":"#VALUE!"},null,34,{"$error":"#VALUE!"},{"$error":"#VALUE!"},{"$error":"#VALUE!"},{"$error":"#VALUE!"},null,34,{"$error":"#VALUE!"},{"$error":"#VALUE!"},{"$error":"#VALUE!"},{"$error":"#VALUE!"},null,34,{"$error":"#VALUE!"},{"$error":"#VALUE!"},{"$error":"#VALUE!"},{"$error":"#VALUE!"},null,34,{"$error":"#VALUE!"},{"$error":"#VALUE!"},{"$error":"#VALUE!"},{"$error":"#VALUE!"},null,34,{"$error":"#VALUE!"},{"$error":"#VALUE!"},{"$error":"#VALUE!"},{"$error":"#VALUE!"}]
[null,null,null,null,null,null,null,35,{"$error":"#VALUE!"},{"$error":"#VALUE!"},{"$error":"#VALUE!"},{"$error":"#VALUE!"},null,35,{"$error":"#VALUE!"},{"$error":"#VALUE!"},{"$error":"#VALUE!"},{"$error":"#VALUE!"},null,35,{"$error":"#VALUE!"},{"$error":"#VALUE!"},{"$error":"#VALUE!"},{"$error":"#VALUE!"},null,35,{"$error":"#VALUE!"},{"$error":"#VALUE!"},{"$error":"#VALUE!"},{"$error":"#VALUE!"},null,35,{"$error":"#VALUE!"},{"$error":"#VALUE!"},{"$error":"#VALUE!"},{"$error":"#VALUE!"},null,35,{"$error":"#VALUE!"},{"$error":"#VALUE!"},{"$error":"#VALUE!"},{"$error":"#VALUE!"}]
[null,null,null,null,null,null,null,36,{"$error":"#VALUE!"},{"$error":"#VALUE!"},{"$error":"#VALUE!"},{"$error":"#VALUE!"},null,36,{"$error":"#VALUE!"},{"$error":"#VALUE!"},{"$error":"#VALUE!"},{"$error":"#VALUE!"},null,36,{"$error":"#VALUE!"},{"$error":"#VALUE!"},{"$error":"#VALUE!"},{"$error":"#VALUE!"},null,36,{"$error":"#VALUE!"},{"$error":"#VALUE!"},{"$error":"#VALUE!"},{"$error":"#VALUE!"},null,36,{"$error":"#VALUE!"},{"$error":"#VALUE!"},{"$error":"#VALUE!"},{"$error":"#VALUE!"},null,36,{"$error":"#VALUE!"},{"$error":"#VALUE!"},{"$error":"#VALUE!"},{"$error":"#VALUE!"}]
[null,null,null,null,null,null,null,null,null,null,null,null,null,37,{"$error":"#VALUE!"},{"$error":"#VALUE!"},{"$error":"#VALUE!"},{"$error":"#VALUE!"},null,37,{"$error":"#VALUE!"},{"$error":"#VALUE!"},{"$error":"#VALUE!"},{"$error":"#VALUE!"},null,37,{"$error":"#VALUE!"},{"$error":"#VALUE!"},{"$error":"#VALUE!"},{"$error":"#VALUE!"},null,37,{"$error":"#VALUE!"},{"$error":"#VALUE!"},{"$error":"#VALUE!"},{"$error":"#VALUE!"},null,37,{"$error":"#VALUE!"},{"$error":"#VALUE!"},{"$error":"#VALUE!"},{"$error":"#VALUE!"}]
[null,null,null,null,null,null,null,null,null,null,null,null,null,38,{"$error":"#VALUE!"},{"$error":"#VALUE!"},{"$error":"#VALUE!"},{"$error":"#VALUE!"},null,38,{"$error":"#VALUE!"},{"$error":"#VALUE!"},{"$error":"#VALUE!"},{"$error":"#VALUE!"},null,38,{"$error":"#VALUE!"},{"$error":"#VALUE!"},{"$error":"#VALUE!"},{"$error":"#VALUE!"},null,38,{"$error":"#VALUE!"},{"$error":"#VALUE!"},{"$error":"#VALUE!"},{"$error":"#VALUE!"},null,38,{"$error":"#VALUE!"},{"$error":"#VALUE!"},{"$error":"#VALUE!"},{"$error":"#VALUE!"}]
[null,null,null,null,null,null,null,null,null,null,null,null,null,39,{"$error":"#VALUE!"},{"$error":"#VALUE!"},{"$error":"#VALUE!"},{"$error":"#VALUE!"},null,39,{"$error":"#VALUE!"},{"$error":"#VALUE!"},{"$error":"#VALUE!"},{"$error":"#VALUE!"},null,39,{"$error":"#VALUE!"},{"$error":"#VALUE!"},{"$error":"#VALUE!"},{"$error":"#VALUE!"},null,39,{"$error":"#VALUE!"},{"$error":"#VALUE!"},{"$error":"#VALUE!"},{"$error":"#VALUE!"},null,39,{"$error":"#VALUE!"},{"$error":"#VALUE!"},{"$error":"#VALUE!"},{"$error":"#VALUE!"}]
[null,null,null,null,null,null,null,null,null,null,null,null,null,40,{"$error":"#VALUE!"},{"$error":"#VALUE!"},{"$error":"#VALUE!"},{"$error":"#VALUE!"},null,40,{"$error":"#VALUE!"},{"$error":"#VALUE!"},{"$error":"#VALUE!"},{"$error":"#VALUE!"},null,40,{"$error":"#VALUE!"},{"$error":"#VALUE!"},{"$error":"#VALUE!"},{"$error":"#VALUE!"},null,40,{"$error":"#VALUE!"},{"$error":"#VALUE!"},{"$error":"#VALUE!"},{"$error":"#VALUE!"},null,40,{"$error":"#VALUE!"},{"$error":"#VALUE!"},{"$error":"#VALUE!"},{"$error":"#VALUE!"}]
[null,null,null,null,null,null,null,null,null,null,null,null,null,41,{"$error":"#VALUE!"},{"$error":"#VALUE!"},{"$error":"#VALUE!"},{"$error":"#VALUE!"},null,41,{"$error":"#VALUE!"},{"$error":"#VALUE!"},{"$error":"#VALUE!"},{"$error":"#VALUE!"},null,41,{"$error":"#VALUE!"},{"$error":"#VALUE!"},{"$error":"#VALUE!"},{"$error":"#VALUE!"},null,41,{"$error":"#VALUE!"},{"$error":"#VALUE!"},{"$error":"#VALUE!"},{"$error":"#VALUE!"},null,41,{"$error":"#VALUE!"},{"$error":"#VALUE!"},{"$error":"#VALUE!"},{"$error":"#VALUE!"}]
[null,null,null,null,null,null,null,null,null,null,null,null,null,42,{"$error":"#VALUE!"},{"$error":"#VALUE!"},{"$error":"#VALUE!"},{"$error":"#VALUE!"},null,42,{"$error":"#VALUE!"},{"$error":"#VALUE!"},{"$error":"#VALUE!"},{"$error":"#VALUE!"},null,42,{"$error":"#VALUE!"},{"$error":"#VALUE!"},{"$error":"#VALUE!"},{"$error":"#VALUE!"},null,42,{"$error":"#VALUE!"},{"$error":"#VALUE!"},{"$error":"#VALUE!"},{"$error":"#VALUE!"},null,42,{"$error":"#VALUE!"},{"$error":"#VALUE!"},{"$error":"#VALUE!"},{"$error":"#VALUE!"}]
[null,null,null,null,null,null,null,null,null,null,null,null,null,43,{"$error":"#VALUE!"},{"$error":"#VALUE!"},{"$error":"#VALUE!"},{"$error":"#VALUE!"},null,43,{"$error":"#VALUE!"},{"$error":"#VALUE!"},{"$error":"#VALUE!"},{"$error":"#VALUE!"},null,43,{"$error":"#VALUE!"},{"$error":"#VALUE!"},{"$error":"#VALUE!"},{"$error":"#VALUE!"},null,43,{"$error":"#VALUE!"},{"$error":"#VALUE!"},{"$error":"#VALUE!"},{"$error":"#VALUE!"},null,43,{"$error":"#VALUE!"},{"$error":"#VALUE!"},{"$error":"#VALUE!"},{"$error":"#VALUE!"}]
[null,null,null,null,null,null,null,null,null,null,null,null,null,44,{"$error":"#VALUE!"},{"$error":"#VALUE!"},{"$error":"#VALUE!"},{"$error":"#VALUE!"},null,44,{"$error":"#VALUE!"},{"$error":"#VALUE!"},{"$error":"#VALUE!"},{"$error":"#VALUE!"},null,44,{"$error":"#VALUE!"},{"$error":"#VALUE!"},{"$error":"#VALUE!"},{"$error":"#VALUE!"},null,44,{"$error":"#VALUE!"},{"$error":"#VALUE!"},{"$error":"#VALUE!"},{"$error":"#VALUE!"},null,44,{"$error":"#VALUE!"},{"$error":"#VALUE!"},{"$error":"#VALUE!"},{"$error":"#VALUE!"}]
[null,null,null,null,null,null,null,null,null,null,null,null,null,45,{"$error":"#VALUE!"},{"$error":"#VALUE!"},{"$error":"#VALUE!"},{"$error":"#VALUE!"},null,45,{"$error":"#VALUE!"},{"$error":"#VALUE!"},{"$error":"#VALUE!"},{"$error":"#VALUE!"},null,45,{"$error":"#VALUE!"},{"$error":"#VALUE!"},{"$error":"#VALUE!"},{"$error":"#VALUE!"},null,45,{"$error":"#VALUE!"},{"$error":"#VALUE!"},{"$error":"#VALUE!"},{"$error":"#VALUE!"},null,45,{"$error":"#VALUE!"},{"$error":"#VALUE!"},{"$error":"#VALUE!"},{"$error":"#VALUE!"}]
[null,null,null,null,null,null,null,null,null,null,null,null,null,46,{"$error":"#VALUE!"},{"$error":"#VALUE!"},{"$error":"#VALUE!"},{"$error":"#VALUE!"},null,46,{"$error":"#VALUE!"},{"$error":"#VALUE!"},{"$error":"#VALUE!"},{"$error":"#VALUE!"},null,46,{"$error":"#VALUE!"},{"$error":"#VALUE!"},{"$error":"#VALUE!"},{"$error":"#VALUE!"},null,46,{"$error":"#VALUE!"},{"$error":"#VALUE!"},{"$error":"#VALUE!"},{"$error":"#VALUE!"},null,46,{"$error":"#VALUE!"},{"$error":"#VALUE!"},{"$error":"#VALUE!"},{"$error":"#VALUE!"}]
[null,null,null,null,null,null,null,null,null,null,null,null,null,47,{"$error":"#VALUE!"},{"$error":"#VALUE!"},{"$error":"#VALUE!"},{"$error":"#VALUE!"},null,47,{"$error":"#VALUE!"},{"$error":"#VALUE!"},{"$error":"#VALUE!"},{"$error":"#VALUE!"},null,47,{"$error":"#VALUE!"},{"$error":"#VALUE!"},{"$error":"#VALUE!"},{"$error":"#VALUE!"},null,47,{"$error":"#VALUE!"},{"$error":"#VALUE!"},{"$error":"#VALUE!"},{"$error":"#VALUE!"},null,47,{"$error":"#VALUE!"},{"$error":"#VALUE!"},{"$error":"#VALUE!"},{"$error":"#VALUE!"}]
[null,null,null,null,null,null,null,null,null,null,null,null,null,48,{"$error":"#VALUE!"},{"$error":"#VALUE!"},{"$error":"#VALUE!"},{"$error":"#VALUE!"},null,48,{"$error":"#VALUE!"},{"$error":"#VALUE!"},{"$error":"#VALUE!"},{"$error":"#VALUE!"},null,48,{"$error":"#VALUE!"},{"$error":"#VALUE!"},{"$error":"#VALUE!"},{"$error":"#VALUE!"},null,48,{"$error":"#VALUE!"},{"$error":"#VALUE!"},{"$error":"#VALUE!"},{"$error":"#VALUE!"},null,48,{"$error":"#VALUE!"},{"$error":"#VALUE!"},{"$error":"#VALUE!"},{"$error":"#VALUE!"}]
[null,null,null,null,null,null,null,null,null,null,null,null,null,null,null,null,null,null,null,49,{"$error":"#VALUE!"},{"$error":"#VALUE!"},{"$error":"#VALUE!"},{"$error":"#VALUE!"},null,49,{"$error":"#VALUE!"},{"$error":"#VALUE!"},{"$error":"#VALUE!"},{"$error":"#VALUE!"},null,49,{"$error":"#VALUE!"},{"$error":"#VALUE!"},{"$error":"#VALUE!"},{"$error":"#VALUE!"},null,49,{"$error":"#VALUE!"},{"$error":"#VALUE!"},{"$error":"#VALUE!"},{"$error":"#VALUE!"}]
[null,null,null,null,null,null,null,null,null,null,null,null,null,null,null,null,null,null,null,50,{"$error":"#VALUE!"},{"$error":"#VALUE!"},{"$error":"#VALUE!"},{"$error":"#VALUE!"},null,50,{"$error":"#VALUE!"},{"$error":"#VALUE!"},{"$error":"#VALUE!"},{"$error":"#VALUE!"},null,50,{"$error":"#VALUE!"},{"$error":"#VALUE!"},{"$error":"#VALUE!"},{"$error":"#VALUE!"},null,50,{"$error":"#VALUE!"},{"$error":"#VALUE!"},{"$error":"#VALUE!"},{"$error":"#VALUE!"}]
[null,null,null,null,null,null,null,null,null,null,null,null,null,null,null,null,null,null,null,51,{"$error":"#VALUE!"},{"$error":"#VALUE!"},{"$error":"#VALUE!"},{"$error":"#VALUE!"},null,51,{"$error":"#VALUE!"},{"$error":"#VALUE!"},{"$error":"#VALUE!"},{"$error":"#VALUE!"},null,51,{"$error":"#VALUE!"},{"$error":"#VALUE!"},{"$error":"#VALUE!"},{"$error":"#VALUE!"},null,51,{"$error":"#VALUE!"},{"$error":"#VALUE!"},{"$error":"#VALUE!"},{"$error":"#VALUE!"}]
[null,null,null,null,null,null,null,null,null,null,null,null,null,null,null,null,null,null,null,52,{"$error":"#VALUE!"},{"$error":"#VALUE!"},{"$error":"#VALUE!"},{"$error":"#VALUE!"},null,52,{"$error":"#VALUE!"},{"$error":"#VALUE!"},{"$error":"#VALUE!"},{"$error":"#VALUE!"},null,52,{"$error":"#VALUE!"},{"$error":"#VALUE!"},{"$error":"#VALUE!"},{"$error":"#VALUE!"},null,52,{"$error":"#VALUE!"},{"$error":"#VALUE!"},{"$error":"#VALUE!"},{"$error":"#VALUE!"}]
[null,null,null,null,null,null,null,null,null,null,null,null,null,null,null,null,null,null,null,53,{"$error":"#VALUE!"},{"$error":"#VALUE!"},{"$error":"#VALUE!"},{"$error":"#VALUE!"},null,53,{"$error":"#VALUE!"},{"$error":"#VALUE!"},{"$error":"#VALUE!"},{"$error":"#VALUE!"},null,53,{"$error":"#VALUE!"},{"$error":"#VALUE!"},{"$error":"#VALUE!"},{"$error":"#VALUE!"},null,53,{"$error":"#VALUE!"},{"$error":"#VALUE!"},{"$error":"#VALUE!"},{"$error":"#VALUE!"}]
[null,null,null,null,null,null,null,null,null,null,null,null,null,null,null,null,null,null,null,54,{"$error":"#VALUE!"},{"$error":"#VALUE!"},{"$error":"#VALUE!"},{"$error":"#VALUE!"},null,54,{"$error":"#VALUE!"},{"$error":"#VALUE!"},{"$error":"#VALUE!"},{"$error":"#VALUE!"},null,54,{"$error":"#VALUE!"},{"$error":"#VALUE!"},{"$error":"#VALUE!"},{"$error":"#VALUE!"},null,54,{"$error":"#VALUE!"},{"$error":"#VALUE!"},{"$error":"#VALUE!"},{"$error":"#VALUE!"}]
[null,null,null,null,null,null,null,null,null,null,null,null,null,null,null,null,null,null,null,55,{"$error":"#VALUE!"},{"$error":"#VALUE!"},{"$error":"#VALUE!"},{"$error":"#VALUE!"},null,55,{"$error":"#VALUE!"},{"$error":"#VALUE!"},{"$error":"#VALUE!"},{"$error":"#VALUE!"},null,55,{"$error":"#VALUE!"},{"$error":"#VALUE!"},{"$error":"#VALUE!"},{"$error":"#VALUE!"},null,55,{"$error":"#VALUE!"},{"$error":"#VALUE!"},{"$error":"#VALUE!"},{"$error":"#VALUE!"}]
[null,null,null,null,null,null,null,null,null,null,null,null,null,null,null,null,null,null,null,56,{"$error":"#VALUE!"},{"$error":"#VALUE!"},{"$error":"#VALUE!"},{"$error":"#VALUE!"},null,56,{"$error":"#VALUE!"},{"$error":"#VALUE!"},{"$error":"#VALUE!"},{"$error":"#VALUE!"},null,56,{"$error":"#VALUE!"},{"$error":"#VALUE!"},{"$error":"#VALUE!"},{"$error":"#VALUE!"},null,56,{"$error":"#VALUE!"},{"$error":"#VALUE!"},{"$error":"#VALUE!"},{"$error":"#VALUE!"}]
[null,null,null,null,null,null,null,null,null,null,null,null,null,null,null,null,null,null,null,57,{"$error":"#VALUE!"},{"$error":"#VALUE!"},{"$error":"#VALUE!"},{"$error":"#VALUE!"},null,57,{"$error":"#VALUE!"},{"$error":"#VALUE!"},{"$error":"#VALUE!"},{"$error":"#VALUE!"},null,57,{"$error":"#VALUE!"},{"$error":"#VALUE!"},{"$error":"#VALUE!"},{"$error":"#VALUE!"},null,57,{"$error":"#VALUE!"},{"$error":"#VALUE!"},{"$error":"#VALUE!"},{"$error":"#VALUE!"}]
[null,null,null,null,null,null,null,null,null,null,null,null,null,null,null,null,null,null,null,58,{"$error":"#VALUE!"},{"$error":"#VALUE!"},{"$error":"#VALUE!"},{"$error":"#VALUE!"},null,58,{"$error":"#VALUE!"},{"$error":"#VALUE!"},{"$error":"#VALUE!"},{"$error":"#VALUE!"},null,58,{"$error":"#VALUE!"},{"$error":"#VALUE!"},{"$error":"#VALUE!"},{"$error":"#VALUE!"},null,58,{"$error":"#VALUE!"},{"$error":"#VALUE!"},{"$error":"#VALUE!"},{"$error":"#VALUE!"}]
[null,null,null,null,null,null,null,null,null,null,null,null,null,null,null,null,null,null,null,59,{"$error":"#VALUE!"},{"$error":"#VALUE!"},{"$error":"#VALUE!"},{"$error":"#VALUE!"},null,59,{"$error":"#VALUE!"},{"$error":"#VALUE!"},{"$error":"#VALUE!"},{"$error":"#VALUE!"},null,59,{"$error":"#VALUE!"},{"$error":"#VALUE!"},{"$error":"#VALUE!"},{"$error":"#VALUE!"},null,59,{"$error":"#VALUE!"},{"$error":"#VALUE!"},{"$error":"#VALUE!"},{"$error":"#VALUE!"}]
[null,null,null,null,null,null,null,null,null,null,null,null,null,null,null,null,null,null,null,60,{"$error":"#VALUE!"},{"$error":"#VALUE!"},{"$error":"#VALUE!"},{"$error":"#VALUE!"},null,60,{"$error":"#VALUE!"},{"$error":"#VALUE!"},{"$error":"#VALUE!"},{"$error":"#VALUE!"},null,60,{"$error":"#VALUE!"},{"$error":"#VALUE!"},{"$error":"#VALUE!"},{"$error":"#VALUE!"},null,60,{"$error":"#VALUE!"},{"$error":"#VALUE!"},{"$error":"#VALUE!"},{"$error":"#VALUE!"}]
[null,null,null,null,null,null,null,null,null,null,null,null,null,null,null,null,null,null,null,null,null,null,null,null,null,61,{"$error":"#VALUE!"},{"$error":"#VALUE!"},{"$error":"#VALUE!"},{"$error":"#VALUE!"},null,61,{"$error":"#VALUE!"},{"$error":"#VALUE!"},{"$error":"#VALUE!"},{"$error":"#VALUE!"},null,61,{"$error":"#VALUE!"},{"$error":"#VALUE!"},{"$error":"#VALUE!"},{"$error":"#VALUE!"}]
[null,null,null,null,null,null,null,null,null,null,null,null,null,null,null,null,null,null,null,null,null,null,null,null,null,62,{"$error":"#VALUE!"},{"$error":"#VALUE!"},{"$error":"#VALUE!"},{"$error":"#VALUE!"},null,62,{"$error":"#VALUE!"},{"$error":"#VALUE!"},{"$error":"#VALUE!"},{"$error":"#VALUE!"},null,62,{"$error":"#VALUE!"},{"$error":"#VALUE!"},{"$error":"#VALUE!"},{"$error":"#VALUE!"}]
[null,null,null,null,null,null,null,null,null,null,null,null,null,null,null,null,null,null,null,null,null,null,null,null,null,63,{"$error":"#VALUE!"},{"$error":"#VALUE!"},{"$error":"#VALUE!"},{"$error":"#VALUE!"},null,63,{"$error":"#VALUE!"},{"$error":"#VALUE!"},{"$error":"#VALUE!"},{"$error":"#VALUE!"},null,63,{"$error":"#VALUE!"},{"$error":"#VALUE!"},{"$error":"#VALUE!"},{"$error":"#VALUE!"}]
[null,null,null,null,null,null,null,null,null,null,null,null,null,null,null,null,null,null,null,null,null,null,null,null,null,64,{"$error":"#VALUE!"},{"$error":"#VALUE!"},{"$error":"#VALUE!"},{"$error":"#VALUE!"},null,64,{"$error":"#VALUE!"},{"$error":"#VALUE!"},{"$error":"#VALUE!"},{"$error":"#VALUE!"},null,64,{"$error":"#VALUE!"},{"$error":"#VALUE!"},{"$error":"#VALUE!"},{"$error":"#VALUE!"}]
[null,null,null,null,null,null,null,null,null,null,null,null,null,null,null,null,null,null,null,null,null,null,null,null,null,65,{"$error":"#VALUE!"},{"$error":"#VALUE!"},{"$error":"#VALUE!"},{"$error":"#VALUE!"},null,65,{"$error":"#VALUE!"},{"$error":"#VALUE!"},{"$error":"#VALUE!"},{"$error":"#VALUE!"},null,65,{"$error":"#VALUE!"},{"$error":"#VALUE!"},{"$error":"#VALUE!"},{"$error":"#VALUE!"}]
[null,null,null,null,null,null,null,null,null,null,null,null,null,null,null,null,null,null,null,null,null,null,null,null,null,66,{"$error":"#VALUE!"},{"$error":"#VALUE!"},{"$error":"#VALUE!"},{"$error":"#VALUE!"},null,66,{"$error":"#VALUE!"},{"$error":"#VALUE!"},{"$error":"#VALUE!"},{"$error":"#VALUE!"},null,66,{"$error":"#VALUE!"},{"$error":"#VALUE!"},{"$error":"#VALUE!"},{"$error":"#VALUE!"}]
[null,null,null,null,null,null,null,null,null,null,null,null,null,null,null,null,null,null,null,null,null,null,null,null,null,67,{"$error":"#VALUE!"},{"$error":"#VALUE!"},{"$error":"#VALUE!"},{"$error":"#VALUE!"},null,67,{"$error":"#VALUE!"},{"$error":"#VALUE!"},{"$error":"#VALUE!"},{"$error":"#VALUE!"},null,67,{"$error":"#VALUE!"},{"$error":"#VALUE!"},{"$error":"#VALUE!"},{"$error":"#VALUE!"}]
[null,null,null,null,null,null,null,null,null,null,null,null,null,null,null,null,null,null,null,null,null,null,null,null,null,68,{"$error":"#VALUE!"},{"$error":"#VALUE!"},{"$error":"#VALUE!"},{"$error":"#VALUE!"},null,68,{"$error":"#VALUE!"},{"$error":"#VALUE!"},{"$error":"#VALUE!"},{"$error":"#VALUE!"},null,68,{"$error":"#VALUE!"},{"$error":"#VALUE!"},{"$error":"#VALUE!"},{"$error":"#VALUE!"}]
[null,null,null,null,null,null,null,null,null,null,null,null,null,null,null,null,null,null,null,null,null,null,null,null,null,69,{"$error":"#VALUE!"},{"$error":"#VALUE!"},{"$error":"#VALUE!"},{"$error":"#VALUE!"},null,69,{"$error":"#VALUE!"},{"$error":"#VALUE!"},{"$error":"#VALUE!"},{"$error":"#VALUE!"},null,69,{"$error":"#VALUE!"},{"$error":"#VALUE!"},{"$error":"#VALUE!"},{"$error":"#VALUE!"}]
[null,null,null,null,null,null,null,null,null,null,null,null,null,null,null,null,null,null,null,null,null,null,null,null,null,70,{"$error":"#VALUE!"},{"$error":"#VALUE!"},{"$error":"#VALUE!"},{"$error":"#VALUE!"},null,70,{"$error":"#VALUE!"},{"$error":"#VALUE!"},{"$error":"#VALUE!"},{"$error":"#VALUE!"},null,70,{"$error":"#VALUE!"},{"$error":"#VALUE!"},{"$error":"#VALUE!"},{"$error":"#VALUE!"}]
[null,null,null,null,null,null,null,null,null,null,null,null,null,null,null,null,null,null,null,null,null,null,null,null,null,71,{"$error":"#VALUE!"},{"$error":"#VALUE!"},{"$error":"#VALUE!"},{"$error":"#VALUE!"},null,71,{"$error":"#VALUE!"},{"$error":"#VALUE!"},{"$error":"#VALUE!"},{"$error":"#VALUE!"},null,71,{"$error":"#VALUE!"},{"$error":"#VALUE!"},{"$error":"#VALUE!"},{"$error":"#VALUE!"}]
[null,null,null,null,null,null,null,null,null,null,null,null,null,null,null,null,null,null,null,null,null,null,null,null,null,72,{"$error":"#VALUE!"},{"$error":"#VALUE!"},{"$error":"#VALUE!"},{"$error":"#VALUE!"},null,72,{"$error":"#VALUE!"},{"$error":"#VALUE!"},{"$error":"#VALUE!"},{"$error":"#VALUE!"},null,72,{"$error":"#VALUE!"},{"$error":"#VALUE!"},{"$error":"#VALUE!"},{"$error":"#VALUE!"}]
[null,null,null,null,null,null,null,null,null,null,null,null,null,null,null,null,null,null,null,null,null,null,null,null,null,null,null,null,null,null,null,73,{"$error":"#VALUE!"},{"$error":"#VALUE!"},{"$error":"#VALUE!"},{"$error":"#VALUE!"},null,73,{"$error":"#VALUE!"},{"$error":"#VALUE!"},{"$error":"#VALUE!"},{"$error":"#VALUE!"}]
[null,null,null,null,null,null,null,null,null,null,null,null,null,null,null,null,null,null,null,null,null,null,null,null,null,null,null,null,null,null,null,74,{"$error":"#VALUE!"},{"$error":"#VALUE!"},{"$error":"#VALUE!"},{"$error":"#VALUE!"},null,74,{"$error":"#VALUE!"},{"$error":"#VALUE!"},{"$error":"#VALUE!"},{"$error":"#VALUE!"}]
[null,null,null,null,null,null,null,null,null,null,null,null,null,null,null,null,null,null,null,null,null,null,null,null,null,null,null,null,null,null,null,75,{"$error":"#VALUE!"},{"$error":"#VALUE!"},{"$error":"#VALUE!"},{"$error":"#VALUE!"},null,75,{"$error":"#VALUE!"},{"$error":"#VALUE!"},{"$error":"#VALUE!"},{"$error":"#VALUE!"}]
[null,null,null,null,null,null,null,null,null,null,null,null,null,null,null,null,null,null,null,null,null,null,null,null,null,null,null,null,null,null,null,76,{"$error":"#VALUE!"},{"$error":"#VALUE!"},{"$error":"#VALUE!"},{"$error":"#VALUE!"},null,76,{"$error":"#VALUE!"},{"$error":"#VALUE!"},{"$error":"#VALUE!"},{"$error":"#VALUE!"}]
[null,null,null,null,null,null,null,null,null,null,null,null,null,null,null,null,null,null,null,null,null,null,null,null,null,null,null,null,null,null,null,77,{"$error":"#VALUE!"},{"$error":"#VALUE!"},{"$error":"#VALUE!"},{"$error":"#VALUE!"},null,77,{"$error":"#VALUE!"},{"$error":"#VALUE!"},{"$error":"#VALUE!"},{"$error":"#VALUE!"}]
[null,null,null,null,null,null,null,null,null,null,null,null,null,null,null,null,null,null,null,null,null,null,null,null,null,null,null,null,null,null,null,78,{"$error":"#VALUE!"},{"$f":"$C$3/$AF$1","v":{"$error":"#VALUE!"}},{"$f":"AG68*$AG$1/12","v":{"$error":"#VALUE!"}},{"$f":"AH69+AI69+$A$1/$AF$1","v":{"$error":"#VALUE!"}},null,78,{"$f":"AM68-AN69","v":{"$error":"#VALUE!"}},{"$f":"$C$3/$AL$1","v":{"$error":"#VALUE!"}},{"$f":"AM68*$AM$1/12","v":{"$error":"#VALUE!"}},{"$f":"AN69+AO69+$A$1/$AL$1","v":{"$error":"#VALUE!"}}]
[null,null,null,null,null,null,null,null,null,null,null,null,null,null,null,null,null,null,null,null,null,null,null,null,null,null,null,null,null,null,null,79,{"$error":"#VALUE!"},{"$error":"#VALUE!"},{"$error":"#VALUE!"},{"$error":"#VALUE!"},null,79,{"$error":"#VALUE!"},{"$error":"#VALUE!"},{"$error":"#VALUE!"},{"$error":"#VALUE!"}]
[null,null,null,null,null,null,null,null,null,null,null,null,null,null,null,null,null,null,null,null,null,null,null,null,null,null,null,null,null,null,null,80,{"$error":"#VALUE!"},{"$error":"#VALUE!"},{"$error":"#VALUE!"},{"$error":"#VALUE!"},null,80,{"$error":"#VALUE!"},{"$error":"#VALUE!"},{"$error":"#VALUE!"},{"$error":"#VALUE!"}]
[null,null,null,null,null,null,null,null,null,null,null,null,null,null,null,null,null,null,null,null,null,null,null,null,null,null,null,null,null,null,null,81,{"$error":"#VALUE!"},{"$error":"#VALUE!"},{"$error":"#VALUE!"},{"$error":"#VALUE!"},null,81,{"$error":"#VALUE!"},{"$error":"#VALUE!"},{"$error":"#VALUE!"},{"$error":"#VALUE!"}]
[null,null,null,null,null,null,null,null,null,null,null,null,null,null,null,null,null,null,null,null,null,null,null,null,null,null,null,null,null,null,null,82,{"$error":"#VALUE!"},{"$error":"#VALUE!"},{"$error":"#VALUE!"},{"$error":"#VALUE!"},null,82,{"$error":"#VALUE!"},{"$error":"#VALUE!"},{"$error":"#VALUE!"},{"$error":"#VALUE!"}]
[null,null,null,null,null,null,null,null,null,null,null,null,null,null,null,null,null,null,null,null,null,null,null,null,null,null,null,null,null,null,null,83,{"$error":"#VALUE!"},{"$error":"#VALUE!"},{"$error":"#VALUE!"},{"$error":"#VALUE!"},null,83,{"$error":"#VALUE!"},{"$error":"#VALUE!"},{"$error":"#VALUE!"},{"$error":"#VALUE!"}]
[null,null,null,null,null,null,null,null,null,null,null,null,null,null,null,null,null,null,null,null,null,null,null,null,null,null,null,null,null,null,null,84,{"$error":"#VALUE!"},{"$error":"#VALUE!"},{"$error":"#VALUE!"},{"$error":"#VALUE!"},null,84,{"$error":"#VALUE!"},{"$error":"#VALUE!"},{"$error":"#VALUE!"},{"$error":"#VALUE!"}]
[null,null,null,null,null,null,null,null,null,null,null,null,null,null,null,null,null,null,null,null,null,null,null,null,null,null,null,null,null,null,null,null,null,null,null,null,null,85,{"$error":"#VALUE!"},{"$error":"#VALUE!"},{"$error":"#VALUE!"},{"$error":"#VALUE!"}]
[null,null,null,null,null,null,null,null,null,null,null,null,null,null,null,null,null,null,null,null,null,null,null,null,null,null,null,null,null,null,null,null,null,null,null,null,null,86,{"$error":"#VALUE!"},{"$error":"#VALUE!"},{"$error":"#VALUE!"},{"$error":"#VALUE!"}]
[null,null,null,null,null,null,null,null,null,null,null,null,null,null,null,null,null,null,null,null,null,null,null,null,null,null,null,null,null,null,null,null,null,null,null,null,null,87,{"$error":"#VALUE!"},{"$error":"#VALUE!"},{"$error":"#VALUE!"},{"$error":"#VALUE!"}]
[null,null,null,null,null,null,null,null,null,null,null,null,null,null,null,null,null,null,null,null,null,null,null,null,null,null,null,null,null,null,null,null,null,null,null,null,null,88,{"$error":"#VALUE!"},{"$error":"#VALUE!"},{"$error":"#VALUE!"},{"$error":"#VALUE!"}]
[null,null,null,null,null,null,null,null,null,null,null,null,null,null,null,null,null,null,null,null,null,null,null,null,null,null,null,null,null,null,null,null,null,null,null,null,null,89,{"$error":"#VALUE!"},{"$error":"#VALUE!"},{"$error":"#VALUE!"},{"$error":"#VALUE!"}]
[null,null,null,null,null,null,null,null,null,null,null,null,null,null,null,null,null,null,null,null,null,null,null,null,null,null,null,null,null,null,null,null,null,null,null,null,null,90,{"$error":"#VALUE!"},{"$error":"#VALUE!"},{"$error":"#VALUE!"},{"$error":"#VALUE!"}]
[null,null,null,null,null,null,null,null,null,null,null,null,null,null,null,null,null,null,null,null,null,null,null,null,null,null,null,null,null,null,null,null,null,null,null,null,null,91,{"$error":"#VALUE!"},{"$error":"#VALUE!"},{"$error":"#VALUE!"},{"$error":"#VALUE!"}]
[null,null,null,null,null,null,null,null,null,null,null,null,null,null,null,null,null,null,null,null,null,null,null,null,null,null,null,null,null,null,null,null,null,null,null,null,null,92,{"$error":"#VALUE!"},{"$error":"#VALUE!"},{"$error":"#VALUE!"},{"$error":"#VALUE!"}]
[null,null,null,null,null,null,null,null,null,null,null,null,null,null,null,null,null,null,null,null,null,null,null,null,null,null,null,null,null,null,null,null,null,null,null,null,null,93,{"$error":"#VALUE!"},{"$error":"#VALUE!"},{"$error":"#VALUE!"},{"$error":"#VALUE!"}]
[null,null,null,null,null,null,null,null,null,null,null,null,null,null,null,null,null,null,null,null,null,null,null,null,null,null,null,null,null,null,null,null,null,null,null,null,null,94,{"$error":"#VALUE!"},{"$error":"#VALUE!"},{"$error":"#VALUE!"},{"$error":"#VALUE!"}]
[null,null,null,null,null,null,null,null,null,null,null,null,null,null,null,null,null,null,null,null,null,null,null,null,null,null,null,null,null,null,null,null,null,null,null,null,null,95,{"$error":"#VALUE!"},{"$error":"#VALUE!"},{"$error":"#VALUE!"},{"$error":"#VALUE!"}]
[null,null,null,null,null,null,null,null,null,null,null,null,null,null,null,null,null,null,null,null,null,null,null,null,null,null,null,null,null,null,null,null,null,null,null,null,null,96,{"$error":"#VALUE!"},{"$error":"#VALUE!"},{"$error":"#VALUE!"},{"$error":"#VALUE!"}]
[null,null,null,null,null,null,null,null,null,null,null,null,null,null,null,null,null,null,null,null,null,null,null,null,null,null,null,null,null,null,null,null,null,null,null,null,null,97,{"$f":"AM87-AN88","v":{"$error":"#VALUE!"}},{"$error":"#VALUE!"},{"$f":"AM87*$AM$1/12","v":{"$error":"#VALUE!"}},{"$f":"AN88+AO88+$A$1/$AL$1","v":{"$error":"#VALUE!"}}]
[null,null,null,null,null,null,null,null,null,null,null,null,null,null,null,null,null,null,null,null,null,null,null,null,null,null,null,null,null,null,null,null,null,null,null,null,null,98,{"$error":"#VALUE!"},{"$error":"#VALUE!"},{"$error":"#VALUE!"},{"$error":"#VALUE!"}]
[null,null,null,null,null,null,null,null,null,null,null,null,null,null,null,null,null,null,null,null,null,null,null,null,null,null,null,null,null,null,null,null,null,null,null,null,null,99,{"$error":"#VALUE!"},{"$error":"#VALUE!"},{"$error":"#VALUE!"},{"$error":"#VALUE!"}]
[null,null,null,null,null,null,null,null,null,null,null,null,null,null,null,null,null,null,null,null,null,null,null,null,null,null,null,null,null,null,null,null,null,null,null,null,null,100,{"$error":"#VALUE!"},{"$error":"#VALUE!"},{"$error":"#VALUE!"},{"$error":"#VALUE!"}]
[null,null,null,null,null,null,null,null,null,null,null,null,null,null,null,null,null,null,null,null,null,null,null,null,null,null,null,null,null,null,null,null,null,null,null,null,null,101,{"$error":"#VALUE!"},{"$error":"#VALUE!"},{"$error":"#VALUE!"},{"$error":"#VALUE!"}]
[null,null,null,null,null,null,null,null,null,null,null,null,null,null,null,null,null,null,null,null,null,null,null,null,null,null,null,null,null,null,null,null,null,null,null,null,null,102,{"$error":"#VALUE!"},{"$error":"#VALUE!"},{"$error":"#VALUE!"},{"$error":"#VALUE!"}]
[null,null,null,null,null,null,null,null,null,null,null,null,null,null,null,null,null,null,null,null,null,null,null,null,null,null,null,null,null,null,null,null,null,null,null,null,null,103,{"$error":"#VALUE!"},{"$error":"#VALUE!"},{"$error":"#VALUE!"},{"$error":"#VALUE!"}]
[null,null,null,null,null,null,null,null,null,null,null,null,null,null,null,null,null,null,null,null,null,null,null,null,null,null,null,null,null,null,null,null,null,null,null,null,null,104,{"$error":"#VALUE!"},{"$error":"#VALUE!"},{"$error":"#VALUE!"},{"$error":"#VALUE!"}]
[null,null,null,null,null,null,null,null,null,null,null,null,null,null,null,null,null,null,null,null,null,null,null,null,null,null,null,null,null,null,null,null,null,null,null,null,null,105,{"$error":"#VALUE!"},{"$error":"#VALUE!"},{"$error":"#VALUE!"},{"$error":"#VALUE!"}]
[null,null,null,null,null,null,null,null,null,null,null,null,null,null,null,null,null,null,null,null,null,null,null,null,null,null,null,null,null,null,null,null,null,null,null,null,null,106,{"$error":"#VALUE!"},{"$error":"#VALUE!"},{"$error":"#VALUE!"},{"$error":"#VALUE!"}]
[null,null,null,null,null,null,null,null,null,null,null,null,null,null,null,null,null,null,null,null,null,null,null,null,null,null,null,null,null,null,null,null,null,null,null,null,null,107,{"$error":"#VALUE!"},{"$error":"#VALUE!"},{"$error":"#VALUE!"},{"$error":"#VALUE!"}]
[null,null,null,null,null,null,null,null,null,null,null,null,null,null,null,null,null,null,null,null,null,null,null,null,null,null,null,null,null,null,null,null,null,null,null,null,null,108,{"$error":"#VALUE!"},{"$error":"#VALUE!"},{"$error":"#VALUE!"},{"$error":"#VALUE!"}]
[null,null,null,null,null,null,null,null,null,null,null,null,null,null,null,null,null,null,null,null,null,null,null,null,null,null,null,null,null,null,null,null,null,null,null,null,null,109,{"$f":"AM99-AN100","v":{"$error":"#VALUE!"}},{"$error":"#VALUE!"},{"$f":"AM99*$AM$1/12","v":{"$error":"#VALUE!"}},{"$f":"AN100+AO100+$A$1/$AL$1","v":{"$error":"#VALUE!"}}]
[null,null,null,null,null,null,null,null,null,null,null,null,null,null,null,null,null,null,null,null,null,null,null,null,null,null,null,null,null,null,null,null,null,null,null,null,null,110,{"$error":"#VALUE!"},{"$error":"#VALUE!"},{"$error":"#VALUE!"},{"$error":"#VALUE!"}]
[null,null,null,null,null,null,null,null,null,null,null,null,null,null,null,null,null,null,null,null,null,null,null,null,null,null,null,null,null,null,null,null,null,null,null,null,null,111,{"$error":"#VALUE!"},{"$error":"#VALUE!"},{"$error":"#VALUE!"},{"$error":"#VALUE!"}]
[null,null,null,null,null,null,null,null,null,null,null,null,null,null,null,null,null,null,null,null,null,null,null,null,null,null,null,null,null,null,null,null,null,null,null,null,null,112,{"$error":"#VALUE!"},{"$error":"#VALUE!"},{"$error":"#VALUE!"},{"$error":"#VALUE!"}]
[null,null,null,null,null,null,null,null,null,null,null,null,null,null,null,null,null,null,null,null,null,null,null,null,null,null,null,null,null,null,null,null,null,null,null,null,null,113,{"$error":"#VALUE!"},{"$error":"#VALUE!"},{"$error":"#VALUE!"},{"$error":"#VALUE!"}]
[null,null,null,null,null,null,null,null,null,null,null,null,null,null,null,null,null,null,null,null,null,null,null,null,null,null,null,null,null,null,null,null,null,null,null,null,null,114,{"$error":"#VALUE!"},{"$error":"#VALUE!"},{"$error":"#VALUE!"},{"$error":"#VALUE!"}]
[null,null,null,null,null,null,null,null,null,null,null,null,null,null,null,null,null,null,null,null,null,null,null,null,null,null,null,null,null,null,null,null,null,null,null,null,null,115,{"$error":"#VALUE!"},{"$error":"#VALUE!"},{"$error":"#VALUE!"},{"$error":"#VALUE!"}]
[null,null,null,null,null,null,null,null,null,null,null,null,null,null,null,null,null,null,null,null,null,null,null,null,null,null,null,null,null,null,null,null,null,null,null,null,null,116,{"$error":"#VALUE!"},{"$error":"#VALUE!"},{"$error":"#VALUE!"},{"$error":"#VALUE!"}]
[null,null,null,null,null,null,null,null,null,null,null,null,null,null,null,null,null,null,null,null,null,null,null,null,null,null,null,null,null,null,null,null,null,null,null,null,null,117,{"$error":"#VALUE!"},{"$error":"#VALUE!"},{"$error":"#VALUE!"},{"$error":"#VALUE!"}]
[null,null,null,null,null,null,null,null,null,null,null,null,null,null,null,null,null,null,null,null,null,null,null,null,null,null,null,null,null,null,null,null,null,null,null,null,null,118,{"$error":"#VALUE!"},{"$error":"#VALUE!"},{"$error":"#VALUE!"},{"$error":"#VALUE!"}]
[null,null,null,null,null,null,null,null,null,null,null,null,null,null,null,null,null,null,null,null,null,null,null,null,null,null,null,null,null,null,null,null,null,null,null,null,null,119,{"$error":"#VALUE!"},{"$error":"#VALUE!"},{"$error":"#VALUE!"},{"$error":"#VALUE!"}]
[null,null,null,null,null,null,null,null,null,null,null,null,null,null,null,null,null,null,null,null,null,null,null,null,null,null,null,null,null,null,null,null,null,null,null,null,null,120,{"$error":"#VALUE!"},{"$error":"#VALUE!"},{"$error":"#VALUE!"},{"$error":"#VALUE!"}]